Invoice_Payment_Date,Org_Level_2_Desc,Supplier_Name,Nominal_Desc,Invoice_Line_Net_Amount,Internal_Category_Code
01/07/2015,HUMAN RESOURCES AND ORGANISATIONAL DEVELOPMENT,Matrix SCM Ltd,AGENCY STAFF,"586,188.41",Human Resources.Temporary & Agency Staff.NA
01/07/2015,STRATEGY & COMMISSIONING - HOUSING & COMMUNITIES (HRA),Loughborough Emb Ltd,PROFESSIONAL SERVICES - GENERAL,"369,182.85",Housing Management.Arms Length Management Organisations.NA
01/07/2015,STRATEGY & COMMISSIONING - HOUSING & COMMUNITIES (HRA),Roupell Park Resident Management Organisation Limited,PROFESSIONAL SERVICES - GENERAL,"324,960.00",Housing Management.Arms Length Management Organisations.NA
01/07/2015,CAPITAL CC,Apollo Property Services Group Ltd,"MAINTENANCE - EQUIPMENT, FURNITURE AND MATERIALS","255,493.59","Works - Construction, Repair & Maint.Buildings.Construction"
01/07/2015,STRATEGY & COMMISSIONING - HOUSING & COMMUNITIES (HRA),Cowley RMO Ltd,PROFESSIONAL SERVICES - GENERAL,"220,382.00",Housing Management.Arms Length Management Organisations.NA
01/07/2015,CAPITAL CC,Lambeth Living Ltd,BUILDING ALTERATIONS AND MATERIALS,"214,553.42",Housing Management.Arms Length Management Organisations.NA
01/07/2015,HOUSING MANAGEMENT SERVICES,Morrison Facilities Services Ltd_d,CLEANING SERVICES,"212,553.63",Cleaning & Janitorial.Cleaning Service.External
01/07/2015,STRATEGY & COMMISSIONING - HOUSING & COMMUNITIES (HRA),Blenheim Gardens TMO,PROFESSIONAL SERVICES - GENERAL,"174,010.00",Housing Management.Arms Length Management Organisations.NA
01/07/2015,"STRATEGY & COMMISSIONING - CHILDREN, DISABILITIES & PUBLIC HEALTH",Guys & St Thomas NHS Foundation Trust,PAYMENT TO HEALTH AUTHORITIES,"164,014.00",Healthcare.Services.NA
01/07/2015,STRATEGY & COMMISSIONING - HOUSING & COMMUNITIES (HRA),Cetra Housing Co-Operative Ltd,PROFESSIONAL SERVICES - GENERAL,"144,108.00",Housing Management.Arms Length Management Organisations.NA
01/07/2015,CAPITAL CC,Jerram Falkus Construction Ltd,"MAINTENANCE - EQUIPMENT, FURNITURE AND MATERIALS","129,795.00","Works - Construction, Repair & Maint.Buildings.Construction"
01/07/2015,STRATEGY & COMMISSIONING - HOUSING & COMMUNITIES (HRA),Waltham Estate Resident Management Organisation,PROFESSIONAL SERVICES - GENERAL,"129,254.00",Housing Management.Arms Length Management Organisations.NA
01/07/2015,STRATEGY & COMMISSIONING - HOUSING & COMMUNITIES (HRA),Cottington Close TMC,PROFESSIONAL SERVICES - GENERAL,"112,814.00",Housing Management.Arms Length Management Organisations.NA
01/07/2015,CAPITAL CC,T Brown Group Ltd_d,BUILDING ALTERATIONS AND MATERIALS,"108,140.07",Building Construction Materials.Heating & Air Conditioning.NA
01/07/2015,HOUSING MANAGEMENT SERVICES,Oco Ltd_d,RESPONSIVE REPAIRS - MECHANICAL AND ELECTRICAL,"87,412.42",Building Construction Materials.Heating & Air Conditioning.NA
01/07/2015,CAPITAL CC,Lambeth Living Ltd,BUILDING ALTERATIONS AND MATERIALS,"86,546.96",Housing Management.Arms Length Management Organisations.NA
01/07/2015,STRATEGY & COMMISSIONING - HOUSING & COMMUNITIES (HRA),Holland Rise & Whitebeam Close TMO,PROFESSIONAL SERVICES - GENERAL,"75,965.00",Housing Management.Arms Length Management Organisations.NA
01/07/2015,STRATEGY & COMMISSIONING - HOUSING & COMMUNITIES (HRA),Wellington Mills Housing Tmc,PROFESSIONAL SERVICES - GENERAL,"66,350.00",Housing Management.Arms Length Management Organisations.NA
01/07/2015,HOUSING MANAGEMENT SERVICES,Mitie Property Services (UK) Ltd_d,RESPONSIVE REPAIRS - MECHANICAL AND ELECTRICAL,"63,921.30","Works - Construction, Repair & Maint.Buildings.Construction"
01/07/2015,CAPITAL CC,Lambeth Living Ltd,BUILDING ALTERATIONS AND MATERIALS,"50,573.64",Housing Management.Arms Length Management Organisations.NA
01/07/2015,"SENIOR MANAGEMENT - CHILDREN, ADULTS AND HEALTH",Lambeth Summer Projects Trust,CONSULTANCY FEES,"40,000.00",Consultancy.Technical & Feasibility.NA
01/07/2015,HOUSING MANAGEMENT SERVICES,Oco Ltd_d,RESPONSIVE REPAIRS - MECHANICAL AND ELECTRICAL,"38,917.58",Building Construction Materials.Heating & Air Conditioning.NA
01/07/2015,CAPITAL CC,Lambeth Living Ltd,BUILDING ALTERATIONS AND MATERIALS,"37,734.43",Housing Management.Arms Length Management Organisations.NA
01/07/2015,CAPITAL CC,Lambeth Living Ltd,BUILDING ALTERATIONS AND MATERIALS,"36,807.44",Housing Management.Arms Length Management Organisations.NA
01/07/2015,HOUSING MANAGEMENT SERVICES,Oco Ltd_d,CYCLICAL/PLANNED MAINTENANCE - MECHANICAL AND ELECTRICAL,"36,560.80",Building Construction Materials.Heating & Air Conditioning.NA
01/07/2015,HOUSING MANAGEMENT SERVICES,Precision Lift Services Ltd_d,RESPONSIVE REPAIRS - MECHANICAL AND ELECTRICAL,"24,759.77",Facilities & Management Services.Lifts.NA
01/07/2015,CAPITAL CC,Lambeth Living Ltd,BUILDING ALTERATIONS AND MATERIALS,"24,079.48",Housing Management.Arms Length Management Organisations.NA
01/07/2015,CAPITAL CC,Pinsent Masons LLP,BUILDING ALTERATIONS AND MATERIALS,"19,611.10",Legal Services.General Support.NA
01/07/2015,FINANCE,EDF Energy Plc,ELECTRICITY,"12,774.25",Utilities.Electricity.NA
01/07/2015,CAPITAL CC,M A Roberts & Sons Ltd,GRANTS AND CONTRIBUTIONS,"12,622.95",Financial Services.Grants.NA
01/07/2015,CORPORATE AFFAIRS,TV Edwards LLP,LEGAL FEES,"11,900.00",Legal Services.Advocacy.NA
01/07/2015,CORPORATE AFFAIRS,Utopia Transport Co,LEGAL FEES,"11,750.00",Legal Services.Election Services.NA
01/07/2015,CORPORATE AFFAIRS,Braidwood Law Practice,LEGAL FEES,"11,400.00",Legal Services.Advocacy.NA
01/07/2015,FINANCE,EDF Energy Plc,ELECTRICITY,"10,977.73",Utilities.Electricity.NA
01/07/2015,ADULT SOCIAL CARE,Independent Community Care Management,DOMICILIARY CARE - THIRD PARTY,"10,586.00",Social Community Care Supplies & Service.Adult.Domiciliary Care
01/07/2015,CORPORATE AFFAIRS,Centre 70 Advice Centre,LEGAL FEES,"9,000.00",Social Community Care Supplies & Service.Adult.NA
01/07/2015,CHILDREN'S SERVICES,Suzannah Cotterill,LEGAL FEES,"8,015.00",Legal Services.Legal Opinion.NA
01/07/2015,CHILDREN'S SERVICES,Charles Allotey & Co,LEGAL FEES,"7,800.00",Legal Services.Advocacy.NA
01/07/2015,HOUSING MANAGEMENT SERVICES,Oco Ltd_d,RESPONSIVE REPAIRS - MECHANICAL AND ELECTRICAL,"7,590.53",Building Construction Materials.Heating & Air Conditioning.NA
01/07/2015,HOUSING MANAGEMENT SERVICES,Mears Ltd,RESPONSIVE REPAIRS - MECHANICAL AND ELECTRICAL,"6,867.96","Works - Construction, Repair & Maint.Buildings.Repair & Maintenance"
01/07/2015,CHILDREN'S SERVICES,Coral Community Assessments Ltd,LEGAL FEES,"6,751.98",Social Community Care Supplies & Service.Adult.NA
01/07/2015,"STRATEGY & COMMISSIONING - CHILDREN, DISABILITIES & PUBLIC HEALTH",Learning Unlimited,STAFF DEVELOPMENT AND TRAINING,"6,560.00",Human Resources.Training & Conferences.Conferences
01/07/2015,CHILDREN'S SERVICES,King's College London,PROFESSIONAL SERVICES - GENERAL,"6,500.00",Education.Adult & Further Education Services.NA
01/07/2015,HOUSING MANAGEMENT SERVICES,Apex Lift & Escalator Engineers Ltd_d,RESPONSIVE REPAIRS - MECHANICAL AND ELECTRICAL,"6,025.32",Facilities & Management Services.Lifts.NA
01/07/2015,HOUSING MANAGEMENT SERVICES,Apex Lift & Escalator Engineers Ltd_d,RESPONSIVE REPAIRS - MECHANICAL AND ELECTRICAL,"5,971.68",Facilities & Management Services.Lifts.NA
01/07/2015,HOUSING MANAGEMENT SERVICES,Mears Ltd,RESPONSIVE REPAIRS - BUILDING,"5,813.39","Works - Construction, Repair & Maint.Buildings.Repair & Maintenance"
01/07/2015,HOUSING MANAGEMENT SERVICES,Mitie Property Services (UK) Ltd_d,RESPONSIVE REPAIRS - MECHANICAL AND ELECTRICAL,"5,522.26","Works - Construction, Repair & Maint.Buildings.Construction"
01/07/2015,HOUSING MANAGEMENT SERVICES,Mears Ltd,RESPONSIVE REPAIRS - BUILDING,"5,220.00","Works - Construction, Repair & Maint.Buildings.Repair & Maintenance"
01/07/2015,CAPITAL CC,Pellings LLP,BUILDING ALTERATIONS AND MATERIALS,"5,110.52","Works - Construction, Repair & Maint.Consultancy.NA"
01/07/2015,"STRATEGY & COMMISSIONING - CHILDREN, DISABILITIES & PUBLIC HEALTH",Vaga Associates Ltd,CONSULTANCY FEES,"5,000.00",Consultancy.Management.NA
01/07/2015,CORPORATE AFFAIRS,Wainwright and Cummins Solicitors,LEGAL FEES,"4,965.84",Social Community Care Supplies & Service.Adult.Advice & Counselling Services
01/07/2015,CHILDREN'S SERVICES,Jamma Umoja (Residential Services) Ltd,PRIVATE CONTRACTORS PAYMENT - OTHER,"4,840.00",Social Community Care Supplies & Service.Children.Residential Care
01/07/2015,FINANCE,EDF Energy Plc,ELECTRICITY,"4,722.79",Utilities.Electricity.NA
01/07/2015,"REGENERATION, PLANNING & NEIGHBOURHOODS",Project Centre Ltd,"MAINTENANCE - EQUIPMENT, FURNITURE AND MATERIALS","4,699.34","Works - Construction, Repair & Maint.Roads.NA"
01/07/2015,FINANCE,EDF Energy Plc,ELECTRICITY,"4,541.67",Utilities.Electricity.NA
01/07/2015,HOUSING MANAGEMENT SERVICES,Oco Ltd_d,RESPONSIVE REPAIRS - MECHANICAL AND ELECTRICAL,"4,529.96",Building Construction Materials.Heating & Air Conditioning.NA
01/07/2015,CHILDREN'S SERVICES,Tim Parker,LEGAL FEES,"4,440.00",Legal Services.Legal Opinion.NA
01/07/2015,HOUSING MANAGEMENT SERVICES,Mears Ltd,RESPONSIVE REPAIRS - BUILDING,"4,319.04","Works - Construction, Repair & Maint.Buildings.Repair & Maintenance"
01/07/2015,HOUSING MANAGEMENT SERVICES,Mears Ltd,RESPONSIVE REPAIRS - BUILDING,"4,319.04","Works - Construction, Repair & Maint.Buildings.Repair & Maintenance"
01/07/2015,HOUSING MANAGEMENT SERVICES,Mears Ltd,RESPONSIVE REPAIRS - BUILDING,"4,253.70","Works - Construction, Repair & Maint.Buildings.Repair & Maintenance"
01/07/2015,CORPORATE AFFAIRS,Anthony Gold Solicitors,LEGAL FEES,"4,250.00",Legal Services.Advocacy.NA
01/07/2015,HOUSING MANAGEMENT SERVICES,Mears Ltd,RESPONSIVE REPAIRS - MECHANICAL AND ELECTRICAL,"4,115.68","Works - Construction, Repair & Maint.Buildings.Repair & Maintenance"
01/07/2015,ADULT SOCIAL CARE,Spring Lake Care Home Ltd,RESPITE CARE - PRIVATE CONTRACTORS PAYMENT,"4,090.50",Social Community Care Supplies & Service.Adult.Residential Care
01/07/2015,"STRATEGY & COMMISSIONING - CHILDREN, DISABILITIES & PUBLIC HEALTH",Grey Panther Associates Ltd,PAYMENT TO HEALTH AUTHORITIES,"4,000.00",Healthcare.Public Health.NA
01/07/2015,HOUSING MANAGEMENT SERVICES,Mears Ltd,RESPONSIVE REPAIRS - BUILDING,"3,750.00","Works - Construction, Repair & Maint.Buildings.Repair & Maintenance"
01/07/2015,HOUSING MANAGEMENT SERVICES,Mears Ltd,RESPONSIVE REPAIRS - BUILDING,"3,686.54","Works - Construction, Repair & Maint.Buildings.Repair & Maintenance"
01/07/2015,BUSINESS & CUSTOMER SERVICES,Judge & Priestley Solicitors,LEGAL FEES,"3,676.00",Legal Services.General Support.NA
01/07/2015,CORPORATE AFFAIRS,Cubism Law,LEGAL FEES,"3,650.00",Legal Services.Advocacy.NA
01/07/2015,CHILDREN'S SERVICES,The Children's Family Trust,FOSTERING AGENCY PLACEMENTS - PRIVATE CONTRACTORS PAYMENT,"3,641.40",Social Community Care Supplies & Service.Children.Fostering
01/07/2015,HOUSING MANAGEMENT SERVICES,Mitie Property Services (UK) Ltd_d,RESPONSIVE REPAIRS - MECHANICAL AND ELECTRICAL,"3,626.36","Works - Construction, Repair & Maint.Buildings.Construction"
01/07/2015,HOUSING MANAGEMENT SERVICES,Mears Ltd,RESPONSIVE REPAIRS - BUILDING,"3,600.00","Works - Construction, Repair & Maint.Buildings.Repair & Maintenance"
01/07/2015,CHILDREN'S SERVICES,Synergy Fostering Ltd,IN HOUSE FOSTER CARE PLACEMENTS - PRIVATE CONTRACTORS PAYMENT,"3,538.34",Social Community Care Supplies & Service.Children.Fostering
01/07/2015,"REGENERATION, PLANNING & NEIGHBOURHOODS",Met Office,PROFESSIONAL SERVICES - GENERAL,"3,501.00",Environmental Services.Weather Forecasts.NA
01/07/2015,CHILDREN'S SERVICES,Synergy Fostering Ltd,FOSTERING AGENCY PLACEMENTS - PRIVATE CONTRACTORS PAYMENT,"3,454.33",Social Community Care Supplies & Service.Children.Fostering
01/07/2015,HOUSING MANAGEMENT SERVICES,Mears Ltd,RESPONSIVE REPAIRS - BUILDING,"3,450.00","Works - Construction, Repair & Maint.Buildings.Repair & Maintenance"
01/07/2015,FINANCE,EDF Energy Plc,ELECTRICITY,"3,432.42",Utilities.Electricity.NA
01/07/2015,HOUSING MANAGEMENT SERVICES,Mears Ltd,RESPONSIVE REPAIRS - MECHANICAL AND ELECTRICAL,"3,300.00","Works - Construction, Repair & Maint.Buildings.Repair & Maintenance"
01/07/2015,HOUSING MANAGEMENT SERVICES,Mears Ltd,RESPONSIVE REPAIRS - BUILDING,"3,261.15","Works - Construction, Repair & Maint.Buildings.Repair & Maintenance"
01/07/2015,CHILDREN'S SERVICES,Kindercare Fostering Ltd,FOSTERING AGENCY PLACEMENTS - PRIVATE CONTRACTORS PAYMENT,"3,255.00",Social Community Care Supplies & Service.Children.Fostering
01/07/2015,CHILDREN'S SERVICES,Synergy Fostering Ltd,IN HOUSE FOSTER CARE PLACEMENTS - PRIVATE CONTRACTORS PAYMENT,"3,195.92",Social Community Care Supplies & Service.Children.Fostering
01/07/2015,FINANCE,EDF Energy Plc,ELECTRICITY,"3,162.50",Utilities.Electricity.NA
01/07/2015,HOUSING MANAGEMENT SERVICES,Mears Ltd,RESPONSIVE REPAIRS - MECHANICAL AND ELECTRICAL,"3,162.50","Works - Construction, Repair & Maint.Buildings.Repair & Maintenance"
01/07/2015,HOUSING MANAGEMENT SERVICES,Mears Ltd,RESPONSIVE REPAIRS - BUILDING,"3,109.39","Works - Construction, Repair & Maint.Buildings.Repair & Maintenance"
01/07/2015,CORPORATE AFFAIRS,Anthony Gold Solicitors,LEGAL FEES,"3,086.22",Legal Services.Advocacy.NA
01/07/2015,HOUSING MANAGEMENT SERVICES,Oco Ltd_d,RESPONSIVE REPAIRS - MECHANICAL AND ELECTRICAL,"3,061.77",Building Construction Materials.Heating & Air Conditioning.NA
01/07/2015,CORPORATE AFFAIRS,Anthony Gold Solicitors,LEGAL FEES,"3,041.67",Legal Services.Advocacy.NA
01/07/2015,CHILDREN'S SERVICES,Coral Community Assessments Ltd,LEGAL FEES,"3,030.80",Social Community Care Supplies & Service.Adult.NA
01/07/2015,CAPITAL CC,Morrison Facilities Services Ltd_d,BUILDING ALTERATIONS AND MATERIALS,"3,017.63","Works - Construction, Repair & Maint.Buildings.Repair & Maintenance"
01/07/2015,HOUSING MANAGEMENT SERVICES,Mears Ltd,RESPONSIVE REPAIRS - BUILDING,"3,013.73","Works - Construction, Repair & Maint.Buildings.Repair & Maintenance"
01/07/2015,HOUSING MANAGEMENT SERVICES,Mears Ltd,RESPONSIVE REPAIRS - BUILDING,"3,013.73","Works - Construction, Repair & Maint.Buildings.Repair & Maintenance"
01/07/2015,ADULT SOCIAL CARE,Carewatch (Lambeth),DOMICILIARY CARE - THIRD PARTY,"2,964.54",Social Community Care Supplies & Service.Adult.Domiciliary Care
01/07/2015,HOUSING MANAGEMENT SERVICES,Mears Ltd,RESPONSIVE REPAIRS - BUILDING,"2,912.80","Works - Construction, Repair & Maint.Buildings.Repair & Maintenance"
01/07/2015,CORPORATE AFFAIRS,Brixton Advice Centre,LEGAL FEES,"2,900.00",Social Community Care Supplies & Service.Adult.Advice & Counselling Services
01/07/2015,HOUSING MANAGEMENT SERVICES,Mears Ltd,RESPONSIVE REPAIRS - BUILDING,"2,881.20","Works - Construction, Repair & Maint.Buildings.Repair & Maintenance"
01/07/2015,CORPORATE AFFAIRS,Centre 70 Advice Centre,LEGAL FEES,"2,871.80",Social Community Care Supplies & Service.Adult.NA
01/07/2015,"STRATEGY & COMMISSIONING - CHILDREN, DISABILITIES & PUBLIC HEALTH",Learning Unlimited,STAFF DEVELOPMENT AND TRAINING,"2,857.00",Human Resources.Training & Conferences.Conferences
01/07/2015,HOUSING MANAGEMENT SERVICES,Mears Ltd,RESPONSIVE REPAIRS - BUILDING,"2,753.16","Works - Construction, Repair & Maint.Buildings.Repair & Maintenance"
01/07/2015,CHILDREN'S SERVICES,Alex Verdan QC,LEGAL FEES,"2,750.00",Legal Services.Advocacy.NA
01/07/2015,CHILDREN'S SERVICES,Alex Verdan QC,LEGAL FEES,"2,750.00",Legal Services.Advocacy.NA
01/07/2015,CHILDREN'S SERVICES,Alex Verdan QC,LEGAL FEES,"2,750.00",Legal Services.Advocacy.NA
01/07/2015,CHILDREN'S SERVICES,Alex Verdan QC,LEGAL FEES,"2,750.00",Legal Services.Advocacy.NA
01/07/2015,CHILDREN'S SERVICES,Alex Verdan QC,LEGAL FEES,"2,750.00",Legal Services.Advocacy.NA
01/07/2015,CHILDREN'S SERVICES,Alex Verdan QC,LEGAL FEES,"2,750.00",Legal Services.Advocacy.NA
01/07/2015,FINANCE,EDF Energy Plc,ELECTRICITY,"2,686.76",Utilities.Electricity.NA
01/07/2015,HOUSING MANAGEMENT SERVICES,Mears Ltd,RESPONSIVE REPAIRS - MECHANICAL AND ELECTRICAL,"2,649.24","Works - Construction, Repair & Maint.Buildings.Repair & Maintenance"
01/07/2015,HOUSING MANAGEMENT SERVICES,Mitie Property Services (UK) Ltd_d,RESPONSIVE REPAIRS - MECHANICAL AND ELECTRICAL,"2,606.40","Works - Construction, Repair & Maint.Buildings.Construction"
01/07/2015,EDUCATION & LEARNING,Sherwood Cars Ltd,CLIENT TRANSPORT,"2,556.00",Public Transport.Taxi Services.Home to School
01/07/2015,EDUCATION & LEARNING,Sherwood Cars Ltd,CLIENT TRANSPORT,"2,556.00",Public Transport.Taxi Services.Home to School
01/07/2015,HOUSING MANAGEMENT SERVICES,Mears Ltd,RESPONSIVE REPAIRS - MECHANICAL AND ELECTRICAL,"2,544.00","Works - Construction, Repair & Maint.Buildings.Repair & Maintenance"
01/07/2015,CAPITAL CC,Morrison Facilities Services Ltd_d,BUILDING ALTERATIONS AND MATERIALS,"2,524.26","Works - Construction, Repair & Maint.Buildings.Repair & Maintenance"
01/07/2015,CAPITAL CC,Morrison Facilities Services Ltd_d,BUILDING ALTERATIONS AND MATERIALS,"2,524.26","Works - Construction, Repair & Maint.Buildings.Repair & Maintenance"
01/07/2015,CAPITAL CC,Morrison Facilities Services Ltd_d,BUILDING ALTERATIONS AND MATERIALS,"2,524.26","Works - Construction, Repair & Maint.Buildings.Repair & Maintenance"
01/07/2015,HUMAN RESOURCES AND ORGANISATIONAL DEVELOPMENT,The High Street Gift Voucher Ltd,FACILITIES MANAGEMENT,"2,496.52",Facilities & Management Services.Retail.NA
01/07/2015,HOUSING MANAGEMENT SERVICES,Mears Ltd,RESPONSIVE REPAIRS - BUILDING,"2,477.31","Works - Construction, Repair & Maint.Buildings.Repair & Maintenance"
01/07/2015,FINANCE,EDF Energy Plc,ELECTRICITY,"2,403.07",Utilities.Electricity.NA
01/07/2015,FINANCE,Volkswagen Group Leasing,VEHICLE LEASES,"2,376.91",Vehicle Management.Leasing.NA
01/07/2015,FINANCE,Volkswagen Group Leasing,VEHICLE LEASES,"2,376.91",Vehicle Management.Leasing.NA
01/07/2015,HOUSING MANAGEMENT SERVICES,Mears Ltd,RESPONSIVE REPAIRS - BUILDING,"2,331.25","Works - Construction, Repair & Maint.Buildings.Repair & Maintenance"
01/07/2015,HOUSING MANAGEMENT SERVICES,Mears Ltd,RESPONSIVE REPAIRS - BUILDING,"2,307.76","Works - Construction, Repair & Maint.Buildings.Repair & Maintenance"
01/07/2015,HOUSING MANAGEMENT SERVICES,Mitie Property Services (UK) Ltd_d,RESPONSIVE REPAIRS - MECHANICAL AND ELECTRICAL,"2,290.15","Works - Construction, Repair & Maint.Buildings.Construction"
01/07/2015,HOUSING MANAGEMENT SERVICES,Oco Ltd_d,CYCLICAL/PLANNED MAINTENANCE - MECHANICAL AND ELECTRICAL,"2,254.89",Building Construction Materials.Heating & Air Conditioning.NA
01/07/2015,CHILDREN'S SERVICES,Tim Parker,LEGAL FEES,"2,250.00",Legal Services.Legal Opinion.NA
01/07/2015,"REGENERATION, PLANNING & NEIGHBOURHOODS",Climate Consulting Ltd,CONSULTANCY FEES,"2,210.00",Consultancy.Technical & Feasibility.NA
01/07/2015,HOUSING MANAGEMENT SERVICES,Mears Ltd,RESPONSIVE REPAIRS - BUILDING,"2,207.01","Works - Construction, Repair & Maint.Buildings.Repair & Maintenance"
01/07/2015,ADULT SOCIAL CARE,P & R ( Southampton) Services,BUILDING ALTERATIONS AND MATERIALS,"2,200.00",Building Construction Materials.Electrical.NA
01/07/2015,HOUSING MANAGEMENT SERVICES,Mears Ltd,RESPONSIVE REPAIRS - BUILDING,"2,198.02","Works - Construction, Repair & Maint.Buildings.Repair & Maintenance"
01/07/2015,HOUSING MANAGEMENT SERVICES,Mears Ltd,RESPONSIVE REPAIRS - MECHANICAL AND ELECTRICAL,"2,188.12","Works - Construction, Repair & Maint.Buildings.Repair & Maintenance"
01/07/2015,CAPITAL CC,Todd Longstaffe Gowan Landscape Design Ltd,CONSULTANCY FEES,"2,185.00",Consultancy.Strategic Planning.NA
01/07/2015,HOUSING MANAGEMENT SERVICES,Mears Ltd,RESPONSIVE REPAIRS - BUILDING,"2,184.60","Works - Construction, Repair & Maint.Buildings.Repair & Maintenance"
01/07/2015,CHILDREN'S SERVICES,Mr Rex Howling,LEGAL FEES,"2,150.00",Legal Services.Advocacy.NA
01/07/2015,HOUSING MANAGEMENT SERVICES,Mears Ltd,RESPONSIVE REPAIRS - BUILDING,"2,147.61","Works - Construction, Repair & Maint.Buildings.Repair & Maintenance"
01/07/2015,HOUSING MANAGEMENT SERVICES,Mears Ltd,RESPONSIVE REPAIRS - BUILDING,"2,142.80","Works - Construction, Repair & Maint.Buildings.Repair & Maintenance"
01/07/2015,HOUSING MANAGEMENT SERVICES,Mears Ltd,RESPONSIVE REPAIRS - BUILDING,"2,037.18","Works - Construction, Repair & Maint.Buildings.Repair & Maintenance"
01/07/2015,ADULT SOCIAL CARE,Carewatch (Lambeth),DOMICILIARY CARE - THIRD PARTY,"2,035.60",Social Community Care Supplies & Service.Adult.Domiciliary Care
01/07/2015,HOUSING MANAGEMENT SERVICES,Mears Ltd,RESPONSIVE REPAIRS - BUILDING,"2,010.72","Works - Construction, Repair & Maint.Buildings.Repair & Maintenance"
01/07/2015,HOUSING MANAGEMENT SERVICES,Mears Ltd,RESPONSIVE REPAIRS - BUILDING,"1,985.06","Works - Construction, Repair & Maint.Buildings.Repair & Maintenance"
01/07/2015,HOUSING MANAGEMENT SERVICES,Mears Ltd,RESPONSIVE REPAIRS - BUILDING,"1,951.35","Works - Construction, Repair & Maint.Buildings.Repair & Maintenance"
01/07/2015,HOUSING MANAGEMENT SERVICES,Oco Ltd_d,RESPONSIVE REPAIRS - MECHANICAL AND ELECTRICAL,"1,930.80",Building Construction Materials.Heating & Air Conditioning.NA
01/07/2015,HOUSING MANAGEMENT SERVICES,Mitie Property Services (UK) Ltd_d,RESPONSIVE REPAIRS - MECHANICAL AND ELECTRICAL,"1,901.76","Works - Construction, Repair & Maint.Buildings.Construction"
01/07/2015,HOUSING MANAGEMENT SERVICES,Mitie Property Services (UK) Ltd_d,RESPONSIVE REPAIRS - MECHANICAL AND ELECTRICAL,"1,892.47","Works - Construction, Repair & Maint.Buildings.Construction"
01/07/2015,HOUSING MANAGEMENT SERVICES,Mitie Property Services (UK) Ltd_d,RESPONSIVE REPAIRS - MECHANICAL AND ELECTRICAL,"1,892.47","Works - Construction, Repair & Maint.Buildings.Construction"
01/07/2015,HOUSING MANAGEMENT SERVICES,Mitie Property Services (UK) Ltd_d,RESPONSIVE REPAIRS - MECHANICAL AND ELECTRICAL,"1,892.47","Works - Construction, Repair & Maint.Buildings.Construction"
01/07/2015,HOUSING MANAGEMENT SERVICES,Mitie Property Services (UK) Ltd_d,RESPONSIVE REPAIRS - MECHANICAL AND ELECTRICAL,"1,892.47","Works - Construction, Repair & Maint.Buildings.Construction"
01/07/2015,HOUSING MANAGEMENT SERVICES,Mitie Property Services (UK) Ltd_d,RESPONSIVE REPAIRS - MECHANICAL AND ELECTRICAL,"1,892.47","Works - Construction, Repair & Maint.Buildings.Construction"
01/07/2015,HOUSING MANAGEMENT SERVICES,Mitie Property Services (UK) Ltd_d,RESPONSIVE REPAIRS - MECHANICAL AND ELECTRICAL,"1,892.47","Works - Construction, Repair & Maint.Buildings.Construction"
01/07/2015,HOUSING MANAGEMENT SERVICES,Mitie Property Services (UK) Ltd_d,RESPONSIVE REPAIRS - MECHANICAL AND ELECTRICAL,"1,892.47","Works - Construction, Repair & Maint.Buildings.Construction"
01/07/2015,HOUSING MANAGEMENT SERVICES,Mitie Property Services (UK) Ltd_d,RESPONSIVE REPAIRS - MECHANICAL AND ELECTRICAL,"1,892.47","Works - Construction, Repair & Maint.Buildings.Construction"
01/07/2015,"REGENERATION, PLANNING & NEIGHBOURHOODS",Landmark Chambers,LEGAL FEES,"1,875.00",Legal Services.General Support.NA
01/07/2015,HOUSING MANAGEMENT SERVICES,Oco Ltd_d,RESPONSIVE REPAIRS - MECHANICAL AND ELECTRICAL,"1,824.43",Building Construction Materials.Heating & Air Conditioning.NA
01/07/2015,HOUSING MANAGEMENT SERVICES,Mears Ltd,RESPONSIVE REPAIRS - BUILDING,"1,820.50","Works - Construction, Repair & Maint.Buildings.Repair & Maintenance"
01/07/2015,CAPITAL CC,Morrison Facilities Services Ltd_d,BUILDING ALTERATIONS AND MATERIALS,"1,791.60","Works - Construction, Repair & Maint.Buildings.Repair & Maintenance"
01/07/2015,CAPITAL CC,Morrison Facilities Services Ltd_d,BUILDING ALTERATIONS AND MATERIALS,"1,791.60","Works - Construction, Repair & Maint.Buildings.Repair & Maintenance"
01/07/2015,CAPITAL CC,Morrison Facilities Services Ltd_d,BUILDING ALTERATIONS AND MATERIALS,"1,791.60","Works - Construction, Repair & Maint.Buildings.Repair & Maintenance"
01/07/2015,HOUSING MANAGEMENT SERVICES,Morrison Facilities Services Ltd_d,RESPONSIVE REPAIRS - BUILDING,"1,791.60","Works - Construction, Repair & Maint.Buildings.Repair & Maintenance"
01/07/2015,HOUSING MANAGEMENT SERVICES,Mears Ltd,RESPONSIVE REPAIRS - BUILDING,"1,775.00","Works - Construction, Repair & Maint.Buildings.Repair & Maintenance"
01/07/2015,HOUSING MANAGEMENT SERVICES,Mears Ltd,RESPONSIVE REPAIRS - BUILDING,"1,773.83","Works - Construction, Repair & Maint.Buildings.Repair & Maintenance"
01/07/2015,NO RECOURSE TO PUBLIC FUNDS,Pearl House,RENTS PAYABLE,"1,711.66",Social Community Care Supplies & Service.Children.Residential Care
01/07/2015,HOUSING NEEDS,Stenford Property Ltd,BED & BREAKFAST - PRIVATE CONTRACTORS PAYMENT,"1,705.00",Housing Management.Letting Agents.NA
01/07/2015,HOUSING MANAGEMENT SERVICES,Mears Ltd,RESPONSIVE REPAIRS - BUILDING,"1,701.48","Works - Construction, Repair & Maint.Buildings.Repair & Maintenance"
01/07/2015,HOUSING MANAGEMENT SERVICES,Mears Ltd,RESPONSIVE REPAIRS - BUILDING,"1,683.00","Works - Construction, Repair & Maint.Buildings.Repair & Maintenance"
01/07/2015,HOUSING MANAGEMENT SERVICES,Mears Ltd,RESPONSIVE REPAIRS - BUILDING,"1,674.12","Works - Construction, Repair & Maint.Buildings.Repair & Maintenance"
01/07/2015,FINANCE,Volkswagen Group Leasing,VEHICLE LEASES,"1,660.00",Vehicle Management.Leasing.NA
01/07/2015,HOUSING MANAGEMENT SERVICES,Mears Ltd,RESPONSIVE REPAIRS - BUILDING,"1,639.96","Works - Construction, Repair & Maint.Buildings.Repair & Maintenance"
01/07/2015,FINANCE,Volkswagen Group Leasing,VEHICLE LEASES,"1,632.00",Vehicle Management.Leasing.NA
01/07/2015,HOUSING MANAGEMENT SERVICES,Mears Ltd,RESPONSIVE REPAIRS - MECHANICAL AND ELECTRICAL,"1,609.46","Works - Construction, Repair & Maint.Buildings.Repair & Maintenance"
01/07/2015,HOUSING MANAGEMENT SERVICES,Mears Ltd,RESPONSIVE REPAIRS - MECHANICAL AND ELECTRICAL,"1,587.00","Works - Construction, Repair & Maint.Buildings.Repair & Maintenance"
01/07/2015,HOUSING MANAGEMENT SERVICES,Mears Ltd,RESPONSIVE REPAIRS - BUILDING,"1,559.69","Works - Construction, Repair & Maint.Buildings.Repair & Maintenance"
01/07/2015,HOUSING MANAGEMENT SERVICES,Mears Ltd,DECORATION,"1,559.60","Works - Construction, Repair & Maint.Buildings.Repair & Maintenance"
01/07/2015,HOUSING MANAGEMENT SERVICES,Oco Ltd_d,RESPONSIVE REPAIRS - MECHANICAL AND ELECTRICAL,"1,514.70",Building Construction Materials.Heating & Air Conditioning.NA
01/07/2015,HOUSING MANAGEMENT SERVICES,Mears Ltd,RESPONSIVE REPAIRS - BUILDING,"1,512.74","Works - Construction, Repair & Maint.Buildings.Repair & Maintenance"
01/07/2015,EDUCATION & LEARNING,Mr & Mrs Saul,PRIVATE CONTRACTORS PAYMENT - OTHER,"1,506.96",Social Community Care Supplies & Service.Children.Adolescent Mental Health Services
01/07/2015,HOUSING MANAGEMENT SERVICES,Mitie Property Services (UK) Ltd_d,CYCLICAL/PLANNED MAINTENANCE - MECHANICAL AND ELECTRICAL,"1,497.69","Works - Construction, Repair & Maint.Buildings.Construction"
01/07/2015,HOUSING MANAGEMENT SERVICES,Oco Ltd_d,RESPONSIVE REPAIRS - MECHANICAL AND ELECTRICAL,"1,490.40",Building Construction Materials.Heating & Air Conditioning.NA
01/07/2015,HOUSING MANAGEMENT SERVICES,Oco Ltd_d,RESPONSIVE REPAIRS - MECHANICAL AND ELECTRICAL,"1,490.40",Building Construction Materials.Heating & Air Conditioning.NA
01/07/2015,HOUSING MANAGEMENT SERVICES,Oco Ltd_d,RESPONSIVE REPAIRS - MECHANICAL AND ELECTRICAL,"1,490.00",Building Construction Materials.Heating & Air Conditioning.NA
01/07/2015,HOUSING MANAGEMENT SERVICES,Mears Ltd,RESPONSIVE REPAIRS - BUILDING,"1,483.30","Works - Construction, Repair & Maint.Buildings.Repair & Maintenance"
01/07/2015,HOUSING MANAGEMENT SERVICES,Mears Ltd,RESPONSIVE REPAIRS - MECHANICAL AND ELECTRICAL,"1,475.00","Works - Construction, Repair & Maint.Buildings.Repair & Maintenance"
01/07/2015,HOUSING MANAGEMENT SERVICES,Mears Ltd,RESPONSIVE REPAIRS - BUILDING,"1,463.22","Works - Construction, Repair & Maint.Buildings.Repair & Maintenance"
01/07/2015,HOUSING MANAGEMENT SERVICES,Mears Ltd,RESPONSIVE REPAIRS - BUILDING,"1,456.40","Works - Construction, Repair & Maint.Buildings.Repair & Maintenance"
01/07/2015,HOUSING MANAGEMENT SERVICES,Mears Ltd,RESPONSIVE REPAIRS - BUILDING,"1,456.40","Works - Construction, Repair & Maint.Buildings.Repair & Maintenance"
01/07/2015,HOUSING MANAGEMENT SERVICES,Mears Ltd,RESPONSIVE REPAIRS - BUILDING,"1,456.40","Works - Construction, Repair & Maint.Buildings.Repair & Maintenance"
01/07/2015,HOUSING MANAGEMENT SERVICES,Mears Ltd,RESPONSIVE REPAIRS - BUILDING,"1,456.40","Works - Construction, Repair & Maint.Buildings.Repair & Maintenance"
01/07/2015,HOUSING MANAGEMENT SERVICES,Mears Ltd,RESPONSIVE REPAIRS - BUILDING,"1,450.00","Works - Construction, Repair & Maint.Buildings.Repair & Maintenance"
01/07/2015,HOUSING MANAGEMENT SERVICES,Mears Ltd,RESPONSIVE REPAIRS - BUILDING,"1,447.48","Works - Construction, Repair & Maint.Buildings.Repair & Maintenance"
01/07/2015,HOUSING MANAGEMENT SERVICES,Mears Ltd,RESPONSIVE REPAIRS - BUILDING,"1,447.48","Works - Construction, Repair & Maint.Buildings.Repair & Maintenance"
01/07/2015,HOUSING MANAGEMENT SERVICES,Mears Ltd,RESPONSIVE REPAIRS - BUILDING,"1,444.86","Works - Construction, Repair & Maint.Buildings.Repair & Maintenance"
01/07/2015,CHILDREN'S SERVICES,Triangle Services Ltd,LEGAL FEES,"1,431.55",Human Resources.Training & Conferences.Training
01/07/2015,HOUSING MANAGEMENT SERVICES,Mears Ltd,RESPONSIVE REPAIRS - BUILDING,"1,417.90","Works - Construction, Repair & Maint.Buildings.Repair & Maintenance"
01/07/2015,HOUSING MANAGEMENT SERVICES,Mears Ltd,RESPONSIVE REPAIRS - MECHANICAL AND ELECTRICAL,"1,417.50","Works - Construction, Repair & Maint.Buildings.Repair & Maintenance"
01/07/2015,HOUSING MANAGEMENT SERVICES,Mitie Property Services (UK) Ltd_d,RESPONSIVE REPAIRS - MECHANICAL AND ELECTRICAL,"1,406.01","Works - Construction, Repair & Maint.Buildings.Construction"
01/07/2015,HOUSING MANAGEMENT SERVICES,Mitie Property Services (UK) Ltd_d,RESPONSIVE REPAIRS - MECHANICAL AND ELECTRICAL,"1,406.01","Works - Construction, Repair & Maint.Buildings.Construction"
01/07/2015,HOUSING MANAGEMENT SERVICES,Mears Ltd,RESPONSIVE REPAIRS - BUILDING,"1,404.92","Works - Construction, Repair & Maint.Buildings.Repair & Maintenance"
01/07/2015,CAPITAL CC,Morrison Facilities Services Ltd_d,BUILDING ALTERATIONS AND MATERIALS,"1,400.00","Works - Construction, Repair & Maint.Buildings.Repair & Maintenance"
01/07/2015,HOUSING MANAGEMENT SERVICES,Mears Ltd,RESPONSIVE REPAIRS - BUILDING,"1,391.72","Works - Construction, Repair & Maint.Buildings.Repair & Maintenance"
01/07/2015,HOUSING MANAGEMENT SERVICES,Mears Ltd,RESPONSIVE REPAIRS - BUILDING,"1,391.30","Works - Construction, Repair & Maint.Buildings.Repair & Maintenance"
01/07/2015,HOUSING MANAGEMENT SERVICES,Mitie Property Services (UK) Ltd_d,RESPONSIVE REPAIRS - MECHANICAL AND ELECTRICAL,"1,388.88","Works - Construction, Repair & Maint.Buildings.Construction"
01/07/2015,HOUSING MANAGEMENT SERVICES,Mitie Property Services (UK) Ltd_d,RESPONSIVE REPAIRS - MECHANICAL AND ELECTRICAL,"1,388.88","Works - Construction, Repair & Maint.Buildings.Construction"
01/07/2015,HOUSING MANAGEMENT SERVICES,Mitie Property Services (UK) Ltd_d,RESPONSIVE REPAIRS - MECHANICAL AND ELECTRICAL,"1,388.88","Works - Construction, Repair & Maint.Buildings.Construction"
01/07/2015,HOUSING MANAGEMENT SERVICES,Mitie Property Services (UK) Ltd_d,RESPONSIVE REPAIRS - MECHANICAL AND ELECTRICAL,"1,388.88","Works - Construction, Repair & Maint.Buildings.Construction"
01/07/2015,HOUSING MANAGEMENT SERVICES,Mitie Property Services (UK) Ltd_d,RESPONSIVE REPAIRS - MECHANICAL AND ELECTRICAL,"1,388.88","Works - Construction, Repair & Maint.Buildings.Construction"
01/07/2015,HOUSING MANAGEMENT SERVICES,Mears Ltd,RESPONSIVE REPAIRS - MECHANICAL AND ELECTRICAL,"1,388.36","Works - Construction, Repair & Maint.Buildings.Repair & Maintenance"
01/07/2015,HOUSING MANAGEMENT SERVICES,Mears Ltd,RESPONSIVE REPAIRS - BUILDING,"1,365.33","Works - Construction, Repair & Maint.Buildings.Repair & Maintenance"
01/07/2015,ADULT SOCIAL CARE,Spring Lake Care Home Ltd,CLIENT TRANSPORT,"1,363.50",Social Community Care Supplies & Service.Adult.Residential Care
01/07/2015,HOUSING MANAGEMENT SERVICES,Mears Ltd,RESPONSIVE REPAIRS - BUILDING,"1,363.38","Works - Construction, Repair & Maint.Buildings.Repair & Maintenance"
01/07/2015,HOUSING MANAGEMENT SERVICES,Morrison Facilities Services Ltd_d,RESPONSIVE REPAIRS - BUILDING,"1,350.44","Works - Construction, Repair & Maint.Buildings.Repair & Maintenance"
01/07/2015,MAJOR CAPITAL PROGRAMMES,Unique Office Solutions Ltd,"PURCHASE - EQUIPMENT, FURNITURE AND MATERIALS","1,350.08",Furniture & Soft Furnishings.Office Furniture.NA
01/07/2015,HOUSING MANAGEMENT SERVICES,Mears Ltd,RESPONSIVE REPAIRS - BUILDING,"1,347.36","Works - Construction, Repair & Maint.Buildings.Repair & Maintenance"
01/07/2015,HOUSING MANAGEMENT SERVICES,Mitie Property Services (UK) Ltd_d,RESPONSIVE REPAIRS - MECHANICAL AND ELECTRICAL,"1,346.86","Works - Construction, Repair & Maint.Buildings.Construction"
01/07/2015,MAJOR CAPITAL PROGRAMMES,Unique Office Solutions Ltd,"PURCHASE - EQUIPMENT, FURNITURE AND MATERIALS","1,346.40",Furniture & Soft Furnishings.Office Furniture.NA
01/07/2015,HOUSING MANAGEMENT SERVICES,Mears Ltd,RESPONSIVE REPAIRS - BUILDING,"1,326.00","Works - Construction, Repair & Maint.Buildings.Repair & Maintenance"
01/07/2015,HOUSING MANAGEMENT SERVICES,Mitie Property Services (UK) Ltd_d,RESPONSIVE REPAIRS - MECHANICAL AND ELECTRICAL,"1,318.00","Works - Construction, Repair & Maint.Buildings.Construction"
01/07/2015,HOUSING MANAGEMENT SERVICES,Mears Ltd,RESPONSIVE REPAIRS - BUILDING,"1,310.76","Works - Construction, Repair & Maint.Buildings.Repair & Maintenance"
01/07/2015,HOUSING NEEDS,Stenford Property Ltd,BED & BREAKFAST - PRIVATE CONTRACTORS PAYMENT,"1,302.00",Housing Management.Letting Agents.NA
01/07/2015,HOUSING MANAGEMENT SERVICES,Mears Ltd,RESPONSIVE REPAIRS - BUILDING,"1,300.90","Works - Construction, Repair & Maint.Buildings.Repair & Maintenance"
01/07/2015,HOUSING MANAGEMENT SERVICES,Mears Ltd,RESPONSIVE REPAIRS - MECHANICAL AND ELECTRICAL,"1,291.55","Works - Construction, Repair & Maint.Buildings.Repair & Maintenance"
01/07/2015,HOUSING MANAGEMENT SERVICES,Mears Ltd,RESPONSIVE REPAIRS - BUILDING,"1,276.11","Works - Construction, Repair & Maint.Buildings.Repair & Maintenance"
01/07/2015,HOUSING MANAGEMENT SERVICES,Oco Ltd_d,RESPONSIVE REPAIRS - MECHANICAL AND ELECTRICAL,"1,272.75",Building Construction Materials.Heating & Air Conditioning.NA
01/07/2015,FINANCE,TLT LLP,LEGAL FEES,"1,266.50",Legal Services.Advocacy.NA
01/07/2015,HOUSING MANAGEMENT SERVICES,Morrison Facilities Services Ltd_d,RESPONSIVE REPAIRS - MECHANICAL AND ELECTRICAL,"1,266.30","Works - Construction, Repair & Maint.Buildings.Repair & Maintenance"
01/07/2015,HOUSING MANAGEMENT SERVICES,Mears Ltd,RESPONSIVE REPAIRS - MECHANICAL AND ELECTRICAL,"1,262.81","Works - Construction, Repair & Maint.Buildings.Repair & Maintenance"
01/07/2015,HOUSING MANAGEMENT SERVICES,Mears Ltd,RESPONSIVE REPAIRS - BUILDING,"1,251.60","Works - Construction, Repair & Maint.Buildings.Repair & Maintenance"
01/07/2015,HOUSING MANAGEMENT SERVICES,Mitie Property Services (UK) Ltd_d,RESPONSIVE REPAIRS - MECHANICAL AND ELECTRICAL,"1,244.25","Works - Construction, Repair & Maint.Buildings.Construction"
01/07/2015,HOUSING MANAGEMENT SERVICES,Oco Ltd_d,RESPONSIVE REPAIRS - MECHANICAL AND ELECTRICAL,"1,238.81",Building Construction Materials.Heating & Air Conditioning.NA
01/07/2015,HOUSING MANAGEMENT SERVICES,Morrison Facilities Services Ltd_d,RESPONSIVE REPAIRS - BUILDING,"1,227.59","Works - Construction, Repair & Maint.Buildings.Repair & Maintenance"
01/07/2015,"STRATEGY & COMMISSIONING - CHILDREN, DISABILITIES & PUBLIC HEALTH",Southwark Newspaper Ltd,"ADVERTISING, PUBLICITY AND MARKETING","1,225.00",Facilities & Management Services.Advertising.Statutory
01/07/2015,HOUSING MANAGEMENT SERVICES,Morrison Facilities Services Ltd_d,RESPONSIVE REPAIRS - BUILDING,"1,222.77","Works - Construction, Repair & Maint.Buildings.Repair & Maintenance"
01/07/2015,HOUSING MANAGEMENT SERVICES,Oco Ltd_d,RESPONSIVE REPAIRS - MECHANICAL AND ELECTRICAL,"1,213.56",Building Construction Materials.Heating & Air Conditioning.NA
01/07/2015,HOUSING MANAGEMENT SERVICES,Mears Ltd,RESPONSIVE REPAIRS - BUILDING,"1,208.16","Works - Construction, Repair & Maint.Buildings.Repair & Maintenance"
01/07/2015,HOUSING MANAGEMENT SERVICES,Mears Ltd,RESPONSIVE REPAIRS - BUILDING,"1,208.16","Works - Construction, Repair & Maint.Buildings.Repair & Maintenance"
01/07/2015,HOUSING MANAGEMENT SERVICES,Mears Ltd,RESPONSIVE REPAIRS - BUILDING,"1,202.99","Works - Construction, Repair & Maint.Buildings.Repair & Maintenance"
01/07/2015,CHILDREN'S SERVICES,John Dowsett Psychology Ltd,LEGAL FEES,"1,196.40",Legal Services.Specialist Support.NA
01/07/2015,HOUSING MANAGEMENT SERVICES,Mears Ltd,RESPONSIVE REPAIRS - BUILDING,"1,195.80","Works - Construction, Repair & Maint.Buildings.Repair & Maintenance"
01/07/2015,HOUSING MANAGEMENT SERVICES,Mears Ltd,RESPONSIVE REPAIRS - MECHANICAL AND ELECTRICAL,"1,187.50","Works - Construction, Repair & Maint.Buildings.Repair & Maintenance"
01/07/2015,"REGENERATION, PLANNING & NEIGHBOURHOODS",Climate Consulting Ltd,CONSULTANCY FEES,"1,185.80",Consultancy.Technical & Feasibility.NA
01/07/2015,HOUSING MANAGEMENT SERVICES,Mears Ltd,RESPONSIVE REPAIRS - BUILDING,"1,165.14","Works - Construction, Repair & Maint.Buildings.Repair & Maintenance"
01/07/2015,HOUSING MANAGEMENT SERVICES,Mears Ltd,RESPONSIVE REPAIRS - BUILDING,"1,157.92","Works - Construction, Repair & Maint.Buildings.Repair & Maintenance"
01/07/2015,HOUSING MANAGEMENT SERVICES,Mears Ltd,RESPONSIVE REPAIRS - BUILDING,"1,153.86","Works - Construction, Repair & Maint.Buildings.Repair & Maintenance"
01/07/2015,HOUSING MANAGEMENT SERVICES,Mears Ltd,RESPONSIVE REPAIRS - BUILDING,"1,153.62","Works - Construction, Repair & Maint.Buildings.Repair & Maintenance"
01/07/2015,CHILDREN'S SERVICES,Cellmark Ltd,PAYMENT TO HEALTH AUTHORITIES,"1,149.00",Healthcare.Services.NA
01/07/2015,HOUSING MANAGEMENT SERVICES,Oco Ltd_d,RESPONSIVE REPAIRS - MECHANICAL AND ELECTRICAL,"1,141.95",Building Construction Materials.Heating & Air Conditioning.NA
01/07/2015,HOUSING MANAGEMENT SERVICES,Mears Ltd,RESPONSIVE REPAIRS - MECHANICAL AND ELECTRICAL,"1,125.50","Works - Construction, Repair & Maint.Buildings.Repair & Maintenance"
01/07/2015,HOUSING MANAGEMENT SERVICES,Mears Ltd,RESPONSIVE REPAIRS - BUILDING,"1,122.00","Works - Construction, Repair & Maint.Buildings.Repair & Maintenance"
01/07/2015,HOUSING MANAGEMENT SERVICES,Mears Ltd,RESPONSIVE REPAIRS - BUILDING,"1,117.20","Works - Construction, Repair & Maint.Buildings.Repair & Maintenance"
01/07/2015,HOUSING MANAGEMENT SERVICES,Mitie Property Services (UK) Ltd_d,RESPONSIVE REPAIRS - MECHANICAL AND ELECTRICAL,"1,102.05","Works - Construction, Repair & Maint.Buildings.Construction"
01/07/2015,HOUSING MANAGEMENT SERVICES,Mears Ltd,RESPONSIVE REPAIRS - BUILDING,"1,099.01","Works - Construction, Repair & Maint.Buildings.Repair & Maintenance"
01/07/2015,HOUSING MANAGEMENT SERVICES,Mears Ltd,RESPONSIVE REPAIRS - BUILDING,"1,099.01","Works - Construction, Repair & Maint.Buildings.Repair & Maintenance"
01/07/2015,HOUSING MANAGEMENT SERVICES,Mears Ltd,RESPONSIVE REPAIRS - BUILDING,"1,099.01","Works - Construction, Repair & Maint.Buildings.Repair & Maintenance"
01/07/2015,HOUSING MANAGEMENT SERVICES,Mears Ltd,RESPONSIVE REPAIRS - BUILDING,"1,099.01","Works - Construction, Repair & Maint.Buildings.Repair & Maintenance"
01/07/2015,HOUSING MANAGEMENT SERVICES,Mears Ltd,RESPONSIVE REPAIRS - BUILDING,"1,099.01","Works - Construction, Repair & Maint.Buildings.Repair & Maintenance"
01/07/2015,HOUSING MANAGEMENT SERVICES,Mears Ltd,RESPONSIVE REPAIRS - BUILDING,"1,099.01","Works - Construction, Repair & Maint.Buildings.Repair & Maintenance"
01/07/2015,HOUSING MANAGEMENT SERVICES,Mears Ltd,RESPONSIVE REPAIRS - BUILDING,"1,099.01","Works - Construction, Repair & Maint.Buildings.Repair & Maintenance"
01/07/2015,HOUSING MANAGEMENT SERVICES,Mears Ltd,RESPONSIVE REPAIRS - BUILDING,"1,099.01","Works - Construction, Repair & Maint.Buildings.Repair & Maintenance"
01/07/2015,HOUSING MANAGEMENT SERVICES,Mears Ltd,RESPONSIVE REPAIRS - BUILDING,"1,099.01","Works - Construction, Repair & Maint.Buildings.Repair & Maintenance"
01/07/2015,HOUSING MANAGEMENT SERVICES,Mears Ltd,RESPONSIVE REPAIRS - BUILDING,"1,099.01","Works - Construction, Repair & Maint.Buildings.Repair & Maintenance"
01/07/2015,HOUSING MANAGEMENT SERVICES,Mears Ltd,RESPONSIVE REPAIRS - BUILDING,"1,099.01","Works - Construction, Repair & Maint.Buildings.Repair & Maintenance"
01/07/2015,HOUSING MANAGEMENT SERVICES,Mears Ltd,RESPONSIVE REPAIRS - BUILDING,"1,099.01","Works - Construction, Repair & Maint.Buildings.Repair & Maintenance"
01/07/2015,HOUSING MANAGEMENT SERVICES,Mears Ltd,RESPONSIVE REPAIRS - BUILDING,"1,099.01","Works - Construction, Repair & Maint.Buildings.Repair & Maintenance"
01/07/2015,HOUSING MANAGEMENT SERVICES,Mears Ltd,RESPONSIVE REPAIRS - BUILDING,"1,099.01","Works - Construction, Repair & Maint.Buildings.Repair & Maintenance"
01/07/2015,HOUSING MANAGEMENT SERVICES,Mears Ltd,RESPONSIVE REPAIRS - BUILDING,"1,099.01","Works - Construction, Repair & Maint.Buildings.Repair & Maintenance"
01/07/2015,HOUSING MANAGEMENT SERVICES,Mears Ltd,RESPONSIVE REPAIRS - BUILDING,"1,099.01","Works - Construction, Repair & Maint.Buildings.Repair & Maintenance"
01/07/2015,HOUSING MANAGEMENT SERVICES,Mears Ltd,RESPONSIVE REPAIRS - BUILDING,"1,099.01","Works - Construction, Repair & Maint.Buildings.Repair & Maintenance"
01/07/2015,HOUSING MANAGEMENT SERVICES,Mears Ltd,RESPONSIVE REPAIRS - BUILDING,"1,099.01","Works - Construction, Repair & Maint.Buildings.Repair & Maintenance"
01/07/2015,HOUSING MANAGEMENT SERVICES,Mears Ltd,RESPONSIVE REPAIRS - BUILDING,"1,099.01","Works - Construction, Repair & Maint.Buildings.Repair & Maintenance"
01/07/2015,HOUSING MANAGEMENT SERVICES,Mears Ltd,RESPONSIVE REPAIRS - BUILDING,"1,099.01","Works - Construction, Repair & Maint.Buildings.Repair & Maintenance"
01/07/2015,HOUSING MANAGEMENT SERVICES,Mears Ltd,RESPONSIVE REPAIRS - BUILDING,"1,099.01","Works - Construction, Repair & Maint.Buildings.Repair & Maintenance"
01/07/2015,HOUSING MANAGEMENT SERVICES,Mears Ltd,RESPONSIVE REPAIRS - BUILDING,"1,099.01","Works - Construction, Repair & Maint.Buildings.Repair & Maintenance"
01/07/2015,HOUSING MANAGEMENT SERVICES,Mears Ltd,RESPONSIVE REPAIRS - BUILDING,"1,099.01","Works - Construction, Repair & Maint.Buildings.Repair & Maintenance"
01/07/2015,HOUSING MANAGEMENT SERVICES,Mears Ltd,RESPONSIVE REPAIRS - BUILDING,"1,099.01","Works - Construction, Repair & Maint.Buildings.Repair & Maintenance"
01/07/2015,HOUSING MANAGEMENT SERVICES,Mears Ltd,RESPONSIVE REPAIRS - BUILDING,"1,099.01","Works - Construction, Repair & Maint.Buildings.Repair & Maintenance"
01/07/2015,HOUSING MANAGEMENT SERVICES,Mears Ltd,RESPONSIVE REPAIRS - BUILDING,"1,099.01","Works - Construction, Repair & Maint.Buildings.Repair & Maintenance"
01/07/2015,HOUSING MANAGEMENT SERVICES,Mears Ltd,RESPONSIVE REPAIRS - BUILDING,"1,099.01","Works - Construction, Repair & Maint.Buildings.Repair & Maintenance"
01/07/2015,HOUSING MANAGEMENT SERVICES,Mears Ltd,RESPONSIVE REPAIRS - BUILDING,"1,099.01","Works - Construction, Repair & Maint.Buildings.Repair & Maintenance"
01/07/2015,HOUSING MANAGEMENT SERVICES,Mears Ltd,RESPONSIVE REPAIRS - BUILDING,"1,099.01","Works - Construction, Repair & Maint.Buildings.Repair & Maintenance"
01/07/2015,HOUSING MANAGEMENT SERVICES,Mears Ltd,RESPONSIVE REPAIRS - BUILDING,"1,099.01","Works - Construction, Repair & Maint.Buildings.Repair & Maintenance"
01/07/2015,HOUSING MANAGEMENT SERVICES,Mears Ltd,RESPONSIVE REPAIRS - BUILDING,"1,099.01","Works - Construction, Repair & Maint.Buildings.Repair & Maintenance"
01/07/2015,HOUSING MANAGEMENT SERVICES,Mears Ltd,RESPONSIVE REPAIRS - BUILDING,"1,099.01","Works - Construction, Repair & Maint.Buildings.Repair & Maintenance"
01/07/2015,HOUSING MANAGEMENT SERVICES,Mears Ltd,RESPONSIVE REPAIRS - BUILDING,"1,099.01","Works - Construction, Repair & Maint.Buildings.Repair & Maintenance"
01/07/2015,HOUSING MANAGEMENT SERVICES,Mears Ltd,RESPONSIVE REPAIRS - BUILDING,"1,099.01","Works - Construction, Repair & Maint.Buildings.Repair & Maintenance"
01/07/2015,HOUSING MANAGEMENT SERVICES,Mears Ltd,RESPONSIVE REPAIRS - BUILDING,"1,099.01","Works - Construction, Repair & Maint.Buildings.Repair & Maintenance"
01/07/2015,HOUSING MANAGEMENT SERVICES,Mears Ltd,RESPONSIVE REPAIRS - BUILDING,"1,099.01","Works - Construction, Repair & Maint.Buildings.Repair & Maintenance"
01/07/2015,HOUSING MANAGEMENT SERVICES,Mitie Property Services (UK) Ltd_d,RESPONSIVE REPAIRS - MECHANICAL AND ELECTRICAL,"1,093.40","Works - Construction, Repair & Maint.Buildings.Construction"
01/07/2015,HOUSING MANAGEMENT SERVICES,Mears Ltd,RESPONSIVE REPAIRS - BUILDING,"1,092.30","Works - Construction, Repair & Maint.Buildings.Repair & Maintenance"
01/07/2015,HOUSING MANAGEMENT SERVICES,Mears Ltd,RESPONSIVE REPAIRS - BUILDING,"1,092.30","Works - Construction, Repair & Maint.Buildings.Repair & Maintenance"
01/07/2015,CORPORATE AFFAIRS,Legal Services-Urgent Payments,LEGAL FEES,"1,090.00",Legal Services.Advocacy.NA
01/07/2015,HOUSING MANAGEMENT SERVICES,Mears Ltd,RESPONSIVE REPAIRS - BUILDING,"1,087.05","Works - Construction, Repair & Maint.Buildings.Repair & Maintenance"
01/07/2015,HOUSING MANAGEMENT SERVICES,Mears Ltd,RESPONSIVE REPAIRS - BUILDING,"1,087.05","Works - Construction, Repair & Maint.Buildings.Repair & Maintenance"
01/07/2015,HOUSING MANAGEMENT SERVICES,Mears Ltd,RESPONSIVE REPAIRS - BUILDING,"1,087.05","Works - Construction, Repair & Maint.Buildings.Repair & Maintenance"
01/07/2015,HOUSING MANAGEMENT SERVICES,Mears Ltd,RESPONSIVE REPAIRS - BUILDING,"1,087.05","Works - Construction, Repair & Maint.Buildings.Repair & Maintenance"
01/07/2015,HOUSING MANAGEMENT SERVICES,Mears Ltd,RESPONSIVE REPAIRS - BUILDING,"1,087.05","Works - Construction, Repair & Maint.Buildings.Repair & Maintenance"
01/07/2015,HOUSING MANAGEMENT SERVICES,Mears Ltd,RESPONSIVE REPAIRS - BUILDING,"1,081.25","Works - Construction, Repair & Maint.Buildings.Repair & Maintenance"
01/07/2015,HOUSING MANAGEMENT SERVICES,Mears Ltd,RESPONSIVE REPAIRS - BUILDING,"1,064.78","Works - Construction, Repair & Maint.Buildings.Repair & Maintenance"
01/07/2015,HOUSING MANAGEMENT SERVICES,Mears Ltd,RESPONSIVE REPAIRS - BUILDING,"1,064.78","Works - Construction, Repair & Maint.Buildings.Repair & Maintenance"
01/07/2015,HOUSING MANAGEMENT SERVICES,Mears Ltd,RESPONSIVE REPAIRS - BUILDING,"1,064.78","Works - Construction, Repair & Maint.Buildings.Repair & Maintenance"
01/07/2015,HOUSING MANAGEMENT SERVICES,Oco Ltd_d,RESPONSIVE REPAIRS - MECHANICAL AND ELECTRICAL,"1,064.16",Building Construction Materials.Heating & Air Conditioning.NA
01/07/2015,HOUSING MANAGEMENT SERVICES,Oco Ltd_d,RESPONSIVE REPAIRS - MECHANICAL AND ELECTRICAL,"1,064.16",Building Construction Materials.Heating & Air Conditioning.NA
01/07/2015,HOUSING MANAGEMENT SERVICES,Mears Ltd,RESPONSIVE REPAIRS - BUILDING,"1,058.40","Works - Construction, Repair & Maint.Buildings.Repair & Maintenance"
01/07/2015,"REGENERATION, PLANNING & NEIGHBOURHOODS",Moon Beever Solicitors,LEGAL FEES,"1,055.00",Legal Services.General Support.NA
01/07/2015,HOUSING MANAGEMENT SERVICES,Morrison Facilities Services Ltd_d,RESPONSIVE REPAIRS - BUILDING,"1,052.99","Works - Construction, Repair & Maint.Buildings.Repair & Maintenance"
01/07/2015,HOUSING MANAGEMENT SERVICES,Mears Ltd,RESPONSIVE REPAIRS - MECHANICAL AND ELECTRICAL,"1,050.00","Works - Construction, Repair & Maint.Buildings.Repair & Maintenance"
01/07/2015,HOUSING MANAGEMENT SERVICES,Mears Ltd,RESPONSIVE REPAIRS - MECHANICAL AND ELECTRICAL,"1,027.68","Works - Construction, Repair & Maint.Buildings.Repair & Maintenance"
01/07/2015,HOUSING MANAGEMENT SERVICES,Morrison Facilities Services Ltd_d,RESPONSIVE REPAIRS - BUILDING,"1,025.98","Works - Construction, Repair & Maint.Buildings.Repair & Maintenance"
01/07/2015,HOUSING MANAGEMENT SERVICES,Oco Ltd_d,RESPONSIVE REPAIRS - MECHANICAL AND ELECTRICAL,"1,023.00",Building Construction Materials.Heating & Air Conditioning.NA
01/07/2015,HOUSING MANAGEMENT SERVICES,Mears Ltd,RESPONSIVE REPAIRS - MECHANICAL AND ELECTRICAL,"1,017.60","Works - Construction, Repair & Maint.Buildings.Repair & Maintenance"
01/07/2015,HOUSING MANAGEMENT SERVICES,Mitie Property Services (UK) Ltd_d,RESPONSIVE REPAIRS - MECHANICAL AND ELECTRICAL,"1,010.22","Works - Construction, Repair & Maint.Buildings.Construction"
01/07/2015,HOUSING MANAGEMENT SERVICES,Mears Ltd,RESPONSIVE REPAIRS - MECHANICAL AND ELECTRICAL,"1,007.53","Works - Construction, Repair & Maint.Buildings.Repair & Maintenance"
01/07/2015,HOUSING MANAGEMENT SERVICES,Mears Ltd,RESPONSIVE REPAIRS - MECHANICAL AND ELECTRICAL,"1,007.53","Works - Construction, Repair & Maint.Buildings.Repair & Maintenance"
01/07/2015,HOUSING MANAGEMENT SERVICES,Mears Ltd,RESPONSIVE REPAIRS - BUILDING,993.40,"Works - Construction, Repair & Maint.Buildings.Repair & Maintenance"
01/07/2015,CORPORATE ITEMS,Morrison Facilities Services Ltd_d,RESPONSIVE REPAIRS - BUILDING,985.50,"Works - Construction, Repair & Maint.Buildings.Repair & Maintenance"
01/07/2015,HOUSING MANAGEMENT SERVICES,Mitie Property Services (UK) Ltd_d,RESPONSIVE REPAIRS - MECHANICAL AND ELECTRICAL,968.44,"Works - Construction, Repair & Maint.Buildings.Construction"
01/07/2015,HOUSING MANAGEMENT SERVICES,Mears Ltd,RESPONSIVE REPAIRS - BUILDING,968.40,"Works - Construction, Repair & Maint.Buildings.Repair & Maintenance"
01/07/2015,HOUSING MANAGEMENT SERVICES,Morrison Facilities Services Ltd_d,RESPONSIVE REPAIRS - BUILDING,967.36,"Works - Construction, Repair & Maint.Buildings.Repair & Maintenance"
01/07/2015,HOUSING MANAGEMENT SERVICES,Mears Ltd,RESPONSIVE REPAIRS - BUILDING,964.60,"Works - Construction, Repair & Maint.Buildings.Repair & Maintenance"
01/07/2015,HOUSING MANAGEMENT SERVICES,Mears Ltd,RESPONSIVE REPAIRS - BUILDING,952.24,"Works - Construction, Repair & Maint.Buildings.Repair & Maintenance"
01/07/2015,HOUSING MANAGEMENT SERVICES,Morrison Facilities Services Ltd_d,RESPONSIVE REPAIRS - BUILDING,950.18,"Works - Construction, Repair & Maint.Buildings.Repair & Maintenance"
01/07/2015,HOUSING MANAGEMENT SERVICES,Mears Ltd,RESPONSIVE REPAIRS - BUILDING,950.00,"Works - Construction, Repair & Maint.Buildings.Repair & Maintenance"
01/07/2015,HOUSING MANAGEMENT SERVICES,Precision Lift Services Ltd_d,RESPONSIVE REPAIRS - MECHANICAL AND ELECTRICAL,948.99,Facilities & Management Services.Lifts.NA
01/07/2015,HOUSING MANAGEMENT SERVICES,Mears Ltd,DECORATION,943.95,"Works - Construction, Repair & Maint.Buildings.Repair & Maintenance"
01/07/2015,HOUSING MANAGEMENT SERVICES,Mears Ltd,RESPONSIVE REPAIRS - BUILDING,943.55,"Works - Construction, Repair & Maint.Buildings.Repair & Maintenance"
01/07/2015,HOUSING MANAGEMENT SERVICES,Mears Ltd,RESPONSIVE REPAIRS - BUILDING,941.28,"Works - Construction, Repair & Maint.Buildings.Repair & Maintenance"
01/07/2015,HOUSING MANAGEMENT SERVICES,Joanne M Hall,"PURCHASE - EQUIPMENT, FURNITURE AND MATERIALS",927.60,Domestic Goods.Commercial.NA
01/07/2015,MAJOR CAPITAL PROGRAMMES,Unique Office Solutions Ltd,"PURCHASE - EQUIPMENT, FURNITURE AND MATERIALS",912.00,Furniture & Soft Furnishings.Office Furniture.NA
01/07/2015,HOUSING MANAGEMENT SERVICES,Mears Ltd,RESPONSIVE REPAIRS - MECHANICAL AND ELECTRICAL,900.00,"Works - Construction, Repair & Maint.Buildings.Repair & Maintenance"
01/07/2015,HOUSING MANAGEMENT SERVICES,Mears Ltd,RESPONSIVE REPAIRS - BUILDING,898.37,"Works - Construction, Repair & Maint.Buildings.Repair & Maintenance"
01/07/2015,HOUSING MANAGEMENT SERVICES,Morrison Facilities Services Ltd_d,RESPONSIVE REPAIRS - MECHANICAL AND ELECTRICAL,893.94,"Works - Construction, Repair & Maint.Buildings.Repair & Maintenance"
01/07/2015,HOUSING MANAGEMENT SERVICES,Mitie Property Services (UK) Ltd_d,RESPONSIVE REPAIRS - MECHANICAL AND ELECTRICAL,888.75,"Works - Construction, Repair & Maint.Buildings.Construction"
01/07/2015,HOUSING MANAGEMENT SERVICES,Mears Ltd,RESPONSIVE REPAIRS - BUILDING,887.75,"Works - Construction, Repair & Maint.Buildings.Repair & Maintenance"
01/07/2015,HOUSING MANAGEMENT SERVICES,Mears Ltd,RESPONSIVE REPAIRS - BUILDING,887.50,"Works - Construction, Repair & Maint.Buildings.Repair & Maintenance"
01/07/2015,HOUSING MANAGEMENT SERVICES,Mears Ltd,RESPONSIVE REPAIRS - BUILDING,887.50,"Works - Construction, Repair & Maint.Buildings.Repair & Maintenance"
01/07/2015,CORPORATE ITEMS,Morrison Facilities Services Ltd_d,RESPONSIVE REPAIRS - BUILDING,885.98,"Works - Construction, Repair & Maint.Buildings.Repair & Maintenance"
01/07/2015,CORPORATE ITEMS,Mears Ltd,MISCELLANEOUS EXPENSES,883.66,"Works - Construction, Repair & Maint.Buildings.Repair & Maintenance"
01/07/2015,HOUSING MANAGEMENT SERVICES,Mears Ltd,DECORATION,872.89,"Works - Construction, Repair & Maint.Buildings.Repair & Maintenance"
01/07/2015,HOUSING MANAGEMENT SERVICES,Mitie Property Services (UK) Ltd_d,CYCLICAL/PLANNED MAINTENANCE - MECHANICAL AND ELECTRICAL,855.82,"Works - Construction, Repair & Maint.Buildings.Construction"
01/07/2015,HOUSING MANAGEMENT SERVICES,Mitie Property Services (UK) Ltd_d,CYCLICAL/PLANNED MAINTENANCE - MECHANICAL AND ELECTRICAL,855.82,"Works - Construction, Repair & Maint.Buildings.Construction"
01/07/2015,HOUSING MANAGEMENT SERVICES,Mitie Property Services (UK) Ltd_d,CYCLICAL/PLANNED MAINTENANCE - MECHANICAL AND ELECTRICAL,855.82,"Works - Construction, Repair & Maint.Buildings.Construction"
01/07/2015,HOUSING MANAGEMENT SERVICES,Mitie Property Services (UK) Ltd_d,CYCLICAL/PLANNED MAINTENANCE - MECHANICAL AND ELECTRICAL,855.82,"Works - Construction, Repair & Maint.Buildings.Construction"
01/07/2015,HOUSING MANAGEMENT SERVICES,Mitie Property Services (UK) Ltd_d,CYCLICAL/PLANNED MAINTENANCE - MECHANICAL AND ELECTRICAL,855.82,"Works - Construction, Repair & Maint.Buildings.Construction"
01/07/2015,HOUSING MANAGEMENT SERVICES,Mitie Property Services (UK) Ltd_d,CYCLICAL/PLANNED MAINTENANCE - MECHANICAL AND ELECTRICAL,855.82,"Works - Construction, Repair & Maint.Buildings.Construction"
01/07/2015,HOUSING MANAGEMENT SERVICES,Mears Ltd,RESPONSIVE REPAIRS - BUILDING,850.74,"Works - Construction, Repair & Maint.Buildings.Repair & Maintenance"
01/07/2015,CORPORATE ITEMS,Morrison Facilities Services Ltd_d,RESPONSIVE REPAIRS - BUILDING,846.66,"Works - Construction, Repair & Maint.Buildings.Repair & Maintenance"
01/07/2015,HOUSING MANAGEMENT SERVICES,Elaine Janet Cousins,"PURCHASE - EQUIPMENT, FURNITURE AND MATERIALS",840.66,Domestic Goods.Commercial.NA
01/07/2015,HOUSING MANAGEMENT SERVICES,Apex Lift & Escalator Engineers Ltd_d,RESPONSIVE REPAIRS - MECHANICAL AND ELECTRICAL,836.73,Facilities & Management Services.Lifts.NA
01/07/2015,HOUSING MANAGEMENT SERVICES,Mitie Property Services (UK) Ltd_d,RESPONSIVE REPAIRS - MECHANICAL AND ELECTRICAL,832.02,"Works - Construction, Repair & Maint.Buildings.Construction"
01/07/2015,HOUSING MANAGEMENT SERVICES,Mears Ltd,RESPONSIVE REPAIRS - MECHANICAL AND ELECTRICAL,827.40,"Works - Construction, Repair & Maint.Buildings.Repair & Maintenance"
01/07/2015,HOUSING MANAGEMENT SERVICES,Mitie Property Services (UK) Ltd_d,RESPONSIVE REPAIRS - MECHANICAL AND ELECTRICAL,811.32,"Works - Construction, Repair & Maint.Buildings.Construction"
01/07/2015,HOUSING MANAGEMENT SERVICES,Mears Ltd,RESPONSIVE REPAIRS - BUILDING,810.00,"Works - Construction, Repair & Maint.Buildings.Repair & Maintenance"
01/07/2015,HOUSING MANAGEMENT SERVICES,Mears Ltd,RESPONSIVE REPAIRS - BUILDING,801.99,"Works - Construction, Repair & Maint.Buildings.Repair & Maintenance"
01/07/2015,CHILDREN'S SERVICES,Miss Georgina Clark,LEGAL FEES,800.00,Legal Services.Legal Opinion.NA
01/07/2015,HOUSING MANAGEMENT SERVICES,Mears Ltd,RESPONSIVE REPAIRS - MECHANICAL AND ELECTRICAL,794.08,"Works - Construction, Repair & Maint.Buildings.Repair & Maintenance"
01/07/2015,HOUSING MANAGEMENT SERVICES,Mitie Property Services (UK) Ltd_d,RESPONSIVE REPAIRS - MECHANICAL AND ELECTRICAL,781.00,"Works - Construction, Repair & Maint.Buildings.Construction"
01/07/2015,HOUSING MANAGEMENT SERVICES,Mears Ltd,RESPONSIVE REPAIRS - BUILDING,777.36,"Works - Construction, Repair & Maint.Buildings.Repair & Maintenance"
01/07/2015,HOUSING MANAGEMENT SERVICES,Morrison Facilities Services Ltd_d,RESPONSIVE REPAIRS - BUILDING,771.24,"Works - Construction, Repair & Maint.Buildings.Repair & Maintenance"
01/07/2015,HOUSING MANAGEMENT SERVICES,Mears Ltd,RESPONSIVE REPAIRS - BUILDING,768.90,"Works - Construction, Repair & Maint.Buildings.Repair & Maintenance"
01/07/2015,HOUSING MANAGEMENT SERVICES,Mears Ltd,RESPONSIVE REPAIRS - MECHANICAL AND ELECTRICAL,763.20,"Works - Construction, Repair & Maint.Buildings.Repair & Maintenance"
01/07/2015,HOUSING MANAGEMENT SERVICES,Mears Ltd,RESPONSIVE REPAIRS - BUILDING,762.23,"Works - Construction, Repair & Maint.Buildings.Repair & Maintenance"
01/07/2015,HOUSING MANAGEMENT SERVICES,Mears Ltd,RESPONSIVE REPAIRS - BUILDING,758.10,"Works - Construction, Repair & Maint.Buildings.Repair & Maintenance"
01/07/2015,HOUSING MANAGEMENT SERVICES,Mears Ltd,RESPONSIVE REPAIRS - MECHANICAL AND ELECTRICAL,750.72,"Works - Construction, Repair & Maint.Buildings.Repair & Maintenance"
01/07/2015,HOUSING MANAGEMENT SERVICES,Mears Ltd,RESPONSIVE REPAIRS - BUILDING,750.00,"Works - Construction, Repair & Maint.Buildings.Repair & Maintenance"
01/07/2015,HOUSING MANAGEMENT SERVICES,Mears Ltd,RESPONSIVE REPAIRS - BUILDING,750.00,"Works - Construction, Repair & Maint.Buildings.Repair & Maintenance"
01/07/2015,HOUSING MANAGEMENT SERVICES,Mears Ltd,RESPONSIVE REPAIRS - MECHANICAL AND ELECTRICAL,750.00,"Works - Construction, Repair & Maint.Buildings.Repair & Maintenance"
01/07/2015,CHILDREN'S SERVICES,Tim Parker,LEGAL FEES,750.00,Legal Services.Legal Opinion.NA
01/07/2015,HOUSING MANAGEMENT SERVICES,Mears Ltd,RESPONSIVE REPAIRS - MECHANICAL AND ELECTRICAL,744.66,"Works - Construction, Repair & Maint.Buildings.Repair & Maintenance"
01/07/2015,"STRATEGY & COMMISSIONING - CHILDREN, DISABILITIES & PUBLIC HEALTH",New Park Pharmacy Ltd,HIRE OF ROOMS AND HALLS INCOME - NON VATABLE,741.75,Facilities & Management Services.Room Hire.NA
01/07/2015,HOUSING MANAGEMENT SERVICES,Mears Ltd,RESPONSIVE REPAIRS - BUILDING,730.38,"Works - Construction, Repair & Maint.Buildings.Repair & Maintenance"
01/07/2015,HOUSING MANAGEMENT SERVICES,Mears Ltd,RESPONSIVE REPAIRS - BUILDING,728.20,"Works - Construction, Repair & Maint.Buildings.Repair & Maintenance"
01/07/2015,HOUSING MANAGEMENT SERVICES,Mears Ltd,RESPONSIVE REPAIRS - BUILDING,728.20,"Works - Construction, Repair & Maint.Buildings.Repair & Maintenance"
01/07/2015,HOUSING MANAGEMENT SERVICES,Mears Ltd,RESPONSIVE REPAIRS - BUILDING,728.20,"Works - Construction, Repair & Maint.Buildings.Repair & Maintenance"
01/07/2015,HOUSING MANAGEMENT SERVICES,Mears Ltd,RESPONSIVE REPAIRS - BUILDING,727.10,"Works - Construction, Repair & Maint.Buildings.Repair & Maintenance"
01/07/2015,HOUSING MANAGEMENT SERVICES,Mears Ltd,RESPONSIVE REPAIRS - BUILDING,723.74,"Works - Construction, Repair & Maint.Buildings.Repair & Maintenance"
01/07/2015,HOUSING MANAGEMENT SERVICES,Mears Ltd,RESPONSIVE REPAIRS - BUILDING,723.74,"Works - Construction, Repair & Maint.Buildings.Repair & Maintenance"
01/07/2015,HOUSING MANAGEMENT SERVICES,Mears Ltd,RESPONSIVE REPAIRS - BUILDING,723.74,"Works - Construction, Repair & Maint.Buildings.Repair & Maintenance"
01/07/2015,HOUSING MANAGEMENT SERVICES,Mears Ltd,RESPONSIVE REPAIRS - BUILDING,723.74,"Works - Construction, Repair & Maint.Buildings.Repair & Maintenance"
01/07/2015,HOUSING MANAGEMENT SERVICES,Mears Ltd,RESPONSIVE REPAIRS - BUILDING,723.74,"Works - Construction, Repair & Maint.Buildings.Repair & Maintenance"
01/07/2015,HOUSING MANAGEMENT SERVICES,Mears Ltd,RESPONSIVE REPAIRS - BUILDING,723.74,"Works - Construction, Repair & Maint.Buildings.Repair & Maintenance"
01/07/2015,HOUSING MANAGEMENT SERVICES,Mears Ltd,RESPONSIVE REPAIRS - BUILDING,723.74,"Works - Construction, Repair & Maint.Buildings.Repair & Maintenance"
01/07/2015,HOUSING MANAGEMENT SERVICES,Mears Ltd,RESPONSIVE REPAIRS - BUILDING,723.74,"Works - Construction, Repair & Maint.Buildings.Repair & Maintenance"
01/07/2015,HOUSING MANAGEMENT SERVICES,Mears Ltd,RESPONSIVE REPAIRS - BUILDING,723.74,"Works - Construction, Repair & Maint.Buildings.Repair & Maintenance"
01/07/2015,HOUSING MANAGEMENT SERVICES,Mears Ltd,RESPONSIVE REPAIRS - BUILDING,723.74,"Works - Construction, Repair & Maint.Buildings.Repair & Maintenance"
01/07/2015,HOUSING MANAGEMENT SERVICES,Mears Ltd,RESPONSIVE REPAIRS - BUILDING,723.74,"Works - Construction, Repair & Maint.Buildings.Repair & Maintenance"
01/07/2015,HOUSING MANAGEMENT SERVICES,Mears Ltd,RESPONSIVE REPAIRS - BUILDING,723.74,"Works - Construction, Repair & Maint.Buildings.Repair & Maintenance"
01/07/2015,HOUSING MANAGEMENT SERVICES,Mears Ltd,RESPONSIVE REPAIRS - BUILDING,723.74,"Works - Construction, Repair & Maint.Buildings.Repair & Maintenance"
01/07/2015,HOUSING MANAGEMENT SERVICES,Mears Ltd,RESPONSIVE REPAIRS - BUILDING,723.74,"Works - Construction, Repair & Maint.Buildings.Repair & Maintenance"
01/07/2015,HOUSING MANAGEMENT SERVICES,Mears Ltd,RESPONSIVE REPAIRS - BUILDING,723.74,"Works - Construction, Repair & Maint.Buildings.Repair & Maintenance"
01/07/2015,HOUSING MANAGEMENT SERVICES,Mears Ltd,RESPONSIVE REPAIRS - BUILDING,723.74,"Works - Construction, Repair & Maint.Buildings.Repair & Maintenance"
01/07/2015,HOUSING MANAGEMENT SERVICES,Mears Ltd,RESPONSIVE REPAIRS - BUILDING,723.74,"Works - Construction, Repair & Maint.Buildings.Repair & Maintenance"
01/07/2015,HOUSING MANAGEMENT SERVICES,Mears Ltd,RESPONSIVE REPAIRS - BUILDING,723.74,"Works - Construction, Repair & Maint.Buildings.Repair & Maintenance"
01/07/2015,HOUSING MANAGEMENT SERVICES,Mears Ltd,RESPONSIVE REPAIRS - BUILDING,723.74,"Works - Construction, Repair & Maint.Buildings.Repair & Maintenance"
01/07/2015,HOUSING MANAGEMENT SERVICES,Mears Ltd,RESPONSIVE REPAIRS - BUILDING,723.74,"Works - Construction, Repair & Maint.Buildings.Repair & Maintenance"
01/07/2015,HOUSING MANAGEMENT SERVICES,Mears Ltd,RESPONSIVE REPAIRS - BUILDING,723.74,"Works - Construction, Repair & Maint.Buildings.Repair & Maintenance"
01/07/2015,HOUSING MANAGEMENT SERVICES,Mears Ltd,RESPONSIVE REPAIRS - BUILDING,723.74,"Works - Construction, Repair & Maint.Buildings.Repair & Maintenance"
01/07/2015,HOUSING MANAGEMENT SERVICES,Mears Ltd,RESPONSIVE REPAIRS - BUILDING,723.74,"Works - Construction, Repair & Maint.Buildings.Repair & Maintenance"
01/07/2015,HOUSING MANAGEMENT SERVICES,Mears Ltd,RESPONSIVE REPAIRS - BUILDING,723.74,"Works - Construction, Repair & Maint.Buildings.Repair & Maintenance"
01/07/2015,HOUSING MANAGEMENT SERVICES,Morrison Facilities Services Ltd_d,RESPONSIVE REPAIRS - MECHANICAL AND ELECTRICAL,723.60,"Works - Construction, Repair & Maint.Buildings.Repair & Maintenance"
01/07/2015,HOUSING MANAGEMENT SERVICES,Mears Ltd,RESPONSIVE REPAIRS - BUILDING,720.30,"Works - Construction, Repair & Maint.Buildings.Repair & Maintenance"
01/07/2015,HOUSING MANAGEMENT SERVICES,Mears Ltd,RESPONSIVE REPAIRS - BUILDING,720.30,"Works - Construction, Repair & Maint.Buildings.Repair & Maintenance"
01/07/2015,HOUSING MANAGEMENT SERVICES,Mears Ltd,RESPONSIVE REPAIRS - BUILDING,715.87,"Works - Construction, Repair & Maint.Buildings.Repair & Maintenance"
01/07/2015,HOUSING MANAGEMENT SERVICES,Mears Ltd,RESPONSIVE REPAIRS - BUILDING,715.87,"Works - Construction, Repair & Maint.Buildings.Repair & Maintenance"
01/07/2015,HOUSING MANAGEMENT SERVICES,Mears Ltd,RESPONSIVE REPAIRS - BUILDING,715.87,"Works - Construction, Repair & Maint.Buildings.Repair & Maintenance"
01/07/2015,HOUSING MANAGEMENT SERVICES,Mears Ltd,RESPONSIVE REPAIRS - BUILDING,715.87,"Works - Construction, Repair & Maint.Buildings.Repair & Maintenance"
01/07/2015,HOUSING MANAGEMENT SERVICES,Mears Ltd,RESPONSIVE REPAIRS - BUILDING,715.87,"Works - Construction, Repair & Maint.Buildings.Repair & Maintenance"
01/07/2015,HOUSING MANAGEMENT SERVICES,Mears Ltd,RESPONSIVE REPAIRS - BUILDING,711.10,"Works - Construction, Repair & Maint.Buildings.Repair & Maintenance"
01/07/2015,HOUSING MANAGEMENT SERVICES,Mitie Property Services (UK) Ltd_d,RESPONSIVE REPAIRS - MECHANICAL AND ELECTRICAL,711.00,"Works - Construction, Repair & Maint.Buildings.Construction"
01/07/2015,HOUSING MANAGEMENT SERVICES,Precision Lift Services Ltd_d,RESPONSIVE REPAIRS - MECHANICAL AND ELECTRICAL,710.00,Facilities & Management Services.Lifts.NA
01/07/2015,HOUSING MANAGEMENT SERVICES,Oco Ltd_d,RESPONSIVE REPAIRS - MECHANICAL AND ELECTRICAL,709.44,Building Construction Materials.Heating & Air Conditioning.NA
01/07/2015,HOUSING MANAGEMENT SERVICES,Mears Ltd,RESPONSIVE REPAIRS - BUILDING,708.95,"Works - Construction, Repair & Maint.Buildings.Repair & Maintenance"
01/07/2015,HOUSING MANAGEMENT SERVICES,Oco Ltd_d,RESPONSIVE REPAIRS - MECHANICAL AND ELECTRICAL,707.91,Building Construction Materials.Heating & Air Conditioning.NA
01/07/2015,HOUSING MANAGEMENT SERVICES,Mears Ltd,RESPONSIVE REPAIRS - BUILDING,705.96,"Works - Construction, Repair & Maint.Buildings.Repair & Maintenance"
01/07/2015,HOUSING MANAGEMENT SERVICES,Mears Ltd,RESPONSIVE REPAIRS - BUILDING,705.96,"Works - Construction, Repair & Maint.Buildings.Repair & Maintenance"
01/07/2015,BUSINESS & CUSTOMER SERVICES,Data Interchange Plc,ICT SOFTWARE,698.13,Information Communication Technology.Software.Commercial Off-The-Shelf
01/07/2015,HOUSING MANAGEMENT SERVICES,Mears Ltd,RESPONSIVE REPAIRS - BUILDING,695.21,"Works - Construction, Repair & Maint.Buildings.Repair & Maintenance"
01/07/2015,HOUSING MANAGEMENT SERVICES,Mears Ltd,RESPONSIVE REPAIRS - MECHANICAL AND ELECTRICAL,694.18,"Works - Construction, Repair & Maint.Buildings.Repair & Maintenance"
01/07/2015,HOUSING MANAGEMENT SERVICES,Mears Ltd,RESPONSIVE REPAIRS - MECHANICAL AND ELECTRICAL,690.00,"Works - Construction, Repair & Maint.Buildings.Repair & Maintenance"
01/07/2015,ADULT SOCIAL CARE,Carewatch (Lambeth),DOMICILIARY CARE - THIRD PARTY,685.80,Social Community Care Supplies & Service.Adult.Domiciliary Care
01/07/2015,HOUSING MANAGEMENT SERVICES,Mears Ltd,RESPONSIVE REPAIRS - BUILDING,684.50,"Works - Construction, Repair & Maint.Buildings.Repair & Maintenance"
01/07/2015,CORPORATE ITEMS,Morrison Facilities Services Ltd_d,RESPONSIVE REPAIRS - BUILDING,684.48,"Works - Construction, Repair & Maint.Buildings.Repair & Maintenance"
01/07/2015,HOUSING MANAGEMENT SERVICES,Mears Ltd,RESPONSIVE REPAIRS - MECHANICAL AND ELECTRICAL,682.01,"Works - Construction, Repair & Maint.Buildings.Repair & Maintenance"
01/07/2015,HOUSING MANAGEMENT SERVICES,Mears Ltd,RESPONSIVE REPAIRS - MECHANICAL AND ELECTRICAL,682.01,"Works - Construction, Repair & Maint.Buildings.Repair & Maintenance"
01/07/2015,HOUSING MANAGEMENT SERVICES,Mears Ltd,RESPONSIVE REPAIRS - BUILDING,678.60,"Works - Construction, Repair & Maint.Buildings.Repair & Maintenance"
01/07/2015,HOUSING MANAGEMENT SERVICES,Mears Ltd,RESPONSIVE REPAIRS - BUILDING,678.60,"Works - Construction, Repair & Maint.Buildings.Repair & Maintenance"
01/07/2015,HOUSING MANAGEMENT SERVICES,Mears Ltd,RESPONSIVE REPAIRS - BUILDING,677.94,"Works - Construction, Repair & Maint.Buildings.Repair & Maintenance"
01/07/2015,HOUSING MANAGEMENT SERVICES,Mears Ltd,RESPONSIVE REPAIRS - BUILDING,676.41,"Works - Construction, Repair & Maint.Buildings.Repair & Maintenance"
01/07/2015,HOUSING MANAGEMENT SERVICES,Mears Ltd,RESPONSIVE REPAIRS - MECHANICAL AND ELECTRICAL,671.04,"Works - Construction, Repair & Maint.Buildings.Repair & Maintenance"
01/07/2015,"STRATEGY & COMMISSIONING - CHILDREN, DISABILITIES & PUBLIC HEALTH",ESRI (UK) Ltd,ICT MAINTENANCE AND SUPPORT,670.00,Information Communication Technology.Services.Maintenance & Support
01/07/2015,HOUSING MANAGEMENT SERVICES,Mears Ltd,RESPONSIVE REPAIRS - BUILDING,667.12,"Works - Construction, Repair & Maint.Buildings.Repair & Maintenance"
01/07/2015,HOUSING MANAGEMENT SERVICES,Mears Ltd,RESPONSIVE REPAIRS - BUILDING,665.00,"Works - Construction, Repair & Maint.Buildings.Repair & Maintenance"
01/07/2015,HOUSING MANAGEMENT SERVICES,Mears Ltd,RESPONSIVE REPAIRS - BUILDING,663.00,"Works - Construction, Repair & Maint.Buildings.Repair & Maintenance"
01/07/2015,HOUSING MANAGEMENT SERVICES,Mears Ltd,RESPONSIVE REPAIRS - MECHANICAL AND ELECTRICAL,662.50,"Works - Construction, Repair & Maint.Buildings.Repair & Maintenance"
01/07/2015,HOUSING MANAGEMENT SERVICES,Oco Ltd_d,RESPONSIVE REPAIRS - MECHANICAL AND ELECTRICAL,662.40,Building Construction Materials.Heating & Air Conditioning.NA
01/07/2015,HOUSING MANAGEMENT SERVICES,Morrison Facilities Services Ltd_d,RESPONSIVE REPAIRS - BUILDING,662.20,"Works - Construction, Repair & Maint.Buildings.Repair & Maintenance"
01/07/2015,HOUSING MANAGEMENT SERVICES,Mears Ltd,DECORATION,656.31,"Works - Construction, Repair & Maint.Buildings.Repair & Maintenance"
01/07/2015,HOUSING MANAGEMENT SERVICES,Mears Ltd,RESPONSIVE REPAIRS - MECHANICAL AND ELECTRICAL,654.00,"Works - Construction, Repair & Maint.Buildings.Repair & Maintenance"
01/07/2015,HOUSING MANAGEMENT SERVICES,Mitie Property Services (UK) Ltd_d,RESPONSIVE REPAIRS - MECHANICAL AND ELECTRICAL,653.80,"Works - Construction, Repair & Maint.Buildings.Construction"
01/07/2015,ADULT SOCIAL CARE,Carewatch (Lambeth),DOMICILIARY CARE - THIRD PARTY,651.16,Social Community Care Supplies & Service.Adult.Domiciliary Care
01/07/2015,HOUSING MANAGEMENT SERVICES,Mears Ltd,RESPONSIVE REPAIRS - BUILDING,648.27,"Works - Construction, Repair & Maint.Buildings.Repair & Maintenance"
01/07/2015,CAPITAL CC,Morrison Facilities Services Ltd_d,BUILDING ALTERATIONS AND MATERIALS,648.06,"Works - Construction, Repair & Maint.Buildings.Repair & Maintenance"
01/07/2015,HOUSING MANAGEMENT SERVICES,Mears Ltd,RESPONSIVE REPAIRS - BUILDING,647.30,"Works - Construction, Repair & Maint.Buildings.Repair & Maintenance"
01/07/2015,HOUSING MANAGEMENT SERVICES,Mears Ltd,RESPONSIVE REPAIRS - BUILDING,646.14,"Works - Construction, Repair & Maint.Buildings.Repair & Maintenance"
01/07/2015,HOUSING MANAGEMENT SERVICES,Oco Ltd_d,RESPONSIVE REPAIRS - MECHANICAL AND ELECTRICAL,645.90,Building Construction Materials.Heating & Air Conditioning.NA
01/07/2015,HOUSING MANAGEMENT SERVICES,Mears Ltd,RESPONSIVE REPAIRS - BUILDING,645.60,"Works - Construction, Repair & Maint.Buildings.Repair & Maintenance"
01/07/2015,HOUSING MANAGEMENT SERVICES,Mitie Property Services (UK) Ltd_d,CYCLICAL/PLANNED MAINTENANCE - MECHANICAL AND ELECTRICAL,641.87,"Works - Construction, Repair & Maint.Buildings.Construction"
01/07/2015,HOUSING MANAGEMENT SERVICES,Mears Ltd,RESPONSIVE REPAIRS - BUILDING,639.00,"Works - Construction, Repair & Maint.Buildings.Repair & Maintenance"
01/07/2015,HOUSING MANAGEMENT SERVICES,Mears Ltd,RESPONSIVE REPAIRS - BUILDING,636.26,"Works - Construction, Repair & Maint.Buildings.Repair & Maintenance"
01/07/2015,MAJOR CAPITAL PROGRAMMES,Unique Office Solutions Ltd,"PURCHASE - EQUIPMENT, FURNITURE AND MATERIALS",635.00,Furniture & Soft Furnishings.Office Furniture.NA
01/07/2015,HOUSING MANAGEMENT SERVICES,Mears Ltd,RESPONSIVE REPAIRS - BUILDING,633.06,"Works - Construction, Repair & Maint.Buildings.Repair & Maintenance"
01/07/2015,HOUSING MANAGEMENT SERVICES,Morrison Facilities Services Ltd_d,RESPONSIVE REPAIRS - BUILDING,632.67,"Works - Construction, Repair & Maint.Buildings.Repair & Maintenance"
01/07/2015,HOUSING MANAGEMENT SERVICES,Oco Ltd_d,RESPONSIVE REPAIRS - MECHANICAL AND ELECTRICAL,632.50,Building Construction Materials.Heating & Air Conditioning.NA
01/07/2015,HOUSING MANAGEMENT SERVICES,Mears Ltd,RESPONSIVE REPAIRS - MECHANICAL AND ELECTRICAL,629.50,"Works - Construction, Repair & Maint.Buildings.Repair & Maintenance"
01/07/2015,HOUSING MANAGEMENT SERVICES,Mears Ltd,RESPONSIVE REPAIRS - MECHANICAL AND ELECTRICAL,626.80,"Works - Construction, Repair & Maint.Buildings.Repair & Maintenance"
01/07/2015,HOUSING MANAGEMENT SERVICES,Mears Ltd,RESPONSIVE REPAIRS - BUILDING,626.58,"Works - Construction, Repair & Maint.Buildings.Repair & Maintenance"
01/07/2015,HOUSING MANAGEMENT SERVICES,Mears Ltd,RESPONSIVE REPAIRS - BUILDING,625.90,"Works - Construction, Repair & Maint.Buildings.Repair & Maintenance"
01/07/2015,HOUSING MANAGEMENT SERVICES,Mears Ltd,RESPONSIVE REPAIRS - MECHANICAL AND ELECTRICAL,625.00,"Works - Construction, Repair & Maint.Buildings.Repair & Maintenance"
01/07/2015,HOUSING MANAGEMENT SERVICES,Mitie Property Services (UK) Ltd_d,RESPONSIVE REPAIRS - MECHANICAL AND ELECTRICAL,624.80,"Works - Construction, Repair & Maint.Buildings.Construction"
01/07/2015,CORPORATE ITEMS,Mears Ltd,MISCELLANEOUS EXPENSES,623.76,"Works - Construction, Repair & Maint.Buildings.Repair & Maintenance"
01/07/2015,HOUSING MANAGEMENT SERVICES,Mears Ltd,RESPONSIVE REPAIRS - BUILDING,616.20,"Works - Construction, Repair & Maint.Buildings.Repair & Maintenance"
01/07/2015,CORPORATE ITEMS,Mears Ltd,MISCELLANEOUS EXPENSES,614.44,"Works - Construction, Repair & Maint.Buildings.Repair & Maintenance"
01/07/2015,HOUSING MANAGEMENT SERVICES,Morrison Facilities Services Ltd_d,RESPONSIVE REPAIRS - BUILDING,612.51,"Works - Construction, Repair & Maint.Buildings.Repair & Maintenance"
01/07/2015,HOUSING MANAGEMENT SERVICES,Mears Ltd,RESPONSIVE REPAIRS - BUILDING,611.61,"Works - Construction, Repair & Maint.Buildings.Repair & Maintenance"
01/07/2015,HOUSING MANAGEMENT SERVICES,Mears Ltd,RESPONSIVE REPAIRS - MECHANICAL AND ELECTRICAL,611.16,"Works - Construction, Repair & Maint.Buildings.Repair & Maintenance"
01/07/2015,HOUSING MANAGEMENT SERVICES,Mears Ltd,RESPONSIVE REPAIRS - BUILDING,600.00,"Works - Construction, Repair & Maint.Buildings.Repair & Maintenance"
01/07/2015,HOUSING MANAGEMENT SERVICES,Mears Ltd,RESPONSIVE REPAIRS - MECHANICAL AND ELECTRICAL,600.00,"Works - Construction, Repair & Maint.Buildings.Repair & Maintenance"
01/07/2015,CORPORATE AFFAIRS,Desmond Kilcoyne,LEGAL FEES,600.00,Legal Services.Legal Opinion.NA
01/07/2015,HOUSING MANAGEMENT SERVICES,Mears Ltd,RESPONSIVE REPAIRS - BUILDING,597.90,"Works - Construction, Repair & Maint.Buildings.Repair & Maintenance"
01/07/2015,ADULT SOCIAL CARE,Carewatch (Lambeth),DOMICILIARY CARE - THIRD PARTY,597.29,Social Community Care Supplies & Service.Adult.Domiciliary Care
01/07/2015,HOUSING MANAGEMENT SERVICES,Mears Ltd,RESPONSIVE REPAIRS - BUILDING,591.40,"Works - Construction, Repair & Maint.Buildings.Repair & Maintenance"
01/07/2015,HOUSING MANAGEMENT SERVICES,Mears Ltd,RESPONSIVE REPAIRS - BUILDING,584.40,"Works - Construction, Repair & Maint.Buildings.Repair & Maintenance"
01/07/2015,HOUSING MANAGEMENT SERVICES,Mears Ltd,RESPONSIVE REPAIRS - BUILDING,582.56,"Works - Construction, Repair & Maint.Buildings.Repair & Maintenance"
01/07/2015,HOUSING MANAGEMENT SERVICES,Mears Ltd,RESPONSIVE REPAIRS - BUILDING,582.56,"Works - Construction, Repair & Maint.Buildings.Repair & Maintenance"
01/07/2015,HOUSING MANAGEMENT SERVICES,Mears Ltd,RESPONSIVE REPAIRS - BUILDING,581.94,"Works - Construction, Repair & Maint.Buildings.Repair & Maintenance"
01/07/2015,HOUSING MANAGEMENT SERVICES,Mears Ltd,RESPONSIVE REPAIRS - BUILDING,581.94,"Works - Construction, Repair & Maint.Buildings.Repair & Maintenance"
01/07/2015,HOUSING MANAGEMENT SERVICES,Mears Ltd,RESPONSIVE REPAIRS - BUILDING,581.94,"Works - Construction, Repair & Maint.Buildings.Repair & Maintenance"
01/07/2015,HOUSING MANAGEMENT SERVICES,Mears Ltd,RESPONSIVE REPAIRS - BUILDING,578.67,"Works - Construction, Repair & Maint.Buildings.Repair & Maintenance"
01/07/2015,HOUSING MANAGEMENT SERVICES,Mears Ltd,RESPONSIVE REPAIRS - BUILDING,578.67,"Works - Construction, Repair & Maint.Buildings.Repair & Maintenance"
01/07/2015,HOUSING MANAGEMENT SERVICES,Mears Ltd,RESPONSIVE REPAIRS - BUILDING,578.67,"Works - Construction, Repair & Maint.Buildings.Repair & Maintenance"
01/07/2015,HOUSING MANAGEMENT SERVICES,Mears Ltd,RESPONSIVE REPAIRS - BUILDING,578.67,"Works - Construction, Repair & Maint.Buildings.Repair & Maintenance"
01/07/2015,HOUSING MANAGEMENT SERVICES,Mears Ltd,RESPONSIVE REPAIRS - BUILDING,576.24,"Works - Construction, Repair & Maint.Buildings.Repair & Maintenance"
01/07/2015,HOUSING MANAGEMENT SERVICES,Mears Ltd,RESPONSIVE REPAIRS - BUILDING,576.00,"Works - Construction, Repair & Maint.Buildings.Repair & Maintenance"
01/07/2015,HOUSING MANAGEMENT SERVICES,Mears Ltd,RESPONSIVE REPAIRS - BUILDING,575.73,"Works - Construction, Repair & Maint.Buildings.Repair & Maintenance"
01/07/2015,HOUSING MANAGEMENT SERVICES,Mears Ltd,RESPONSIVE REPAIRS - BUILDING,575.12,"Works - Construction, Repair & Maint.Buildings.Repair & Maintenance"
01/07/2015,HOUSING MANAGEMENT SERVICES,Mears Ltd,RESPONSIVE REPAIRS - MECHANICAL AND ELECTRICAL,575.00,"Works - Construction, Repair & Maint.Buildings.Repair & Maintenance"
01/07/2015,HOUSING MANAGEMENT SERVICES,Mears Ltd,RESPONSIVE REPAIRS - MECHANICAL AND ELECTRICAL,575.00,"Works - Construction, Repair & Maint.Buildings.Repair & Maintenance"
01/07/2015,HOUSING MANAGEMENT SERVICES,Mears Ltd,RESPONSIVE REPAIRS - BUILDING,570.33,"Works - Construction, Repair & Maint.Buildings.Repair & Maintenance"
01/07/2015,HOUSING MANAGEMENT SERVICES,Mitie Property Services (UK) Ltd_d,RESPONSIVE REPAIRS - MECHANICAL AND ELECTRICAL,568.80,"Works - Construction, Repair & Maint.Buildings.Construction"
01/07/2015,HOUSING MANAGEMENT SERVICES,Mears Ltd,RESPONSIVE REPAIRS - BUILDING,567.04,"Works - Construction, Repair & Maint.Buildings.Repair & Maintenance"
01/07/2015,HOUSING MANAGEMENT SERVICES,Mears Ltd,RESPONSIVE REPAIRS - BUILDING,567.00,"Works - Construction, Repair & Maint.Buildings.Repair & Maintenance"
01/07/2015,CHILDREN'S SERVICES,Dr S Ratnam,LEGAL FEES,567.00,Legal Services.Specialist Support.NA
01/07/2015,HOUSING MANAGEMENT SERVICES,Mears Ltd,RESPONSIVE REPAIRS - BUILDING,563.00,"Works - Construction, Repair & Maint.Buildings.Repair & Maintenance"
01/07/2015,HOUSING MANAGEMENT SERVICES,Mears Ltd,RESPONSIVE REPAIRS - BUILDING,562.91,"Works - Construction, Repair & Maint.Buildings.Repair & Maintenance"
01/07/2015,HOUSING MANAGEMENT SERVICES,Mears Ltd,RESPONSIVE REPAIRS - BUILDING,562.50,"Works - Construction, Repair & Maint.Buildings.Repair & Maintenance"
01/07/2015,HOUSING MANAGEMENT SERVICES,Mears Ltd,RESPONSIVE REPAIRS - BUILDING,562.50,"Works - Construction, Repair & Maint.Buildings.Repair & Maintenance"
01/07/2015,CHILDREN'S SERVICES,Cellmark Ltd,PAYMENT TO HEALTH AUTHORITIES,562.00,Healthcare.Services.NA
01/07/2015,CAPITAL CC,Morrison Facilities Services Ltd_d,BUILDING ALTERATIONS AND MATERIALS,558.35,"Works - Construction, Repair & Maint.Buildings.Repair & Maintenance"
01/07/2015,HOUSING MANAGEMENT SERVICES,Mears Ltd,RESPONSIVE REPAIRS - BUILDING,556.79,"Works - Construction, Repair & Maint.Buildings.Repair & Maintenance"
01/07/2015,HOUSING MANAGEMENT SERVICES,Mears Ltd,RESPONSIVE REPAIRS - MECHANICAL AND ELECTRICAL,556.26,"Works - Construction, Repair & Maint.Buildings.Repair & Maintenance"
01/07/2015,HOUSING MANAGEMENT SERVICES,Mears Ltd,RESPONSIVE REPAIRS - BUILDING,556.25,"Works - Construction, Repair & Maint.Buildings.Repair & Maintenance"
01/07/2015,HOUSING MANAGEMENT SERVICES,Mears Ltd,RESPONSIVE REPAIRS - MECHANICAL AND ELECTRICAL,556.25,"Works - Construction, Repair & Maint.Buildings.Repair & Maintenance"
01/07/2015,HOUSING MANAGEMENT SERVICES,Mears Ltd,RESPONSIVE REPAIRS - BUILDING,552.50,"Works - Construction, Repair & Maint.Buildings.Repair & Maintenance"
01/07/2015,HOUSING MANAGEMENT SERVICES,Mears Ltd,RESPONSIVE REPAIRS - BUILDING,547.60,"Works - Construction, Repair & Maint.Buildings.Repair & Maintenance"
01/07/2015,HOUSING MANAGEMENT SERVICES,Mears Ltd,RESPONSIVE REPAIRS - BUILDING,542.88,"Works - Construction, Repair & Maint.Buildings.Repair & Maintenance"
01/07/2015,HOUSING MANAGEMENT SERVICES,Mears Ltd,RESPONSIVE REPAIRS - BUILDING,542.88,"Works - Construction, Repair & Maint.Buildings.Repair & Maintenance"
01/07/2015,CORPORATE ITEMS,Morrison Facilities Services Ltd_d,RESPONSIVE REPAIRS - BUILDING,541.04,"Works - Construction, Repair & Maint.Buildings.Repair & Maintenance"
01/07/2015,CORPORATE ITEMS,Morrison Facilities Services Ltd_d,RESPONSIVE REPAIRS - BUILDING,541.04,"Works - Construction, Repair & Maint.Buildings.Repair & Maintenance"
01/07/2015,HOUSING MANAGEMENT SERVICES,Oco Ltd_d,RESPONSIVE REPAIRS - MECHANICAL AND ELECTRICAL,538.46,Building Construction Materials.Heating & Air Conditioning.NA
01/07/2015,HOUSING MANAGEMENT SERVICES,Mears Ltd,RESPONSIVE REPAIRS - BUILDING,536.96,"Works - Construction, Repair & Maint.Buildings.Repair & Maintenance"
01/07/2015,HOUSING MANAGEMENT SERVICES,Mears Ltd,RESPONSIVE REPAIRS - BUILDING,535.89,"Works - Construction, Repair & Maint.Buildings.Repair & Maintenance"
01/07/2015,CAPITAL CC,Morrison Facilities Services Ltd_d,BUILDING ALTERATIONS AND MATERIALS,534.14,"Works - Construction, Repair & Maint.Buildings.Repair & Maintenance"
01/07/2015,HOUSING MANAGEMENT SERVICES,Morrison Facilities Services Ltd_d,RESPONSIVE REPAIRS - BUILDING,527.04,"Works - Construction, Repair & Maint.Buildings.Repair & Maintenance"
01/07/2015,HOUSING MANAGEMENT SERVICES,Mears Ltd,RESPONSIVE REPAIRS - MECHANICAL AND ELECTRICAL,520.64,"Works - Construction, Repair & Maint.Buildings.Repair & Maintenance"
01/07/2015,HOUSING MANAGEMENT SERVICES,Mears Ltd,RESPONSIVE REPAIRS - BUILDING,519.80,"Works - Construction, Repair & Maint.Buildings.Repair & Maintenance"
01/07/2015,ADULT SOCIAL CARE,Carewatch (Lambeth),DOMICILIARY CARE - THIRD PARTY,515.37,Social Community Care Supplies & Service.Adult.Domiciliary Care
01/07/2015,CORPORATE ITEMS,Morrison Facilities Services Ltd_d,RESPONSIVE REPAIRS - BUILDING,513.87,"Works - Construction, Repair & Maint.Buildings.Repair & Maintenance"
01/07/2015,HOUSING MANAGEMENT SERVICES,Morrison Facilities Services Ltd_d,RESPONSIVE REPAIRS - BUILDING,513.36,"Works - Construction, Repair & Maint.Buildings.Repair & Maintenance"
01/07/2015,CAPITAL CC,Morrison Facilities Services Ltd_d,BUILDING ALTERATIONS AND MATERIALS,512.99,"Works - Construction, Repair & Maint.Buildings.Repair & Maintenance"
01/07/2015,HOUSING MANAGEMENT SERVICES,Morrison Facilities Services Ltd_d,RESPONSIVE REPAIRS - BUILDING,512.99,"Works - Construction, Repair & Maint.Buildings.Repair & Maintenance"
01/07/2015,HOUSING MANAGEMENT SERVICES,Mears Ltd,RESPONSIVE REPAIRS - MECHANICAL AND ELECTRICAL,510.40,"Works - Construction, Repair & Maint.Buildings.Repair & Maintenance"
01/07/2015,HOUSING MANAGEMENT SERVICES,Mears Ltd,RESPONSIVE REPAIRS - BUILDING,506.21,"Works - Construction, Repair & Maint.Buildings.Repair & Maintenance"
01/07/2015,HOUSING MANAGEMENT SERVICES,Mears Ltd,RESPONSIVE REPAIRS - BUILDING,505.40,"Works - Construction, Repair & Maint.Buildings.Repair & Maintenance"
01/07/2015,HOUSING MANAGEMENT SERVICES,Mitie Property Services (UK) Ltd_d,CYCLICAL/PLANNED MAINTENANCE - MECHANICAL AND ELECTRICAL,505.19,"Works - Construction, Repair & Maint.Buildings.Construction"
01/07/2015,HOUSING MANAGEMENT SERVICES,Oco Ltd_d,RESPONSIVE REPAIRS - MECHANICAL AND ELECTRICAL,504.28,Building Construction Materials.Heating & Air Conditioning.NA
01/07/2015,HOUSING MANAGEMENT SERVICES,Oco Ltd_d,RESPONSIVE REPAIRS - MECHANICAL AND ELECTRICAL,504.00,Building Construction Materials.Heating & Air Conditioning.NA
01/07/2015,HOUSING MANAGEMENT SERVICES,Oco Ltd_d,RESPONSIVE REPAIRS - MECHANICAL AND ELECTRICAL,504.00,Building Construction Materials.Heating & Air Conditioning.NA
01/07/2015,HOUSING MANAGEMENT SERVICES,Mitie Property Services (UK) Ltd_d,RESPONSIVE REPAIRS - MECHANICAL AND ELECTRICAL,500.23,"Works - Construction, Repair & Maint.Buildings.Construction"
01/07/2015,HOUSING MANAGEMENT SERVICES,Oco Ltd_d,RESPONSIVE REPAIRS - MECHANICAL AND ELECTRICAL,500.00,Building Construction Materials.Heating & Air Conditioning.NA
01/07/2015,HOUSING MANAGEMENT SERVICES,Mears Ltd,RESPONSIVE REPAIRS - BUILDING,500.00,"Works - Construction, Repair & Maint.Buildings.Repair & Maintenance"
01/07/2015,HOUSING MANAGEMENT SERVICES,Mears Ltd,RESPONSIVE REPAIRS - BUILDING,500.00,"Works - Construction, Repair & Maint.Buildings.Repair & Maintenance"
01/07/2015,HOUSING MANAGEMENT SERVICES,Mears Ltd,RESPONSIVE REPAIRS - MECHANICAL AND ELECTRICAL,500.00,"Works - Construction, Repair & Maint.Buildings.Repair & Maintenance"
01/07/2015,CORPORATE AFFAIRS,Cubism Law,LEGAL FEES,500.00,Legal Services.Advocacy.NA
01/07/2015,CORPORATE AFFAIRS,Lovatt Consulting LLP,LEGAL FEES,500.00,Social Community Care Supplies & Service.Adult.Advice & Counselling Services
01/07/2015,HOUSING MANAGEMENT SERVICES,Mears Ltd,RESPONSIVE REPAIRS - BUILDING,(750.00),"Works - Construction, Repair & Maint.Buildings.Repair & Maintenance"
01/07/2015,CAPITAL CC,Project Centre Ltd,"MAINTENANCE - EQUIPMENT, FURNITURE AND MATERIALS","(3,260.58)","Works - Construction, Repair & Maint.Roads.NA"
02/07/2015,CAPITAL CC,T Brown Group Ltd_d,BUILDING ALTERATIONS AND MATERIALS,"297,604.88",Building Construction Materials.Heating & Air Conditioning.NA
02/07/2015,CAPITAL CC,Morrison Facilities Services Ltd_d,FACILITIES MANAGEMENT,"263,748.77","Works - Construction, Repair & Maint.Buildings.Repair & Maintenance"
02/07/2015,CAPITAL CC,Apollo Property Services Group Ltd,"MAINTENANCE - EQUIPMENT, FURNITURE AND MATERIALS","55,000.86","Works - Construction, Repair & Maint.Buildings.Construction"
02/07/2015,CHILDREN'S SERVICES,Quality Protects Children Ltd,RESIDENTIAL PLACEMENTS - PRIVATE CONTRACTORS PAYMENT,"29,250.00",Social Community Care Supplies & Service.Children.NA
02/07/2015,CHILDREN'S SERVICES,SP Homes t/a S Mulberry House,RESIDENTIAL PLACEMENTS - PRIVATE CONTRACTORS PAYMENT,"28,961.43",Social Community Care Supplies & Service.Adult.Homeless Support
02/07/2015,CAPITAL CC,Apollo Property Services Group Ltd,"MAINTENANCE - EQUIPMENT, FURNITURE AND MATERIALS","28,628.54","Works - Construction, Repair & Maint.Buildings.Construction"
02/07/2015,CHILDREN'S SERVICES,Riverbank Park Plaza,PREMISES HIRE - FACILITIES,"18,985.86",Facilities & Management Services.Room Hire.NA
02/07/2015,"STRATEGY & COMMISSIONING - CHILDREN, DISABILITIES & PUBLIC HEALTH",Enter Here LLP,CONSULTANCY FEES,"15,000.00",Consultancy.Management.Efficiency
02/07/2015,HOUSING MANAGEMENT SERVICES,Morrison Facilities Services Ltd_d,DECORATION,"14,448.00",Building Construction Materials.Paint & Finishing.NA
02/07/2015,"REGENERATION, PLANNING & NEIGHBOURHOODS",Furnace Managed Services Ltd,PROFESSIONAL SERVICES - GENERAL,"12,093.00",Cemetery & Crematorium.Equipment.NA
02/07/2015,CAPITAL CC,Potter Raper Partnership,CONSULTANCY FEES,"9,560.00",Consultancy.Technical & Feasibility.NA
02/07/2015,MAJOR CAPITAL PROGRAMMES,Grant Thornton,PROFESSIONAL SERVICES - GENERAL,"7,620.00",Financial Services.Accountancy.NA
02/07/2015,FINANCE,Ad Hoc Property Management Ltd,SECURITY SERVICES (EXCLUDING PREMISES),"7,308.00",Facilities & Management Services.Security.NA
02/07/2015,CAPITAL CC,Apollo Property Services Group Ltd,"MAINTENANCE - EQUIPMENT, FURNITURE AND MATERIALS","6,878.79","Works - Construction, Repair & Maint.Buildings.Construction"
02/07/2015,CAPITAL CC,Staying First,GRANTS AND CONTRIBUTIONS,"6,736.13",Financial Services.Grants.NA
02/07/2015,"REGENERATION, PLANNING & NEIGHBOURHOODS",City Suburban Tree Surgeons Ltd,GROUNDS MAINTENANCE,"5,250.00",Horticultural.Tree Trimming.NA
02/07/2015,"REGENERATION, PLANNING & NEIGHBOURHOODS",SouthBank Mosaics CIC,CONSULTANCY FEES,"5,000.00",Consultancy.Strategic Planning.NA
02/07/2015,CAPITAL CC,K & C Windows t/a Sash Windows London,BUILDING ALTERATIONS AND MATERIALS,"4,920.00",Consultancy.Business.NA
02/07/2015,"STRATEGY & COMMISSIONING - CHILDREN, DISABILITIES & PUBLIC HEALTH",The Appropriate Adult Service Ltd,PRIVATE CONTRACTORS PAYMENT - OTHER,"4,871.25",Social Community Care Supplies & Service.Adult.Advice & Counselling Services
02/07/2015,CHILDREN'S SERVICES,R@W Logistics Ltd,RENTS PAYABLE,"4,590.00","Social Community Care Supplies & Service.Adult.Temporary Accommodation, Short Stay"
02/07/2015,CHILDREN'S SERVICES,Affluent Care Services Ltd,RENTS PAYABLE,"4,560.00",Social Community Care Supplies & Service.Adult.Residential Homes for Older People
02/07/2015,CAPITAL CC,Apollo Property Services Group Ltd,"MAINTENANCE - EQUIPMENT, FURNITURE AND MATERIALS","4,285.25","Works - Construction, Repair & Maint.Buildings.Construction"
02/07/2015,"REGENERATION, PLANNING & NEIGHBOURHOODS",Mentivation Services,PRIVATE CONTRACTORS PAYMENT - OTHER,"4,104.00",Social Community Care Supplies & Service.Children.Youth Offending Services
02/07/2015,"REGENERATION, PLANNING & NEIGHBOURHOODS",Mentivation Services,PRIVATE CONTRACTORS PAYMENT - OTHER,"4,104.00",Social Community Care Supplies & Service.Children.Youth Offending Services
02/07/2015,CAPITAL CC,Apollo Property Services Group Ltd,BUILDING ALTERATIONS AND MATERIALS,"3,386.88","Works - Construction, Repair & Maint.Buildings.Construction"
02/07/2015,CHILDREN'S SERVICES,Affluent Care Services Ltd,RENTS PAYABLE,"3,321.43",Social Community Care Supplies & Service.Adult.Residential Homes for Older People
02/07/2015,CAPITAL CC,Apollo Property Services Group Ltd,"MAINTENANCE - EQUIPMENT, FURNITURE AND MATERIALS","3,129.85","Works - Construction, Repair & Maint.Buildings.Construction"
02/07/2015,CORPORATE AFFAIRS,Quality Solicitors A-Z Law,LEGAL FEES,"3,040.52",Social Community Care Supplies & Service.Adult.Advice & Counselling Services
02/07/2015,CHILDREN'S SERVICES,Affluent Care Services Ltd,RENTS PAYABLE,"2,892.86",Social Community Care Supplies & Service.Adult.Residential Homes for Older People
02/07/2015,CAPITAL CC,Harrison Design Development Ltd,BEREAVEMENT SERVICES EQUIPMENT,"2,690.00",Cemetery & Crematorium.Maintenance.NA
02/07/2015,CAPITAL CC,Herringbone Restoration Ltd,FACILITIES MANAGEMENT,"2,622.75","Works - Construction, Repair & Maint.Buildings.Repair & Maintenance"
02/07/2015,CORPORATE AFFAIRS,Quality Solicitors A-Z Law,LEGAL FEES,"2,533.77",Social Community Care Supplies & Service.Adult.Advice & Counselling Services
02/07/2015,"REGENERATION, PLANNING & NEIGHBOURHOODS",Furnace Managed Services Ltd,PROFESSIONAL SERVICES - GENERAL,"2,360.62",Cemetery & Crematorium.Equipment.NA
02/07/2015,ADULT SOCIAL CARE,Westminster Homecare Limited,DOMICILIARY CARE - THIRD PARTY,"2,225.14",Social Community Care Supplies & Service.Adult.Domiciliary Care
02/07/2015,CAPITAL CC,Apollo Property Services Group Ltd,"MAINTENANCE - EQUIPMENT, FURNITURE AND MATERIALS","2,092.23","Works - Construction, Repair & Maint.Buildings.Construction"
02/07/2015,ADULT SOCIAL CARE,Carewatch (Lambeth),DOMICILIARY CARE - THIRD PARTY,"1,855.15",Social Community Care Supplies & Service.Adult.Domiciliary Care
02/07/2015,CHILDREN'S SERVICES,SP Homes t/a S Mulberry House,RENTS PAYABLE,"1,854.28",Social Community Care Supplies & Service.Adult.Homeless Support
02/07/2015,POLICY & COMMUNICATIONS,Brightlights,EVENTS,"1,789.40",Arts & Leisure Services.Events.NA
02/07/2015,CHILDREN'S SERVICES,Small Enterprise Property Services Ltd,BED & BREAKFAST - PRIVATE CONTRACTORS PAYMENT,"1,782.50",Social Community Care Supplies & Service.Adult.Sheltered Accommodation
02/07/2015,CHILDREN'S SERVICES,Small Enterprise Property Services Ltd,BED & BREAKFAST - PRIVATE CONTRACTORS PAYMENT,"1,725.00",Social Community Care Supplies & Service.Adult.Sheltered Accommodation
02/07/2015,FINANCE,Kaplan Financial Ltd,STAFF DEVELOPMENT AND TRAINING,"1,690.00",Human Resources.Training & Conferences.Training
02/07/2015,EDUCATION & LEARNING,James Leckey Design Ltd,SPECIALIST EQUIPMENT FOR SERVICE PROVISION,"1,646.00",Social Community Care Supplies & Service.Supplies.Equipment
02/07/2015,CHILDREN'S SERVICES,Mr Armando Shehu,RENTS PAYABLE,"1,600.00","Social Community Care Supplies & Service.Adult.Temporary Accommodation, Long Stay"
02/07/2015,FINANCE,Ad Hoc Property Management Ltd,SECURITY SERVICES (EXCLUDING PREMISES),"1,566.00",Facilities & Management Services.Security.NA
02/07/2015,ADULT SOCIAL CARE,Carewatch (Lambeth),DOMICILIARY CARE - THIRD PARTY,"1,539.03",Social Community Care Supplies & Service.Adult.Domiciliary Care
02/07/2015,ADULT SOCIAL CARE,Stockwellcare Support Services Ltd,DOMICILIARY CARE - THIRD PARTY,"1,477.80",Healthcare.Public Health.NA
02/07/2015,ADULT SOCIAL CARE,Stockwellcare Support Services Ltd,DOMICILIARY CARE - THIRD PARTY,"1,477.80",Healthcare.Public Health.NA
02/07/2015,CHILDREN'S SERVICES,Hytyme Ltd,BED & BREAKFAST - PRIVATE CONTRACTORS PAYMENT,"1,470.00","Social Community Care Supplies & Service.Adult.Temporary Accommodation, Long Stay"
02/07/2015,CHILDREN'S SERVICES,Hytyme Ltd,BED & BREAKFAST - PRIVATE CONTRACTORS PAYMENT,"1,470.00","Social Community Care Supplies & Service.Adult.Temporary Accommodation, Long Stay"
02/07/2015,CHILDREN'S SERVICES,Hytyme Ltd,BED & BREAKFAST - PRIVATE CONTRACTORS PAYMENT,"1,470.00","Social Community Care Supplies & Service.Adult.Temporary Accommodation, Long Stay"
02/07/2015,CHILDREN'S SERVICES,Hytyme Ltd,BED & BREAKFAST - PRIVATE CONTRACTORS PAYMENT,"1,470.00","Social Community Care Supplies & Service.Adult.Temporary Accommodation, Long Stay"
02/07/2015,BUSINESS & CUSTOMER SERVICES,TV Licensing,MEMBERSHIP AND SUBSCRIPTIONS,"1,455.00",Financial Services.Subscriptions.NA
02/07/2015,CORPORATE AFFAIRS,Yahire.com,"PURCHASE - EQUIPMENT, FURNITURE AND MATERIALS","1,436.62",Furniture & Soft Furnishings.Commercial Furniture.NA
02/07/2015,ADULT SOCIAL CARE,Stockwellcare Support Services Ltd,DOMICILIARY CARE - THIRD PARTY,"1,379.28",Healthcare.Public Health.NA
02/07/2015,ADULT SOCIAL CARE,Stockwellcare Support Services Ltd,DOMICILIARY CARE - THIRD PARTY,"1,379.28",Healthcare.Public Health.NA
02/07/2015,CHILDREN'S SERVICES,Affluent Care Services Ltd,RENTS PAYABLE,"1,264.29",Social Community Care Supplies & Service.Adult.Residential Homes for Older People
02/07/2015,CAPITAL CC,Apollo Property Services Group Ltd,BUILDING ALTERATIONS AND MATERIALS,"1,234.46","Works - Construction, Repair & Maint.Buildings.Construction"
02/07/2015,ADULT SOCIAL CARE,Unique Personnel (Uk) Ltd,DOMICILIARY CARE - THIRD PARTY,"1,227.00",Social Community Care Supplies & Service.Disabled Children.NA
02/07/2015,NO RECOURSE TO PUBLIC FUNDS,Family Mosaic,RENTS PAYABLE,"1,187.04",Social Community Care Supplies & Service.Adult.Mental Health Services
02/07/2015,NO RECOURSE TO PUBLIC FUNDS,Family Mosaic,RENTS PAYABLE,"1,187.04",Social Community Care Supplies & Service.Adult.Mental Health Services
02/07/2015,CHILDREN'S SERVICES,Hytyme Ltd,BED & BREAKFAST - PRIVATE CONTRACTORS PAYMENT,"1,170.00","Social Community Care Supplies & Service.Adult.Temporary Accommodation, Long Stay"
02/07/2015,CHILDREN'S SERVICES,Hytyme Ltd,BED & BREAKFAST - PRIVATE CONTRACTORS PAYMENT,"1,170.00","Social Community Care Supplies & Service.Adult.Temporary Accommodation, Long Stay"
02/07/2015,CHILDREN'S SERVICES,Hytyme Ltd,BED & BREAKFAST - PRIVATE CONTRACTORS PAYMENT,"1,170.00","Social Community Care Supplies & Service.Adult.Temporary Accommodation, Long Stay"
02/07/2015,CHILDREN'S SERVICES,Hytyme Ltd,BED & BREAKFAST - PRIVATE CONTRACTORS PAYMENT,"1,170.00","Social Community Care Supplies & Service.Adult.Temporary Accommodation, Long Stay"
02/07/2015,CAPITAL CC,Apollo Property Services Group Ltd,"MAINTENANCE - EQUIPMENT, FURNITURE AND MATERIALS","1,110.22","Works - Construction, Repair & Maint.Buildings.Construction"
02/07/2015,ADULT SOCIAL CARE,Unique Personnel (Uk) Ltd,DOMICILIARY CARE - THIRD PARTY,"1,078.00",Social Community Care Supplies & Service.Disabled Children.NA
02/07/2015,"REGENERATION, PLANNING & NEIGHBOURHOODS",RSP Rail Travel Account,DIRECT TRANSPORT,"1,025.30",Public Transport.Passenger Transport.NA
02/07/2015,CAPITAL CC,Apollo Property Services Group Ltd,"MAINTENANCE - EQUIPMENT, FURNITURE AND MATERIALS",940.69,"Works - Construction, Repair & Maint.Buildings.Construction"
02/07/2015,"REGENERATION, PLANNING & NEIGHBOURHOODS",City Suburban Tree Surgeons Ltd,GROUNDS MAINTENANCE,900.00,Horticultural.Tree Trimming.NA
02/07/2015,"REGENERATION, PLANNING & NEIGHBOURHOODS",City Suburban Tree Surgeons Ltd,GROUNDS MAINTENANCE,900.00,Horticultural.Tree Trimming.NA
02/07/2015,CHILDREN'S SERVICES,Hytyme Ltd,BED & BREAKFAST - PRIVATE CONTRACTORS PAYMENT,870.00,"Social Community Care Supplies & Service.Adult.Temporary Accommodation, Long Stay"
02/07/2015,NO RECOURSE TO PUBLIC FUNDS,Hytyme Ltd,BED & BREAKFAST - PRIVATE CONTRACTORS PAYMENT,870.00,"Social Community Care Supplies & Service.Adult.Temporary Accommodation, Long Stay"
02/07/2015,CHILDREN'S SERVICES,Cromwood Ltd,RENTS PAYABLE,825.00,"Social Community Care Supplies & Service.Adult.Temporary Accommodation, Hostels"
02/07/2015,CHILDREN'S SERVICES,Cromwood Ltd,RENTS PAYABLE,825.00,"Social Community Care Supplies & Service.Adult.Temporary Accommodation, Hostels"
02/07/2015,ADULT SOCIAL CARE,Westminster Homecare Limited,DOMICILIARY CARE - THIRD PARTY,810.93,Social Community Care Supplies & Service.Adult.Domiciliary Care
02/07/2015,ADULT SOCIAL CARE,Holistic Community Care Ltd,DOMICILIARY CARE - THIRD PARTY,802.69,Social Community Care Supplies & Service.Adult.Domiciliary Care
02/07/2015,FINANCE,Nicholas Boden,"PURCHASE - EQUIPMENT, FURNITURE AND MATERIALS",754.28,Domestic Goods.Commercial.NA
02/07/2015,CHILDREN'S SERVICES,Chance UK,PRIVATE CONTRACTORS PAYMENT - OTHER,750.00,Social Community Care Supplies & Service.Children.Advice & Counselling
02/07/2015,MAJOR CAPITAL PROGRAMMES (HRA),JA O'Rourke,PHOTOCOPYING,737.50,Facilities & Management Services.Reprographics.NA
02/07/2015,ADULT SOCIAL CARE,Patricia Gittens,LEGAL FEES,720.00,Legal Services.General Support.NA
02/07/2015,"REGENERATION, PLANNING & NEIGHBOURHOODS",The Young Ballers,ARTS AND LEISURE COSTS,720.00,Arts & Leisure Services.Sport & Fitness.NA
02/07/2015,CAPITAL CC,Apollo Property Services Group Ltd,"MAINTENANCE - EQUIPMENT, FURNITURE AND MATERIALS",703.23,"Works - Construction, Repair & Maint.Buildings.Construction"
02/07/2015,EDUCATION & LEARNING,Wolters Kluwer UK Ltd,CONSULTANCY FEES,644.21,Consultancy.Management.NA
02/07/2015,ADULT SOCIAL CARE,Patricia Gittens,LEGAL FEES,640.00,Legal Services.General Support.NA
02/07/2015,ADULT SOCIAL CARE,Carewatch (Lambeth),DOMICILIARY CARE - THIRD PARTY,608.54,Social Community Care Supplies & Service.Adult.Domiciliary Care
02/07/2015,ADULT SOCIAL CARE,Unique Personnel (Uk) Ltd,DOMICILIARY CARE - THIRD PARTY,539.00,Social Community Care Supplies & Service.Disabled Children.NA
02/07/2015,ADULT SOCIAL CARE,Unique Personnel (Uk) Ltd,DOMICILIARY CARE - THIRD PARTY,539.00,Social Community Care Supplies & Service.Disabled Children.NA
02/07/2015,ADULT SOCIAL CARE,Unique Personnel (Uk) Ltd,DOMICILIARY CARE - THIRD PARTY,539.00,Social Community Care Supplies & Service.Disabled Children.NA
02/07/2015,EDUCATION & LEARNING,Ying Tong Chan,"PURCHASE - EQUIPMENT, FURNITURE AND MATERIALS",533.93,Building Construction Materials.Hand Tools.NA
02/07/2015,ADULT SOCIAL CARE,Holistic Community Care Ltd,DOMICILIARY CARE - THIRD PARTY,527.87,Social Community Care Supplies & Service.Adult.Domiciliary Care
02/07/2015,ADULT SOCIAL CARE,Carewatch (Lambeth),DOMICILIARY CARE - THIRD PARTY,520.06,Social Community Care Supplies & Service.Adult.Domiciliary Care
02/07/2015,CORPORATE AFFAIRS,Michael O'Reilly,"PURCHASE - EQUIPMENT, FURNITURE AND MATERIALS",517.00,Furniture & Soft Furnishings.Domestic Furniture.NA
02/07/2015,ADULT SOCIAL CARE,Carewatch (Lambeth),DOMICILIARY CARE - THIRD PARTY,504.16,Social Community Care Supplies & Service.Adult.Domiciliary Care
02/07/2015,ADULT SOCIAL CARE,Vyda Siameh-Mensah,PROFESSIONAL SERVICES - GENERAL,500.00,Financial Services.Banking.NA
02/07/2015,CHILDREN'S SERVICES,SP Homes t/a S Mulberry House,RESIDENTIAL PLACEMENTS - PRIVATE CONTRACTORS PAYMENT,"(2,032.80)",Social Community Care Supplies & Service.Adult.Homeless Support
02/07/2015,CORPORATE AFFAIRS,Quality Solicitors A-Z Law,LEGAL FEES,"(2,533.77)",Social Community Care Supplies & Service.Adult.Advice & Counselling Services
02/07/2015,CAPITAL CC,K & C Windows t/a Sash Windows London,BUILDING ALTERATIONS AND MATERIALS,"(2,720.83)",Consultancy.Business.NA
02/07/2015,CHILDREN'S SERVICES,Quality Protects Children Ltd,RESIDENTIAL PLACEMENTS - PRIVATE CONTRACTORS PAYMENT,"(5,485.71)",Social Community Care Supplies & Service.Children.NA
02/07/2015,CAPITAL CC,Morrison Facilities Services Ltd_d,FACILITIES MANAGEMENT,"(10,287.28)","Works - Construction, Repair & Maint.Buildings.Repair & Maintenance"
02/07/2015,CAPITAL CC,Morrison Facilities Services Ltd_d,FACILITIES MANAGEMENT,"(56,894.53)","Works - Construction, Repair & Maint.Buildings.Repair & Maintenance"
02/07/2015,CAPITAL CC,T Brown Group Ltd_d,BUILDING ALTERATIONS AND MATERIALS,"(297,604.88)",Building Construction Materials.Heating & Air Conditioning.NA
03/07/2015,CAPITAL CC,Breyer Group Plc_d,"MAINTENANCE - EQUIPMENT, FURNITURE AND MATERIALS","774,074.66","Works - Construction, Repair & Maint.Buildings.Construction"
03/07/2015,HOUSING MANAGEMENT SERVICES,Breyer Group Plc_d,"MAINTENANCE - EQUIPMENT, FURNITURE AND MATERIALS","774,074.66","Works - Construction, Repair & Maint.Buildings.Construction"
03/07/2015,CAPITAL CC,Mears Ltd,FACILITIES MANAGEMENT,"643,480.78","Works - Construction, Repair & Maint.Buildings.Repair & Maintenance"
03/07/2015,CAPITAL CC,Jerram Falkus Construction Ltd,"MAINTENANCE - EQUIPMENT, FURNITURE AND MATERIALS","140,684.00","Works - Construction, Repair & Maint.Buildings.Construction"
03/07/2015,CAPITAL CC,Dainton Lift Services Ltd,CYCLICAL/PLANNED MAINTENANCE - MECHANICAL AND ELECTRICAL,"121,871.13",Facilities & Management Services.Lifts.Repair & Maintenance
03/07/2015,ADULT SOCIAL CARE,MiHomecare Ltd,DOMICILIARY CARE - THIRD PARTY,"88,685.25",Social Community Care Supplies & Service.Adult.Domiciliary Care
03/07/2015,CAPITAL CC,Elliott Group Limited,PREMISES HIRE - FACILITIES,"38,500.00",Facilities & Management Services.Portable Building Hire.NA
03/07/2015,CAPITAL CC,Apollo Property Services Group Ltd,BUILDING ALTERATIONS AND MATERIALS,"24,539.25","Works - Construction, Repair & Maint.Buildings.Construction"
03/07/2015,ADULT SOCIAL CARE,MiHomecare Ltd,DOMICILIARY CARE - THIRD PARTY,"23,468.71",Social Community Care Supplies & Service.Adult.Domiciliary Care
03/07/2015,CAPITAL CC,Mace Ltd,PROFESSIONAL SERVICES - GENERAL,"14,267.85",Consultancy.Property.NA
03/07/2015,CHILDREN'S SERVICES,Capstone Foster Care (South East) Ltd,IN HOUSE FOSTER CARE PLACEMENTS - PRIVATE CONTRACTORS PAYMENT,"13,050.00",Social Community Care Supplies & Service.Children.Fostering
03/07/2015,CAPITAL CC,Mace Ltd,"MAINTENANCE - EQUIPMENT, FURNITURE AND MATERIALS","12,622.47","Works - Construction, Repair & Maint.Architect.NA"
03/07/2015,HUMAN RESOURCES AND ORGANISATIONAL DEVELOPMENT,MeLearning Ltd,STAFF DEVELOPMENT AND TRAINING,"11,187.00",Human Resources.Training & Conferences.Training
03/07/2015,CAPITAL CC,Saper Glass Industries Ltd,FACILITIES MANAGEMENT,"10,228.89","Works - Construction, Repair & Maint.Buildings.Repair & Maintenance"
03/07/2015,CAPITAL CC,Apollo Property Services Group Ltd,BUILDING ALTERATIONS AND MATERIALS,"8,116.40","Works - Construction, Repair & Maint.Buildings.Construction"
03/07/2015,CAPITAL CC,Gandlake Ltd,ICT SOFTWARE,"6,600.00",Information Communication Technology.Software.Commercial Off-The-Shelf
03/07/2015,"STRATEGY & COMMISSIONING - CHILDREN, DISABILITIES & PUBLIC HEALTH",South London & Maudsley (nhs) Trust,PRIVATE CONTRACTORS PAYMENT - OTHER,"5,782.00",Social Community Care Supplies & Service.Adult.NA
03/07/2015,EDUCATION & LEARNING,Cap Trac Ltd,BUILDING ALTERATIONS AND MATERIALS,"5,600.00",Building Construction Materials.Floor Coverings.NA
03/07/2015,STRATEGY & COMMISSIONING - HOUSING & COMMUNITIES (HRA),Thames Water Utilities Ltd_d,WATER AND SEWERAGE,"5,128.87",Environmental Services.Water Assessment & Treatment.NA
03/07/2015,EDUCATION & LEARNING,AMI Consultancy and Training Ltd,PAYMENT TO HEALTH AUTHORITIES,"4,950.00",Healthcare.Services.NA
03/07/2015,CHILDREN'S SERVICES,Compass Fostering London & Eastern Ltd,FOSTERING AGENCY PLACEMENTS - PRIVATE CONTRACTORS PAYMENT,"4,350.00",Social Community Care Supplies & Service.Children.Fostering
03/07/2015,"STRATEGY & COMMISSIONING - CHILDREN, DISABILITIES & PUBLIC HEALTH",South London & Maudsley (nhs) Trust,PRIVATE CONTRACTORS PAYMENT - OTHER,"4,130.00",Social Community Care Supplies & Service.Adult.NA
03/07/2015,CAPITAL CC,Apollo Property Services Group Ltd,BUILDING ALTERATIONS AND MATERIALS,"3,821.54","Works - Construction, Repair & Maint.Buildings.Construction"
03/07/2015,CHILDREN'S SERVICES,Compass Fostering London & Eastern Ltd,FOSTERING AGENCY PLACEMENTS - PRIVATE CONTRACTORS PAYMENT,"3,597.30",Social Community Care Supplies & Service.Children.Fostering
03/07/2015,CAPITAL CC,Apollo Property Services Group Ltd,BUILDING ALTERATIONS AND MATERIALS,"3,531.54","Works - Construction, Repair & Maint.Buildings.Construction"
03/07/2015,HOUSING MANAGEMENT SERVICES,British Telecommunications plc,LAND LINE TELEPHONE COSTS,"3,484.40",Information Communication Technology.Telecommunications.NA
03/07/2015,CHILDREN'S SERVICES,London Councils,MEMBERSHIP AND SUBSCRIPTIONS,"3,000.00",Financial Services.Subscriptions.NA
03/07/2015,CHILDREN'S SERVICES,Compass Fostering London & Eastern Ltd,FOSTERING AGENCY PLACEMENTS - PRIVATE CONTRACTORS PAYMENT,"2,892.86",Social Community Care Supplies & Service.Children.Fostering
03/07/2015,CHILDREN'S SERVICES,Compass Fostering London & Eastern Ltd,FOSTERING AGENCY PLACEMENTS - PRIVATE CONTRACTORS PAYMENT,"2,892.86",Social Community Care Supplies & Service.Children.Fostering
03/07/2015,CHILDREN'S SERVICES,Compass Fostering London & Eastern Ltd,FOSTERING AGENCY PLACEMENTS - PRIVATE CONTRACTORS PAYMENT,"2,892.86",Social Community Care Supplies & Service.Children.Fostering
03/07/2015,"STRATEGY & COMMISSIONING - CHILDREN, DISABILITIES & PUBLIC HEALTH",South London & Maudsley (nhs) Trust,PRIVATE CONTRACTORS PAYMENT - OTHER,"2,891.00",Social Community Care Supplies & Service.Adult.NA
03/07/2015,"STRATEGY & COMMISSIONING - CHILDREN, DISABILITIES & PUBLIC HEALTH",South London & Maudsley (nhs) Trust,PRIVATE CONTRACTORS PAYMENT - OTHER,"2,478.00",Social Community Care Supplies & Service.Adult.NA
03/07/2015,ADULT SOCIAL CARE,Dr Zain Sadiq,PRIVATE CONTRACTORS PAYMENT - OTHER,"2,426.77",Social Community Care Supplies & Service.Adult.Advice & Counselling Services
03/07/2015,"STRATEGY & COMMISSIONING - CHILDREN, DISABILITIES & PUBLIC HEALTH",South London & Maudsley (nhs) Trust,PRIVATE CONTRACTORS PAYMENT - OTHER,"2,065.00",Social Community Care Supplies & Service.Adult.NA
03/07/2015,EDUCATION & LEARNING,JCM Seating Solutions Ltd,SPECIALIST EQUIPMENT FOR SERVICE PROVISION,"2,003.04",Social Community Care Supplies & Service.Supplies.Equipment
03/07/2015,HOUSING MANAGEMENT SERVICES,Cherwell District Council,PAYMENT TO PRIVATE SECTOR LANDLORDS (PSL),"1,947.40",Housing Management.Letting Agents.NA
03/07/2015,ADULT SOCIAL CARE,About Me Care and Support Ltd,DOMICILIARY CARE - THIRD PARTY,"1,687.89",Social Community Care Supplies & Service.Adult.Domiciliary Care
03/07/2015,"REGENERATION, PLANNING & NEIGHBOURHOODS",Trees for Cities,GROUNDS MAINTENANCE,"1,680.00",Horticultural.Tree Trimming.NA
03/07/2015,CAPITAL CC,Mace Ltd,PROFESSIONAL SERVICES - GENERAL,"1,645.38",Consultancy.Property.NA
03/07/2015,ADULT SOCIAL CARE,MEARS,DOMICILIARY CARE - THIRD PARTY,"1,488.02",Social Community Care Supplies & Service.Adult.Domiciliary Care
03/07/2015,FINANCE,Grant Thornton,PROFESSIONAL SERVICES - GENERAL,"1,470.00",Financial Services.Accountancy.NA
03/07/2015,CHILDREN'S SERVICES,Pact,PROFESSIONAL SERVICES - GENERAL,"1,460.40",Social Community Care Supplies & Service.Children.Adoption Inter-Agency Fees
03/07/2015,CHILDREN'S SERVICES,Freedom of Speech Ltd,PHOTOCOPYING,"1,235.00",Information Communication Technology.Office & Reprographics Equipment.NA
03/07/2015,CHILDREN'S SERVICES,CCH Express Cars & Couriers Ltd,CLIENT TRANSPORT,"1,195.25",Public Transport.Taxi Services.Non Staff
03/07/2015,ADULT SOCIAL CARE,Westminster Homecare Limited,DOMICILIARY CARE - THIRD PARTY,"1,114.48",Social Community Care Supplies & Service.Adult.Domiciliary Care
03/07/2015,"REGENERATION, PLANNING & NEIGHBOURHOODS",Hays Specialist Recruitment,AGENCY STAFF,"1,073.88",Human Resources.Temporary & Agency Staff.NA
03/07/2015,CHILDREN'S SERVICES,Optima Social Care Ltd,PRIVATE CONTRACTORS PAYMENT - OTHER,991.36,Social Community Care Supplies & Service.Adult.Residential Care
03/07/2015,BUSINESS & CUSTOMER SERVICES,Northgate Public Services (UK) Limited,ICT SOFTWARE,941.84,Information Communication Technology.Software.NA
03/07/2015,ADULT SOCIAL CARE,Unique Personnel (Uk) Ltd,DOMICILIARY CARE - THIRD PARTY,862.25,Social Community Care Supplies & Service.Disabled Children.NA
03/07/2015,ADULT SOCIAL CARE,Westminster Homecare Limited,DOMICILIARY CARE - THIRD PARTY,837.24,Social Community Care Supplies & Service.Adult.Domiciliary Care
03/07/2015,ADULT SOCIAL CARE,Capital Homecare (UK) Ltd,DOMICILIARY CARE - THIRD PARTY,836.60,Social Community Care Supplies & Service.Adult.Domiciliary Care
03/07/2015,"STRATEGY & COMMISSIONING - CHILDREN, DISABILITIES & PUBLIC HEALTH",South London & Maudsley (nhs) Trust,PRIVATE CONTRACTORS PAYMENT - OTHER,826.00,Social Community Care Supplies & Service.Adult.NA
03/07/2015,ADULT SOCIAL CARE,Capital Homecare (UK) Ltd,DOMICILIARY CARE - THIRD PARTY,820.34,Social Community Care Supplies & Service.Adult.Domiciliary Care
03/07/2015,"REGENERATION, PLANNING & NEIGHBOURHOODS",Owlsworth IJP Ltd,CONSULTANCY FEES,785.00,"Works - Construction, Repair & Maint.Consultancy.NA"
03/07/2015,ADULT SOCIAL CARE,MEARS,DOMICILIARY CARE - THIRD PARTY,748.83,Social Community Care Supplies & Service.Adult.Domiciliary Care
03/07/2015,ADULT SOCIAL CARE,Capital Homecare (UK) Ltd,DOMICILIARY CARE - THIRD PARTY,746.84,Social Community Care Supplies & Service.Adult.Domiciliary Care
03/07/2015,ADULT SOCIAL CARE,Harmony Home Aid Services Ltd,DOMICILIARY CARE - THIRD PARTY,717.60,Social Community Care Supplies & Service.Adult.Residential Care
03/07/2015,"STRATEGY & COMMISSIONING - CHILDREN, DISABILITIES & PUBLIC HEALTH",Hertfordshire Community NHS Trust,PAYMENT TO HEALTH AUTHORITIES,584.07,Healthcare.Public Health.NA
03/07/2015,"STRATEGY & COMMISSIONING - CHILDREN, DISABILITIES & PUBLIC HEALTH",Coventry and Warwickshire Partnership Trust,PAYMENT TO HEALTH AUTHORITIES,515.00,Healthcare.Public Health.NA
03/07/2015,ADULT SOCIAL CARE,Harmony Home Aid Services Ltd,DOMICILIARY CARE - THIRD PARTY,511.68,Social Community Care Supplies & Service.Adult.Residential Care
03/07/2015,ADULT SOCIAL CARE,Capital Homecare (UK) Ltd,DOMICILIARY CARE - THIRD PARTY,(768.20),Social Community Care Supplies & Service.Adult.Domiciliary Care
03/07/2015,CAPITAL CC,Mace Ltd,PROFESSIONAL SERVICES - GENERAL,(807.00),Consultancy.Property.NA
03/07/2015,CAPITAL CC,Mace Ltd,PROFESSIONAL SERVICES - GENERAL,(807.00),Consultancy.Property.NA
03/07/2015,HOUSING MANAGEMENT SERVICES,Mears Ltd,RESPONSIVE REPAIRS - MECHANICAL AND ELECTRICAL,"(9,442.52)","Works - Construction, Repair & Maint.Buildings.Repair & Maintenance"
03/07/2015,CAPITAL CC,Mace Ltd,PROFESSIONAL SERVICES - GENERAL,"(14,267.85)",Consultancy.Property.NA
03/07/2015,HOUSING MANAGEMENT SERVICES,Breyer Group Plc_d,"MAINTENANCE - EQUIPMENT, FURNITURE AND MATERIALS","(774,074.66)","Works - Construction, Repair & Maint.Buildings.Construction"
06/07/2015,HOUSING MANAGEMENT SERVICES,Morrison Facilities Services Ltd_d,FACILITIES MANAGEMENT,"216,804.70","Works - Construction, Repair & Maint.Buildings.Repair & Maintenance"
06/07/2015,CAPITAL CC,Oco Ltd_d,BUILDING ALTERATIONS AND MATERIALS,"65,496.83",Building Construction Materials.Heating & Air Conditioning.NA
06/07/2015,HOUSING MANAGEMENT SERVICES,Morrison Facilities Services Ltd_d,FACILITIES MANAGEMENT,"42,781.81","Works - Construction, Repair & Maint.Buildings.Repair & Maintenance"
06/07/2015,"REGENERATION, PLANNING & NEIGHBOURHOODS",OCS Group UK Ltd t/a Cannon,"PURCHASE - EQUIPMENT, FURNITURE AND MATERIALS","35,021.96",Street & Traffic Management.Closed-Circuit Television.NA
06/07/2015,"REGENERATION, PLANNING & NEIGHBOURHOODS",OCS Group UK Ltd t/a Cannon,"PURCHASE - EQUIPMENT, FURNITURE AND MATERIALS","35,021.96",Street & Traffic Management.Closed-Circuit Television.NA
06/07/2015,ADULT SOCIAL CARE,BUPA Care Homes,NURSING HOMES - PRIVATE CONTRACTORS PAYMENT,"16,100.08",Social Community Care Supplies & Service.Adult.Nursing Homes
06/07/2015,EDUCATION & LEARNING,NAS Services Ltd,PROFESSIONAL SERVICES - GENERAL,"12,676.89",Education.School Services.NA
06/07/2015,EDUCATION & LEARNING,NAS Services Ltd,PROFESSIONAL SERVICES - GENERAL,"12,676.89",Education.School Services.NA
06/07/2015,CAPITAL CC,Virgin Media Business,ICT HARDWARE,"12,600.00",Information Communication Technology.Hardware.NA
06/07/2015,CORPORATE ITEMS,Lambert Smith Hampton Group Ltd,CAPITAL RECEIPTS,"12,400.00",Consultancy.Technical & Feasibility.NA
06/07/2015,CAPITAL CC,Blakedown Landscapes (SE) Ltd_d,BUILDING ALTERATIONS AND MATERIALS,"8,201.96","Works - Construction, Repair & Maint.Open Spaces.Construction"
06/07/2015,"STRATEGY & COMMISSIONING - CHILDREN, DISABILITIES & PUBLIC HEALTH",Prentis Pharmacy,PAYMENT TO HEALTH AUTHORITIES,"7,619.95",Healthcare.Public Health.NA
06/07/2015,EDUCATION & LEARNING,NAS Services Ltd,PROFESSIONAL SERVICES - GENERAL,"7,392.33",Education.School Services.NA
06/07/2015,EDUCATION & LEARNING,NAS Services Ltd,NON-STAFF TRAINING,"7,392.33",Financial Services.Periodicals.NA
06/07/2015,ADULT SOCIAL CARE,Sanctuary Care Ltd,RESIDENTIAL CARE INCOME,"6,818.93",Social Community Care Supplies & Service.Adult.Residential Care
06/07/2015,ADULT SOCIAL CARE,Sanctuary Care Ltd,DOMICILIARY CARE - THIRD PARTY,"6,383.22",Social Community Care Supplies & Service.Adult.Residential Care
06/07/2015,"STRATEGY & COMMISSIONING - CHILDREN, DISABILITIES & PUBLIC HEALTH",Wispville Ltd,PAYMENT TO HEALTH AUTHORITIES,"6,031.50",Healthcare.Public Health.NA
06/07/2015,ADULT SOCIAL CARE,Saint Mary's Care Ltd,NURSING HOMES - PRIVATE CONTRACTORS PAYMENT,"5,764.28",Social Community Care Supplies & Service.Adult.Nursing Homes
06/07/2015,"REGENERATION, PLANNING & NEIGHBOURHOODS",Mytime Active Ltd,PAYMENT TO HEALTH AUTHORITIES,"5,650.00",Healthcare.Public Health.NA
06/07/2015,ADULT SOCIAL CARE,Hanbury Court Care Home,NURSING CARE INCOME,"5,195.99",Social Community Care Supplies & Service.Adult.Nursing Homes
06/07/2015,ADULT SOCIAL CARE,Saint Mary's Care Ltd,NURSING HOMES - PRIVATE CONTRACTORS PAYMENT,"5,100.00",Social Community Care Supplies & Service.Adult.Nursing Homes
06/07/2015,ADULT SOCIAL CARE,Four Seasons Health Care Ltd,NURSING HOMES - PRIVATE CONTRACTORS PAYMENT,"4,116.00",Social Community Care Supplies & Service.Adult.Nursing Homes
06/07/2015,ADULT SOCIAL CARE,Saint Mary's Care Ltd,NURSING HOMES - PRIVATE CONTRACTORS PAYMENT,"4,007.14",Social Community Care Supplies & Service.Adult.Nursing Homes
06/07/2015,ADULT SOCIAL CARE,Sanctuary Care Ltd,RESIDENTIAL PLACEMENTS - PRIVATE CONTRACTORS PAYMENT,"3,990.47",Social Community Care Supplies & Service.Adult.Residential Care
06/07/2015,"STRATEGY & COMMISSIONING - CHILDREN, DISABILITIES & PUBLIC HEALTH",Dr Santamaria_d,PAYMENT TO HEALTH AUTHORITIES,"3,969.90",Healthcare.Public Health.NA
06/07/2015,"STRATEGY & COMMISSIONING - CHILDREN, DISABILITIES & PUBLIC HEALTH",Wispville Ltd,PAYMENT TO HEALTH AUTHORITIES,"3,267.13",Healthcare.Public Health.NA
06/07/2015,"STRATEGY & COMMISSIONING - CHILDREN, DISABILITIES & PUBLIC HEALTH",South Lambeth Road Practice_d,PAYMENT TO HEALTH AUTHORITIES,"3,023.36",Healthcare.Public Health.NA
06/07/2015,"STRATEGY & COMMISSIONING - CHILDREN, DISABILITIES & PUBLIC HEALTH",Prentis Pharmacy,PAYMENT TO HEALTH AUTHORITIES,"2,946.00",Healthcare.Public Health.NA
06/07/2015,ADULT SOCIAL CARE,BUPA Care Homes,FUNDED NURSING CARE - PRIVATE CONTRACTORS PAYMENT,"2,913.41",Social Community Care Supplies & Service.Adult.Nursing Homes
06/07/2015,ADULT SOCIAL CARE,Westminster Homecare Limited,DOMICILIARY CARE - THIRD PARTY,"2,542.97",Social Community Care Supplies & Service.Adult.Domiciliary Care
06/07/2015,ADULT SOCIAL CARE,The Dulwich Care Centre,NURSING HOMES - PRIVATE CONTRACTORS PAYMENT,"2,515.68",Social Community Care Supplies & Service.Adult.Residential Homes for Older People
06/07/2015,ADULT SOCIAL CARE,Westminster Homecare Limited,DOMICILIARY CARE - THIRD PARTY,"2,398.30",Social Community Care Supplies & Service.Adult.Domiciliary Care
06/07/2015,ADULT SOCIAL CARE,Westminster Homecare Limited,DOMICILIARY CARE - THIRD PARTY,"2,378.72",Social Community Care Supplies & Service.Adult.Domiciliary Care
06/07/2015,ADULT SOCIAL CARE,Westminster Homecare Limited,DOMICILIARY CARE - THIRD PARTY,"2,103.43",Social Community Care Supplies & Service.Adult.Domiciliary Care
06/07/2015,ADULT SOCIAL CARE,Hanbury Court Care Home,NURSING HOMES - PRIVATE CONTRACTORS PAYMENT,"2,099.63",Social Community Care Supplies & Service.Adult.Nursing Homes
06/07/2015,ADULT SOCIAL CARE,The Rathbone Centre,DOMICILIARY CARE - THIRD PARTY,"2,061.52",Social Community Care Supplies & Service.Adult.Domiciliary Care
06/07/2015,ADULT SOCIAL CARE,Hanbury Court Care Home,NURSING HOMES - PRIVATE CONTRACTORS PAYMENT,"2,031.90",Social Community Care Supplies & Service.Adult.Nursing Homes
06/07/2015,ADULT SOCIAL CARE,Hanbury Court Care Home,NURSING HOMES - PRIVATE CONTRACTORS PAYMENT,"2,031.90",Social Community Care Supplies & Service.Adult.Nursing Homes
06/07/2015,ADULT SOCIAL CARE,Sanctuary Care Ltd,DOMICILIARY CARE - THIRD PARTY,"2,006.88",Social Community Care Supplies & Service.Adult.Residential Care
06/07/2015,ADULT SOCIAL CARE,Carewatch (Lambeth),DOMICILIARY CARE - THIRD PARTY,"1,950.14",Social Community Care Supplies & Service.Adult.Domiciliary Care
06/07/2015,ADULT SOCIAL CARE,Carewatch (Lambeth),DOMICILIARY CARE - THIRD PARTY,"1,846.60",Social Community Care Supplies & Service.Adult.Domiciliary Care
06/07/2015,CAPITAL CC,Lambert Smith Hampton Group Ltd,GRANTS AND CONTRIBUTIONS,"1,800.00",Financial Services.Grants.NA
06/07/2015,HOUSING MANAGEMENT SERVICES,B&Q Plc,DECORATION,"1,789.14",Building Construction Materials.Paint & Finishing.NA
06/07/2015,ADULT SOCIAL CARE,Carewatch (Lambeth),DOMICILIARY CARE - THIRD PARTY,"1,749.18",Social Community Care Supplies & Service.Adult.Domiciliary Care
06/07/2015,ADULT SOCIAL CARE,Thames Homecare Ltd,DOMICILIARY CARE - THIRD PARTY,"1,702.88",Social Community Care Supplies & Service.Adult.Domiciliary Care
06/07/2015,ADULT SOCIAL CARE,Carewatch (Lambeth),DOMICILIARY CARE - THIRD PARTY,"1,613.12",Social Community Care Supplies & Service.Adult.Domiciliary Care
06/07/2015,ADULT SOCIAL CARE,Bluebird Care Lambeth,DOMICILIARY CARE - THIRD PARTY,"1,581.00",Social Community Care Supplies & Service.Adult.Domiciliary Care
06/07/2015,ADULT SOCIAL CARE,Carewatch (Lambeth),DOMICILIARY CARE - THIRD PARTY,"1,571.05",Social Community Care Supplies & Service.Adult.Domiciliary Care
06/07/2015,ADULT SOCIAL CARE,Bluebird Care Lambeth,DOMICILIARY CARE - THIRD PARTY,"1,566.00",Social Community Care Supplies & Service.Adult.Domiciliary Care
06/07/2015,ADULT SOCIAL CARE,Carewatch (Lambeth),DOMICILIARY CARE - THIRD PARTY,"1,561.32",Social Community Care Supplies & Service.Adult.Domiciliary Care
06/07/2015,ADULT SOCIAL CARE,Carewatch (Lambeth),DOMICILIARY CARE - THIRD PARTY,"1,558.34",Social Community Care Supplies & Service.Adult.Domiciliary Care
06/07/2015,CHILDREN'S SERVICES,Risbol Ltd,PRIVATE CONTRACTORS PAYMENT - OTHER,"1,485.00",Housing Management.Stock Management.NA
06/07/2015,ADULT SOCIAL CARE,Carewatch (Lambeth),DOMICILIARY CARE - THIRD PARTY,"1,411.85",Social Community Care Supplies & Service.Adult.Domiciliary Care
06/07/2015,HOUSING NEEDS,Kindly Properties,BED & BREAKFAST - PRIVATE CONTRACTORS PAYMENT,"1,395.00",Housing Management.Letting Agents.NA
06/07/2015,HOUSING NEEDS,Kindly Properties,BED & BREAKFAST - PRIVATE CONTRACTORS PAYMENT,"1,395.00",Housing Management.Letting Agents.NA
06/07/2015,HOUSING MANAGEMENT SERVICES,M3 Housing Ltd,FACILITIES MANAGEMENT,"1,380.00","Works - Construction, Repair & Maint.Buildings.Repair & Maintenance"
06/07/2015,ADULT SOCIAL CARE,BT Global Services,LAND LINE TELEPHONE COSTS,"1,292.27",Information Communication Technology.Telecommunications.Fixed
06/07/2015,HOUSING NEEDS,Kindly Properties,BED & BREAKFAST - PRIVATE CONTRACTORS PAYMENT,"1,240.00",Housing Management.Letting Agents.NA
06/07/2015,ADULT SOCIAL CARE,Westminster Homecare Limited,DOMICILIARY CARE - THIRD PARTY,"1,221.59",Social Community Care Supplies & Service.Adult.Domiciliary Care
06/07/2015,ADULT SOCIAL CARE,Xtracare Agency Ltd,DOMICILIARY CARE - THIRD PARTY,"1,216.00",Social Community Care Supplies & Service.Adult.Domiciliary Care
06/07/2015,ADULT SOCIAL CARE,Saint Mary's Care Ltd,FUNDED NURSING CARE - PRIVATE CONTRACTORS PAYMENT,"1,200.00",Social Community Care Supplies & Service.Adult.Nursing Homes
06/07/2015,ADULT SOCIAL CARE,Bluebird Care Lambeth,DOMICILIARY CARE - THIRD PARTY,"1,192.00",Social Community Care Supplies & Service.Adult.Domiciliary Care
06/07/2015,HOUSING NEEDS,Kindly Properties,BED & BREAKFAST - PRIVATE CONTRACTORS PAYMENT,"1,178.00",Housing Management.Letting Agents.NA
06/07/2015,ADULT SOCIAL CARE,Jane Ramsay,PAYMENT TO HEALTH AUTHORITIES,"1,165.60",Healthcare.Services.NA
06/07/2015,"STRATEGY & COMMISSIONING - CHILDREN, DISABILITIES & PUBLIC HEALTH",The Tulse Hill Practice,PAYMENT TO HEALTH AUTHORITIES,"1,110.09",Healthcare.Public Health.NA
06/07/2015,ADULT SOCIAL CARE,Westminster Homecare Limited,DOMICILIARY CARE - THIRD PARTY,"1,097.73",Social Community Care Supplies & Service.Adult.Domiciliary Care
06/07/2015,ADULT SOCIAL CARE,The Rathbone Centre,DOMICILIARY CARE - THIRD PARTY,"1,091.52",Social Community Care Supplies & Service.Adult.Domiciliary Care
06/07/2015,HOUSING NEEDS,Kindly Properties,BED & BREAKFAST - PRIVATE CONTRACTORS PAYMENT,"1,085.00",Housing Management.Letting Agents.NA
06/07/2015,ADULT SOCIAL CARE,Carewatch (Lambeth),DOMICILIARY CARE - THIRD PARTY,"1,041.96",Social Community Care Supplies & Service.Adult.Domiciliary Care
06/07/2015,EDUCATION & LEARNING,Bolney Meadow Community Centre CIC,PREMISES HIRE - FACILITIES,"1,040.00",Facilities & Management Services.Room Hire.NA
06/07/2015,EDUCATION & LEARNING,British Gas,GAS,"1,029.08",Utilities.Gas.NA
06/07/2015,ADULT SOCIAL CARE,Lambeth Chinese Community Association,DOMICILIARY CARE - THIRD PARTY,"1,008.94",Social Community Care Supplies & Service.Adult.Black & Minority Ethnic Services
06/07/2015,ADULT SOCIAL CARE,Carewatch (Lambeth),DOMICILIARY CARE - THIRD PARTY,926.99,Social Community Care Supplies & Service.Adult.Domiciliary Care
06/07/2015,ADULT SOCIAL CARE,Carewatch (Lambeth),DOMICILIARY CARE - THIRD PARTY,921.28,Social Community Care Supplies & Service.Adult.Domiciliary Care
06/07/2015,ADULT SOCIAL CARE,Xtracare Agency Ltd,DOMICILIARY CARE - THIRD PARTY,920.00,Social Community Care Supplies & Service.Adult.Domiciliary Care
06/07/2015,FINANCE,Capita Business Services Ltd,STAFF DEVELOPMENT AND TRAINING,875.00,Information Communication Technology.Software.NA
06/07/2015,HOUSING NEEDS,Kindly Properties,BED & BREAKFAST - PRIVATE CONTRACTORS PAYMENT,867.00,Housing Management.Letting Agents.NA
06/07/2015,ADULT SOCIAL CARE,Thames Homecare Ltd,DOMICILIARY CARE - THIRD PARTY,851.44,Social Community Care Supplies & Service.Adult.Domiciliary Care
06/07/2015,ADULT SOCIAL CARE,Bluebird Care Lambeth,DOMICILIARY CARE - THIRD PARTY,845.00,Social Community Care Supplies & Service.Adult.Domiciliary Care
06/07/2015,CHILDREN'S SERVICES,Joan Williams,HOTEL AND OTHER ACCOMMODATION COSTS,844.72,Human Resources.Accommodation.NA
06/07/2015,"STRATEGY & COMMISSIONING - CHILDREN, DISABILITIES & PUBLIC HEALTH",Herne Hill Road Medical Practice_d,PAYMENT TO HEALTH AUTHORITIES,843.00,Healthcare.Public Health.NA
06/07/2015,ADULT SOCIAL CARE,Lambeth Chinese Community Association,DOMICILIARY CARE - THIRD PARTY,811.21,Social Community Care Supplies & Service.Adult.Black & Minority Ethnic Services
06/07/2015,ADULT SOCIAL CARE,Lambeth Chinese Community Association,DOMICILIARY CARE - THIRD PARTY,808.94,Social Community Care Supplies & Service.Adult.Black & Minority Ethnic Services
06/07/2015,ADULT SOCIAL CARE,Carewatch (Lambeth),DOMICILIARY CARE - THIRD PARTY,804.72,Social Community Care Supplies & Service.Adult.Domiciliary Care
06/07/2015,ADULT SOCIAL CARE,Carewatch (Lambeth),DOMICILIARY CARE - THIRD PARTY,803.60,Social Community Care Supplies & Service.Adult.Domiciliary Care
06/07/2015,ADULT SOCIAL CARE,Four Seasons Health Care Ltd,FUNDED NURSING CARE - PRIVATE CONTRACTORS PAYMENT,784.00,Social Community Care Supplies & Service.Adult.Nursing Homes
06/07/2015,ADULT SOCIAL CARE,Bluebird Care Lambeth,DOMICILIARY CARE - THIRD PARTY,770.00,Social Community Care Supplies & Service.Adult.Domiciliary Care
06/07/2015,BUSINESS & CUSTOMER SERVICES,Age UK Lambeth,PRIVATE CONTRACTORS PAYMENT - OTHER,760.00,Social Community Care Supplies & Service.Adult.NA
06/07/2015,ADULT SOCIAL CARE,The Rathbone Centre,DOMICILIARY CARE - THIRD PARTY,758.00,Social Community Care Supplies & Service.Adult.Domiciliary Care
06/07/2015,HOUSING NEEDS,Kindly Properties,BED & BREAKFAST - PRIVATE CONTRACTORS PAYMENT,735.00,Housing Management.Letting Agents.NA
06/07/2015,"STRATEGY & COMMISSIONING - CHILDREN, DISABILITIES & PUBLIC HEALTH",Herne Hill Road Medical Practice_d,PAYMENT TO HEALTH AUTHORITIES,709.97,Healthcare.Public Health.NA
06/07/2015,ADULT SOCIAL CARE,Carewatch (Lambeth),DOMICILIARY CARE - THIRD PARTY,705.24,Social Community Care Supplies & Service.Adult.Domiciliary Care
06/07/2015,ADULT SOCIAL CARE,Parkview Nursing Home,NURSING HOMES - PRIVATE CONTRACTORS PAYMENT,700.00,Social Community Care Supplies & Service.Adult.Nursing Homes
06/07/2015,ADULT SOCIAL CARE,Lambeth Chinese Community Association,DOMICILIARY CARE - THIRD PARTY,689.46,Social Community Care Supplies & Service.Adult.Black & Minority Ethnic Services
06/07/2015,ADULT SOCIAL CARE,Lambeth Chinese Community Association,DOMICILIARY CARE - THIRD PARTY,675.70,Social Community Care Supplies & Service.Adult.Black & Minority Ethnic Services
06/07/2015,ADULT SOCIAL CARE,Unique Personnel (Uk) Ltd,DOMICILIARY CARE - THIRD PARTY,675.00,Social Community Care Supplies & Service.Disabled Children.NA
06/07/2015,ADULT SOCIAL CARE,Unique Personnel (Uk) Ltd,DOMICILIARY CARE - THIRD PARTY,675.00,Social Community Care Supplies & Service.Disabled Children.NA
06/07/2015,ADULT SOCIAL CARE,Carewatch (Lambeth),DOMICILIARY CARE - THIRD PARTY,651.76,Social Community Care Supplies & Service.Adult.Domiciliary Care
06/07/2015,ADULT SOCIAL CARE,Bluebird Care Lambeth,DOMICILIARY CARE - THIRD PARTY,650.00,Social Community Care Supplies & Service.Adult.Domiciliary Care
06/07/2015,ADULT SOCIAL CARE,Lambeth Chinese Community Association,DOMICILIARY CARE - THIRD PARTY,638.96,Social Community Care Supplies & Service.Adult.Black & Minority Ethnic Services
06/07/2015,ADULT SOCIAL CARE,Xtracare Agency Ltd,DOMICILIARY CARE - THIRD PARTY,624.00,Social Community Care Supplies & Service.Adult.Domiciliary Care
06/07/2015,ADULT SOCIAL CARE,Carewatch (Lambeth),DOMICILIARY CARE - THIRD PARTY,621.11,Social Community Care Supplies & Service.Adult.Domiciliary Care
06/07/2015,ADULT SOCIAL CARE,Westminster Homecare Limited,DOMICILIARY CARE - THIRD PARTY,615.84,Social Community Care Supplies & Service.Adult.Domiciliary Care
06/07/2015,ADULT SOCIAL CARE,Carewatch (Lambeth),DOMICILIARY CARE - THIRD PARTY,608.06,Social Community Care Supplies & Service.Adult.Domiciliary Care
06/07/2015,ADULT SOCIAL CARE,Westminster Homecare Limited,DOMICILIARY CARE - THIRD PARTY,607.04,Social Community Care Supplies & Service.Adult.Domiciliary Care
06/07/2015,ADULT SOCIAL CARE,Westminster Homecare Limited,DOMICILIARY CARE - THIRD PARTY,607.04,Social Community Care Supplies & Service.Adult.Domiciliary Care
06/07/2015,ADULT SOCIAL CARE,The Rathbone Centre,DOMICILIARY CARE - THIRD PARTY,606.40,Social Community Care Supplies & Service.Adult.Domiciliary Care
06/07/2015,ADULT SOCIAL CARE,The Rathbone Centre,DOMICILIARY CARE - THIRD PARTY,606.40,Social Community Care Supplies & Service.Adult.Domiciliary Care
06/07/2015,ADULT SOCIAL CARE,The Rathbone Centre,DOMICILIARY CARE - THIRD PARTY,606.40,Social Community Care Supplies & Service.Adult.Domiciliary Care
06/07/2015,"STRATEGY & COMMISSIONING - CHILDREN, DISABILITIES & PUBLIC HEALTH",Grantham Centre Practice,PAYMENT TO HEALTH AUTHORITIES,604.61,Healthcare.Public Health.NA
06/07/2015,ADULT SOCIAL CARE,Westminster Homecare Limited,DOMICILIARY CARE - THIRD PARTY,586.40,Social Community Care Supplies & Service.Adult.Domiciliary Care
06/07/2015,"STRATEGY & COMMISSIONING - CHILDREN, DISABILITIES & PUBLIC HEALTH",Prentis Pharmacy,PAYMENT TO HEALTH AUTHORITIES,583.50,Healthcare.Public Health.NA
06/07/2015,ADULT SOCIAL CARE,Carewatch (Lambeth),DOMICILIARY CARE - THIRD PARTY,576.55,Social Community Care Supplies & Service.Adult.Domiciliary Care
06/07/2015,ADULT SOCIAL CARE,Carewatch (Lambeth),DOMICILIARY CARE - THIRD PARTY,576.05,Social Community Care Supplies & Service.Adult.Domiciliary Care
06/07/2015,ADULT SOCIAL CARE,Carewatch (Lambeth),DOMICILIARY CARE - THIRD PARTY,573.22,Social Community Care Supplies & Service.Adult.Domiciliary Care
06/07/2015,ADULT SOCIAL CARE,Carewatch (Lambeth),DOMICILIARY CARE - THIRD PARTY,571.62,Social Community Care Supplies & Service.Adult.Domiciliary Care
06/07/2015,ADULT SOCIAL CARE,Youth Graces (UK) Ltd,DOMICILIARY CARE - THIRD PARTY,563.50,Social Community Care Supplies & Service.Adult.Domiciliary Care
06/07/2015,ADULT SOCIAL CARE,Carewatch (Lambeth),DOMICILIARY CARE - THIRD PARTY,563.18,Social Community Care Supplies & Service.Adult.Domiciliary Care
06/07/2015,CHILDREN'S SERVICES,Joan Williams,TRANSPORT COSTS - STAFF,561.00,Human Resources.Travel & Subsistence.Taxi Fares
06/07/2015,ADULT SOCIAL CARE,Youth Graces (UK) Ltd,DOMICILIARY CARE - THIRD PARTY,556.50,Social Community Care Supplies & Service.Adult.Domiciliary Care
06/07/2015,HOUSING MANAGEMENT SERVICES,B&Q Plc,DECORATION,550.50,Building Construction Materials.Paint & Finishing.NA
06/07/2015,CHILDREN'S SERVICES,Joan Williams,HOTEL AND OTHER ACCOMMODATION COSTS,540.50,Human Resources.Accommodation.NA
06/07/2015,ADULT SOCIAL CARE,Hanbury Court Care Home,FUNDED NURSING CARE - PRIVATE CONTRACTORS PAYMENT,500.75,Social Community Care Supplies & Service.Adult.Nursing Homes
06/07/2015,CHILDREN'S SERVICES,Natasha Barnes,LEGAL FEES,500.00,Legal Services.Advocacy.NA
06/07/2015,ADULT SOCIAL CARE,Hanbury Court Care Home,CONTRIBUTIONS FROM HEALTH FOR FUNDED NURSING CARE (INCOME),(500.75),Social Community Care Supplies & Service.Adult.Nursing Homes
06/07/2015,"STRATEGY & COMMISSIONING - CHILDREN, DISABILITIES & PUBLIC HEALTH",Mediparmacy group,HIRE OF ROOMS AND HALLS INCOME - NON VATABLE,"(1,073.00)",Facilities & Management Services.Room Hire.NA
06/07/2015,ADULT SOCIAL CARE,Four Seasons Health Care Ltd,NURSING CARE INCOME,"(1,335.60)",Social Community Care Supplies & Service.Adult.Nursing Homes
06/07/2015,"STRATEGY & COMMISSIONING - CHILDREN, DISABILITIES & PUBLIC HEALTH",Dr Santamaria_d,PAYMENT TO HEALTH AUTHORITIES,"(1,466.00)",Healthcare.Public Health.NA
06/07/2015,ADULT SOCIAL CARE,Hanbury Court Care Home,NURSING CARE INCOME,"(2,507.14)",Social Community Care Supplies & Service.Adult.Nursing Homes
06/07/2015,ADULT SOCIAL CARE,Hanbury Court Care Home,NURSING CARE INCOME,"(2,590.71)",Social Community Care Supplies & Service.Adult.Nursing Homes
06/07/2015,"STRATEGY & COMMISSIONING - CHILDREN, DISABILITIES & PUBLIC HEALTH",Herne Hill Road Medical Practice_d,PAYMENT TO HEALTH AUTHORITIES,"(4,007.00)",Healthcare.Public Health.NA
06/07/2015,ADULT SOCIAL CARE,BUPA Care Homes,NURSING CARE INCOME,"(4,791.70)",Social Community Care Supplies & Service.Adult.Nursing Homes
06/07/2015,"STRATEGY & COMMISSIONING - CHILDREN, DISABILITIES & PUBLIC HEALTH",Prentis Pharmacy,PAYMENT TO HEALTH AUTHORITIES,"(5,474.00)",Healthcare.Public Health.NA
06/07/2015,ADULT SOCIAL CARE,Hanbury Court Care Home,NURSING CARE INCOME,"(6,261.57)",Social Community Care Supplies & Service.Adult.Nursing Homes
06/07/2015,EDUCATION & LEARNING,NAS Services Ltd,NON-STAFF TRAINING,"(7,392.33)",Financial Services.Periodicals.NA
06/07/2015,EDUCATION & LEARNING,NAS Services Ltd,PROFESSIONAL SERVICES - GENERAL,"(12,676.89)",Education.School Services.NA
07/07/2015,ADULT SOCIAL CARE,Jontek Ltd,ICT SOFTWARE,"27,948.00",Information Communication Technology.Software.NA
07/07/2015,"REGENERATION, PLANNING & NEIGHBOURHOODS",Liberty Printers Ltd,PRINTING,"23,859.68",Facilities & Management Services.Printing.NA
07/07/2015,EDUCATION & LEARNING,The Priory Lodge School,PROFESSIONAL SERVICES - GENERAL,"21,666.67",Education.Educational Placements.NA
07/07/2015,"REGENERATION, PLANNING & NEIGHBOURHOODS",Liberty Printers Ltd,PRINTING,"20,617.60",Facilities & Management Services.Printing.NA
07/07/2015,EDUCATION & LEARNING,Kelly Executive,CLIENT TRANSPORT,"18,181.00",Public Transport.Taxi Services.NA
07/07/2015,EDUCATION & LEARNING,The Chelsea Group of Children Ltd,PROFESSIONAL SERVICES - GENERAL,"16,245.00",Education.School Services.NA
07/07/2015,CHILDREN'S SERVICES,Oasis Care & Training Agency,DOMICILIARY CARE - THIRD PARTY,"16,170.00",Social Community Care Supplies & Service.Adult.Domiciliary Care
07/07/2015,CORPORATE AFFAIRS,Anthony Gold Solicitors,LEGAL FEES,"15,000.00",Legal Services.Advocacy.NA
07/07/2015,CHILDREN'S SERVICES,Oasis Care & Training Agency,DOMICILIARY CARE - THIRD PARTY,"12,447.60",Social Community Care Supplies & Service.Adult.Domiciliary Care
07/07/2015,ADULT SOCIAL CARE,The Rathbone Centre,DOMICILIARY CARE - THIRD PARTY,"10,500.30",Social Community Care Supplies & Service.Adult.Domiciliary Care
07/07/2015,HOUSING NEEDS,Anthony Gold Solicitors,LEGAL FEES,"9,875.99",Legal Services.Advocacy.NA
07/07/2015,EDUCATION & LEARNING,Healthcare & Transport Services,CLIENT TRANSPORT,"9,024.65",Public Transport.Taxi Services.NA
07/07/2015,EDUCATION & LEARNING,A* Transport Ltd,DIRECT TRANSPORT,"8,110.00",Public Transport.Passenger Transport.NA
07/07/2015,HOUSING MANAGEMENT SERVICES,Openview Security Solutions Ltd,RESPONSIVE REPAIRS - MECHANICAL AND ELECTRICAL,"7,795.97",Facilities & Management Services.Security.Closed-Circuit Television
07/07/2015,HOUSING MANAGEMENT SERVICES,KNK Building Services Ltd_d,RESPONSIVE REPAIRS - MECHANICAL AND ELECTRICAL,"6,915.00",Building Construction Materials.Paint & Finishing.NA
07/07/2015,CHILDREN'S SERVICES,Supported Fostering Services,FOSTERING AGENCY PLACEMENTS - PRIVATE CONTRACTORS PAYMENT,"5,600.54",Social Community Care Supplies & Service.Children.Fostering
07/07/2015,CHILDREN'S SERVICES,Freshstart Care Solutions Ltd,PRIVATE CONTRACTORS PAYMENT - OTHER,"5,600.00",Social Community Care Supplies & Service.Adult.Residential Care
07/07/2015,CHILDREN'S SERVICES,Supported Fostering Services,FOSTERING AGENCY PLACEMENTS - PRIVATE CONTRACTORS PAYMENT,"4,800.44",Social Community Care Supplies & Service.Children.Fostering
07/07/2015,CAPITAL CC,Streatham Youth & Community Trust_d,PRIVATE CONTRACTORS PAYMENT - OTHER,"4,260.90",Social Community Care Supplies & Service.Children.Childcare Services
07/07/2015,CORPORATE AFFAIRS,Charles Allotey & Co,LEGAL FEES,"4,101.39",Legal Services.Advocacy.NA
07/07/2015,CORPORATE AFFAIRS,Anthony Gold Solicitors,LEGAL FEES,"3,814.18",Legal Services.Advocacy.NA
07/07/2015,CAPITAL CC,Frankham Consultancy Group Ltd,CONSULTANCY FEES,"3,213.00","Works - Construction, Repair & Maint.Consultancy.NA"
07/07/2015,CHILDREN'S SERVICES,Supported Fostering Services,FOSTERING AGENCY PLACEMENTS - PRIVATE CONTRACTORS PAYMENT,"3,107.08",Social Community Care Supplies & Service.Children.Fostering
07/07/2015,CHILDREN'S SERVICES,Supported Fostering Services,FOSTERING AGENCY PLACEMENTS - PRIVATE CONTRACTORS PAYMENT,"3,107.08",Social Community Care Supplies & Service.Children.Fostering
07/07/2015,CHILDREN'S SERVICES,Supported Fostering Services,FOSTERING AGENCY PLACEMENTS - PRIVATE CONTRACTORS PAYMENT,"3,107.08",Social Community Care Supplies & Service.Children.Fostering
07/07/2015,EDUCATION & LEARNING,London Borough of Lewisham,PRIVATE CONTRACTORS PAYMENT - OTHER,"3,025.00",Social Community Care Supplies & Service.Adult.NA
07/07/2015,ADULT SOCIAL CARE,Carewatch (Lambeth),DOMICILIARY CARE - THIRD PARTY,"2,910.28",Social Community Care Supplies & Service.Adult.Domiciliary Care
07/07/2015,ADULT SOCIAL CARE,Carewatch (Lambeth),DOMICILIARY CARE - THIRD PARTY,"2,536.80",Social Community Care Supplies & Service.Adult.Domiciliary Care
07/07/2015,ADULT SOCIAL CARE,Carewatch (Lambeth),DOMICILIARY CARE - THIRD PARTY,"2,520.30",Social Community Care Supplies & Service.Adult.Domiciliary Care
07/07/2015,EDUCATION & LEARNING,Jane Hills Consulting Ltd,PROFESSIONAL SERVICES - GENERAL,"2,500.00",Human Resources.Professional & Advisory Services.NA
07/07/2015,ADULT SOCIAL CARE,Carewatch (Lambeth),DOMICILIARY CARE - THIRD PARTY,"2,485.30",Social Community Care Supplies & Service.Adult.Domiciliary Care
07/07/2015,"REGENERATION, PLANNING & NEIGHBOURHOODS",Moon Beever Solicitors,LEGAL FEES,"2,425.00",Legal Services.General Support.NA
07/07/2015,ADULT SOCIAL CARE,Carewatch (Lambeth),DOMICILIARY CARE - THIRD PARTY,"2,372.00",Social Community Care Supplies & Service.Adult.Domiciliary Care
07/07/2015,HOUSING MANAGEMENT SERVICES,KNK Building Services Ltd_d,DECORATION,"2,356.20",Building Construction Materials.Paint & Finishing.NA
07/07/2015,ADULT SOCIAL CARE,Westminster Homecare Limited,DOMICILIARY CARE - THIRD PARTY,"2,244.94",Social Community Care Supplies & Service.Adult.Domiciliary Care
07/07/2015,HOUSING MANAGEMENT SERVICES,KNK Building Services Ltd_d,RESPONSIVE REPAIRS - MECHANICAL AND ELECTRICAL,"2,160.00",Building Construction Materials.Paint & Finishing.NA
07/07/2015,EDUCATION & LEARNING,Sherwood Cars Ltd,CLIENT TRANSPORT,"2,130.00",Public Transport.Taxi Services.Home to School
07/07/2015,CHILDREN'S SERVICES,HMCTS,LEGAL FEES,"2,055.00",Legal Services.General Support.NA
07/07/2015,CHILDREN'S SERVICES,HMCTS,LEGAL FEES,"2,055.00",Legal Services.General Support.NA
07/07/2015,CHILDREN'S SERVICES,HMCTS,LEGAL FEES,"2,055.00",Legal Services.General Support.NA
07/07/2015,ADULT SOCIAL CARE,Carewatch (Lambeth),DOMICILIARY CARE - THIRD PARTY,"2,013.05",Social Community Care Supplies & Service.Adult.Domiciliary Care
07/07/2015,ADULT SOCIAL CARE,Carewatch (Lambeth),DOMICILIARY CARE - THIRD PARTY,"2,013.05",Social Community Care Supplies & Service.Adult.Domiciliary Care
07/07/2015,ADULT SOCIAL CARE,Carewatch (Lambeth),DOMICILIARY CARE - THIRD PARTY,"1,997.60",Social Community Care Supplies & Service.Adult.Domiciliary Care
07/07/2015,ADULT SOCIAL CARE,The Rathbone Centre,DOMICILIARY CARE - THIRD PARTY,"1,970.60",Social Community Care Supplies & Service.Adult.Domiciliary Care
07/07/2015,CHILDREN'S SERVICES,Ayeesha Bhutta,LEGAL FEES,"1,900.00",Legal Services.Legal Opinion.NA
07/07/2015,CHILDREN'S SERVICES,Lesley Tapson,LEGAL FEES,"1,856.00",Legal Services.Legal Opinion.NA
07/07/2015,CHILDREN'S SERVICES,Allied Healthcare (UK) Ltd,DOMICILIARY CARE - THIRD PARTY,"1,854.96",Social Community Care Supplies & Service.Adult.Domiciliary Care
07/07/2015,CHILDREN'S SERVICES,Allied Healthcare (UK) Ltd,DOMICILIARY CARE - THIRD PARTY,"1,839.24",Social Community Care Supplies & Service.Adult.Domiciliary Care
07/07/2015,CHILDREN'S SERVICES,Allied Healthcare (UK) Ltd,DOMICILIARY CARE - THIRD PARTY,"1,776.36",Social Community Care Supplies & Service.Adult.Domiciliary Care
07/07/2015,CHILDREN'S SERVICES,Allied Healthcare (UK) Ltd,DOMICILIARY CARE - THIRD PARTY,"1,760.64",Social Community Care Supplies & Service.Adult.Domiciliary Care
07/07/2015,CAPITAL CC,Prism Medical UK,GRANTS AND CONTRIBUTIONS,"1,745.50",Financial Services.Grants.NA
07/07/2015,NO RECOURSE TO PUBLIC FUNDS,Pearl House,RENTS PAYABLE,"1,711.66",Social Community Care Supplies & Service.Children.Residential Care
07/07/2015,CHILDREN'S SERVICES,Allied Healthcare (UK) Ltd,DOMICILIARY CARE - THIRD PARTY,"1,674.18",Social Community Care Supplies & Service.Adult.Domiciliary Care
07/07/2015,CHILDREN'S SERVICES,Allied Healthcare (UK) Ltd,DOMICILIARY CARE - THIRD PARTY,"1,461.96",Social Community Care Supplies & Service.Adult.Domiciliary Care
07/07/2015,ADULT SOCIAL CARE,Westminster Homecare Limited,DOMICILIARY CARE - THIRD PARTY,"1,336.77",Social Community Care Supplies & Service.Adult.Domiciliary Care
07/07/2015,ADULT SOCIAL CARE,Carewatch (Lambeth),DOMICILIARY CARE - THIRD PARTY,"1,255.20",Social Community Care Supplies & Service.Adult.Domiciliary Care
07/07/2015,ADULT SOCIAL CARE,Westminster Homecare Limited,DOMICILIARY CARE - THIRD PARTY,"1,250.45",Social Community Care Supplies & Service.Adult.Domiciliary Care
07/07/2015,CHILDREN'S SERVICES,Bennett Workplace Solutions,PRIVATE CONTRACTORS PAYMENT - OTHER,"1,163.00",Social Community Care Supplies & Service.Adult.Mental Health Services
07/07/2015,CHILDREN'S SERVICES,DSP Psychology,LEGAL FEES,"1,115.33",Legal Services.Specialist Support.NA
07/07/2015,CORPORATE AFFAIRS,Naomi Hawkes,LEGAL FEES,"1,000.00",Legal Services.Legal Opinion.NA
07/07/2015,CORPORATE AFFAIRS,Naomi Hawkes,LEGAL FEES,"1,000.00",Legal Services.Legal Opinion.NA
07/07/2015,HOUSING MANAGEMENT SERVICES,KNK Building Services Ltd_d,RESPONSIVE REPAIRS - BUILDING,980.72,Building Construction Materials.Paint & Finishing.NA
07/07/2015,HOUSING MANAGEMENT SERVICES,KNK Building Services Ltd_d,RESPONSIVE REPAIRS - BUILDING,980.72,Building Construction Materials.Paint & Finishing.NA
07/07/2015,HOUSING MANAGEMENT SERVICES,KNK Building Services Ltd_d,RESPONSIVE REPAIRS - BUILDING,980.72,Building Construction Materials.Paint & Finishing.NA
07/07/2015,ADULT SOCIAL CARE,Unique Personnel (Uk) Ltd,DOMICILIARY CARE - THIRD PARTY,962.50,Social Community Care Supplies & Service.Disabled Children.NA
07/07/2015,ADULT SOCIAL CARE,Westminster Homecare Limited,DOMICILIARY CARE - THIRD PARTY,957.04,Social Community Care Supplies & Service.Adult.Domiciliary Care
07/07/2015,SENIOR MANAGEMENT - NEIGHBOURHOODS & GROWTH,Steeles (Law) LLP,LEGAL FEES,944.00,Legal Services.General Support.NA
07/07/2015,ADULT SOCIAL CARE,Westminster Homecare Limited,DOMICILIARY CARE - THIRD PARTY,934.83,Social Community Care Supplies & Service.Adult.Domiciliary Care
07/07/2015,ADULT SOCIAL CARE,The Rathbone Centre,DOMICILIARY CARE - THIRD PARTY,909.60,Social Community Care Supplies & Service.Adult.Domiciliary Care
07/07/2015,ADULT SOCIAL CARE,Unique Personnel (Uk) Ltd,DOMICILIARY CARE - THIRD PARTY,895.75,Social Community Care Supplies & Service.Disabled Children.NA
07/07/2015,CHILDREN'S SERVICES,Credo Care Ltd,DOMICILIARY CARE - THIRD PARTY,877.50,Social Community Care Supplies & Service.Children.Fostering
07/07/2015,ADULT SOCIAL CARE,Westminster Homecare Limited,DOMICILIARY CARE - THIRD PARTY,858.12,Social Community Care Supplies & Service.Adult.Domiciliary Care
07/07/2015,CHILDREN'S SERVICES,Allied Healthcare (UK) Ltd,DOMICILIARY CARE - THIRD PARTY,856.24,Social Community Care Supplies & Service.Adult.Domiciliary Care
07/07/2015,ADULT SOCIAL CARE,Unique Personnel (Uk) Ltd,DOMICILIARY CARE - THIRD PARTY,850.75,Social Community Care Supplies & Service.Disabled Children.NA
07/07/2015,CORPORATE AFFAIRS,Hopperways Ltd,ICT SOFTWARE,850.00,Information Communication Technology.Software.Commercial Off-The-Shelf
07/07/2015,ADULT SOCIAL CARE,Westminster Homecare Limited,DOMICILIARY CARE - THIRD PARTY,838.79,Social Community Care Supplies & Service.Adult.Domiciliary Care
07/07/2015,ADULT SOCIAL CARE,Westminster Homecare Limited,DOMICILIARY CARE - THIRD PARTY,836.42,Social Community Care Supplies & Service.Adult.Domiciliary Care
07/07/2015,ADULT SOCIAL CARE,Carewatch (Lambeth),DOMICILIARY CARE - THIRD PARTY,820.47,Social Community Care Supplies & Service.Adult.Domiciliary Care
07/07/2015,HUMAN RESOURCES AND ORGANISATIONAL DEVELOPMENT,The Stroke Association,PRIVATE CONTRACTORS PAYMENT - OTHER,800.00,Social Community Care Supplies & Service.Adult.Advice & Counselling Services
07/07/2015,HOUSING MANAGEMENT SERVICES,KNK Building Services Ltd_d,RESPONSIVE REPAIRS - BUILDING,780.00,Building Construction Materials.Paint & Finishing.NA
07/07/2015,ADULT SOCIAL CARE,Stockwellcare Support Services Ltd,DOMICILIARY CARE - THIRD PARTY,775.46,Healthcare.Public Health.NA
07/07/2015,ADULT SOCIAL CARE,Carewatch (Lambeth),DOMICILIARY CARE - THIRD PARTY,715.74,Social Community Care Supplies & Service.Adult.Domiciliary Care
07/07/2015,ADULT SOCIAL CARE,Westminster Homecare Limited,DOMICILIARY CARE - THIRD PARTY,702.07,Social Community Care Supplies & Service.Adult.Domiciliary Care
07/07/2015,CHILDREN'S SERVICES,Allied Healthcare (UK) Ltd,DOMICILIARY CARE - THIRD PARTY,700.56,Social Community Care Supplies & Service.Adult.Domiciliary Care
07/07/2015,ADULT SOCIAL CARE,Stockwellcare Support Services Ltd,DOMICILIARY CARE - THIRD PARTY,698.24,Healthcare.Public Health.NA
07/07/2015,ADULT SOCIAL CARE,Carewatch (Lambeth),DOMICILIARY CARE - THIRD PARTY,694.28,Social Community Care Supplies & Service.Adult.Domiciliary Care
07/07/2015,CHILDREN'S SERVICES,Lisa Jane Taylor,STAFF OTHER EXPENSES,691.50,Human Resources.Travel & Subsistence.NA
07/07/2015,HUMAN RESOURCES AND ORGANISATIONAL DEVELOPMENT,University of Greenwich,PROFESSIONAL SERVICES - GENERAL,675.00,Education.Adult & Further Education Services.NA
07/07/2015,HUMAN RESOURCES AND ORGANISATIONAL DEVELOPMENT,University of Greenwich,PROFESSIONAL SERVICES - GENERAL,675.00,Education.Adult & Further Education Services.NA
07/07/2015,HUMAN RESOURCES AND ORGANISATIONAL DEVELOPMENT,University of Greenwich,PROFESSIONAL SERVICES - GENERAL,675.00,Education.Adult & Further Education Services.NA
07/07/2015,ADULT SOCIAL CARE,Westminster Homecare Limited,DOMICILIARY CARE - THIRD PARTY,648.08,Social Community Care Supplies & Service.Adult.Domiciliary Care
07/07/2015,CHILDREN'S SERVICES,Allied Healthcare (UK) Ltd,DOMICILIARY CARE - THIRD PARTY,640.00,Social Community Care Supplies & Service.Adult.Domiciliary Care
07/07/2015,ADULT SOCIAL CARE,Stockwellcare Support Services Ltd,DOMICILIARY CARE - THIRD PARTY,614.87,Healthcare.Public Health.NA
07/07/2015,HOUSING MANAGEMENT SERVICES,KNK Building Services Ltd_d,RESPONSIVE REPAIRS - BUILDING,610.23,Building Construction Materials.Paint & Finishing.NA
07/07/2015,HOUSING MANAGEMENT SERVICES,KNK Building Services Ltd_d,RESPONSIVE REPAIRS - BUILDING,610.23,Building Construction Materials.Paint & Finishing.NA
07/07/2015,HOUSING MANAGEMENT SERVICES,KNK Building Services Ltd_d,RESPONSIVE REPAIRS - BUILDING,610.23,Building Construction Materials.Paint & Finishing.NA
07/07/2015,HOUSING MANAGEMENT SERVICES,KNK Building Services Ltd_d,RESPONSIVE REPAIRS - BUILDING,610.23,Building Construction Materials.Paint & Finishing.NA
07/07/2015,CHILDREN'S SERVICES,Credo Care Ltd,DOMICILIARY CARE - THIRD PARTY,607.50,Social Community Care Supplies & Service.Children.Fostering
07/07/2015,CHILDREN'S SERVICES,Focused Healthcare Ltd,DOMICILIARY CARE - THIRD PARTY,605.01,Social Community Care Supplies & Service.Children.NA
07/07/2015,CORPORATE AFFAIRS,Iris Ferber,LEGAL FEES,600.00,Legal Services.Legal Opinion.NA
07/07/2015,CHILDREN'S SERVICES,Credo Care Ltd,DOMICILIARY CARE - THIRD PARTY,573.75,Social Community Care Supplies & Service.Children.Fostering
07/07/2015,CHILDREN'S SERVICES,Bespoke Health & Social Care,DOMICILIARY CARE - THIRD PARTY,524.70,Social Community Care Supplies & Service.Children.Residential Care
07/07/2015,ADULT SOCIAL CARE,Carewatch (Lambeth),DOMICILIARY CARE - THIRD PARTY,515.37,Social Community Care Supplies & Service.Adult.Domiciliary Care
07/07/2015,CHILDREN'S SERVICES,Anglia DNA Services Ltd,LEGAL FEES,515.00,Healthcare.Services.NA
07/07/2015,EDUCATION & LEARNING,Jane Hills Consulting Ltd,PROFESSIONAL SERVICES - GENERAL,500.00,Human Resources.Professional & Advisory Services.NA
08/07/2015,HUMAN RESOURCES AND ORGANISATIONAL DEVELOPMENT,Matrix SCM Ltd,AGENCY STAFF,"698,745.74",Human Resources.Temporary & Agency Staff.NA
08/07/2015,BUSINESS & CUSTOMER SERVICES,Capita Business Services Ltd,CONSULTANCY FEES,"557,367.82",Consultancy.Business.NA
08/07/2015,FINANCE,Mercer Ltd,PROFESSIONAL SERVICES - GENERAL,"16,238.00",Financial Services.Investments.NA
08/07/2015,CORPORATE AFFAIRS,Xpress Software Solutions Ltd,LEGAL FEES,"14,000.00",Legal Services.Election Services.NA
08/07/2015,CAPITAL CC,Project Centre Ltd,"MAINTENANCE - EQUIPMENT, FURNITURE AND MATERIALS","11,650.00","Works - Construction, Repair & Maint.Roads.NA"
08/07/2015,CAPITAL CC,T Loughman & Co Ltd,OPEN SPACES WORKS,"11,544.18","Works - Construction, Repair & Maint.Open Spaces.Construction"
08/07/2015,FINANCE,Corona Energy,GAS,"11,515.92",Utilities.Gas.NA
08/07/2015,FINANCE,Corona Energy,GAS,"10,235.49",Utilities.Gas.NA
08/07/2015,FINANCE,Corona Energy,GAS,"9,764.06",Utilities.Gas.NA
08/07/2015,FINANCE,Corona Energy,GAS,"7,149.72",Utilities.Gas.NA
08/07/2015,FINANCE,Corona Energy,GAS,"7,135.40",Utilities.Gas.NA
08/07/2015,HOUSING MANAGEMENT SERVICES,Sutcliffe Play Ltd,OPEN SPACES WORKS,"6,316.50","Works - Construction, Repair & Maint.Open Spaces.Construction"
08/07/2015,FINANCE,Corona Energy,GAS,"5,970.06",Utilities.Gas.NA
08/07/2015,FINANCE,Corona Energy,GAS,"5,295.66",Utilities.Gas.NA
08/07/2015,FINANCE,Corona Energy,GAS,"5,133.05",Utilities.Gas.NA
08/07/2015,"REGENERATION, PLANNING & NEIGHBOURHOODS",Knight Frank (LLP),CONSULTANCY FEES,"5,000.00",Consultancy.Property.NA
08/07/2015,"STRATEGY & COMMISSIONING - CHILDREN, DISABILITIES & PUBLIC HEALTH",Niemans Chemist Ltd,"PURCHASE - EQUIPMENT, FURNITURE AND MATERIALS","4,437.86",Healthcare.Equipment.NA
08/07/2015,CHILDREN'S SERVICES,R@W Logistics Ltd,RENTS PAYABLE,"4,102.27","Social Community Care Supplies & Service.Adult.Temporary Accommodation, Short Stay"
08/07/2015,"REGENERATION, PLANNING & NEIGHBOURHOODS",Veolia ES (UK) Ltd,PROFESSIONAL SERVICES - GENERAL,"4,000.00",Environmental Services.Waste Management.Waste Collection
08/07/2015,FINANCE,Corona Energy,GAS,"3,743.52",Utilities.Gas.NA
08/07/2015,FINANCE,Corona Energy,GAS,"3,649.89",Utilities.Gas.NA
08/07/2015,FINANCE,Corona Energy,GAS,"3,624.92",Utilities.Gas.NA
08/07/2015,FINANCE,Corona Energy,GAS,"3,443.58",Utilities.Gas.NA
08/07/2015,CAPITAL CC,Gardiner & Theobald LLP,PROFESSIONAL SERVICES - GENERAL,"3,350.00",Consultancy.Property.NA
08/07/2015,ADULT SOCIAL CARE,Oasis Care & Training Agency,DOMICILIARY CARE - THIRD PARTY,"3,327.05",Social Community Care Supplies & Service.Adult.Domiciliary Care
08/07/2015,FINANCE,Corona Energy,GAS,"3,257.12",Utilities.Gas.NA
08/07/2015,"REGENERATION, PLANNING & NEIGHBOURHOODS",F M Conway Ltd_d,"MAINTENANCE - EQUIPMENT, FURNITURE AND MATERIALS","3,172.34","Works - Construction, Repair & Maint.Roads.Repair & Maintenance"
08/07/2015,FINANCE,Corona Energy,GAS,"3,144.46",Utilities.Gas.NA
08/07/2015,FINANCE,Corona Energy,GAS,"3,127.37",Utilities.Gas.NA
08/07/2015,FINANCE,Corona Energy,GAS,"3,123.83",Utilities.Gas.NA
08/07/2015,FINANCE,Corona Energy,GAS,"3,071.86",Utilities.Gas.NA
08/07/2015,CHILDREN'S SERVICES,Townsend Montessori Nurseries,PRIVATE CONTRACTORS PAYMENT - OTHER,"3,065.40",Social Community Care Supplies & Service.Children.Childcare Services
08/07/2015,FINANCE,Corona Energy,GAS,"2,984.86",Utilities.Gas.NA
08/07/2015,FINANCE,Corona Energy,GAS,"2,797.68",Utilities.Gas.NA
08/07/2015,CAPITAL CC,Gardiner & Theobald LLP,PROFESSIONAL SERVICES - GENERAL,"2,790.00",Consultancy.Property.NA
08/07/2015,ADULT SOCIAL CARE,Oasis Care & Training Agency,DOMICILIARY CARE - THIRD PARTY,"2,677.12",Social Community Care Supplies & Service.Adult.Domiciliary Care
08/07/2015,FINANCE,Corona Energy,GAS,"2,653.02",Utilities.Gas.NA
08/07/2015,FINANCE,Corona Energy,GAS,"2,608.97",Utilities.Gas.NA
08/07/2015,FINANCE,Corona Energy,GAS,"2,598.62",Utilities.Gas.NA
08/07/2015,FINANCE,Corona Energy,GAS,"2,549.48",Utilities.Gas.NA
08/07/2015,"REGENERATION, PLANNING & NEIGHBOURHOODS",F M Conway Ltd_d,"MAINTENANCE - EQUIPMENT, FURNITURE AND MATERIALS","2,527.60","Works - Construction, Repair & Maint.Roads.Repair & Maintenance"
08/07/2015,FINANCE,Corona Energy,GAS,"2,513.30",Utilities.Gas.NA
08/07/2015,ADULT SOCIAL CARE,L K Homecare Provider Ltd,DOMICILIARY CARE - THIRD PARTY,"2,346.24",Social Community Care Supplies & Service.Adult.Residential Care
08/07/2015,ADULT SOCIAL CARE,Oasis Care & Training Agency,DOMICILIARY CARE - THIRD PARTY,"2,295.93",Social Community Care Supplies & Service.Adult.Domiciliary Care
08/07/2015,FINANCE,Corona Energy,GAS,"2,282.73",Utilities.Gas.NA
08/07/2015,FINANCE,Corona Energy,GAS,"2,249.41",Utilities.Gas.NA
08/07/2015,FINANCE,Corona Energy,GAS,"2,173.53",Utilities.Gas.NA
08/07/2015,FINANCE,Corona Energy,GAS,"2,168.09",Utilities.Gas.NA
08/07/2015,ADULT SOCIAL CARE,Oasis Care & Training Agency,DOMICILIARY CARE - THIRD PARTY,"2,156.47",Social Community Care Supplies & Service.Adult.Domiciliary Care
08/07/2015,ADULT SOCIAL CARE,Oasis Care & Training Agency,DOMICILIARY CARE - THIRD PARTY,"2,127.15",Social Community Care Supplies & Service.Adult.Domiciliary Care
08/07/2015,ADULT SOCIAL CARE,Carewatch (Lambeth),DOMICILIARY CARE - THIRD PARTY,"2,102.76",Social Community Care Supplies & Service.Adult.Domiciliary Care
08/07/2015,HUMAN RESOURCES AND ORGANISATIONAL DEVELOPMENT,Hemming Group Ltd,STAFF DEVELOPMENT AND TRAINING,"2,100.00",Human Resources.Training & Conferences.Conferences
08/07/2015,ADULT SOCIAL CARE,Oasis Care & Training Agency,DOMICILIARY CARE - THIRD PARTY,"2,092.72",Social Community Care Supplies & Service.Adult.Domiciliary Care
08/07/2015,ADULT SOCIAL CARE,Oasis Care & Training Agency,DOMICILIARY CARE - THIRD PARTY,"2,091.74",Social Community Care Supplies & Service.Adult.Domiciliary Care
08/07/2015,ADULT SOCIAL CARE,Oasis Care & Training Agency,DOMICILIARY CARE - THIRD PARTY,"2,078.75",Social Community Care Supplies & Service.Adult.Domiciliary Care
08/07/2015,FINANCE,Corona Energy,GAS,"2,074.96",Utilities.Gas.NA
08/07/2015,FINANCE,Corona Energy,GAS,"2,070.83",Utilities.Gas.NA
08/07/2015,ADULT SOCIAL CARE,Oasis Care & Training Agency,DOMICILIARY CARE - THIRD PARTY,"2,070.76",Social Community Care Supplies & Service.Adult.Domiciliary Care
08/07/2015,ADULT SOCIAL CARE,Carewatch (Lambeth),DOMICILIARY CARE - THIRD PARTY,"2,013.05",Social Community Care Supplies & Service.Adult.Domiciliary Care
08/07/2015,"REGENERATION, PLANNING & NEIGHBOURHOODS",Unitas,STAFF DEVELOPMENT AND TRAINING,"2,000.00",Human Resources.Training & Conferences.Training
08/07/2015,ADULT SOCIAL CARE,Carewatch (Lambeth),DOMICILIARY CARE - THIRD PARTY,"1,997.60",Social Community Care Supplies & Service.Adult.Domiciliary Care
08/07/2015,ADULT SOCIAL CARE,Carewatch (Lambeth),DOMICILIARY CARE - THIRD PARTY,"1,997.60",Social Community Care Supplies & Service.Adult.Domiciliary Care
08/07/2015,ADULT SOCIAL CARE,Carewatch (Lambeth),DOMICILIARY CARE - THIRD PARTY,"1,997.60",Social Community Care Supplies & Service.Adult.Domiciliary Care
08/07/2015,ADULT SOCIAL CARE,Carewatch (Lambeth),DOMICILIARY CARE - THIRD PARTY,"1,997.50",Social Community Care Supplies & Service.Adult.Domiciliary Care
08/07/2015,FINANCE,Corona Energy,GAS,"1,984.63",Utilities.Gas.NA
08/07/2015,ADULT SOCIAL CARE,Carewatch (Lambeth),DOMICILIARY CARE - THIRD PARTY,"1,966.70",Social Community Care Supplies & Service.Adult.Domiciliary Care
08/07/2015,ADULT SOCIAL CARE,Oasis Care & Training Agency,DOMICILIARY CARE - THIRD PARTY,"1,957.16",Social Community Care Supplies & Service.Adult.Domiciliary Care
08/07/2015,ADULT SOCIAL CARE,Oasis Care & Training Agency,DOMICILIARY CARE - THIRD PARTY,"1,929.82",Social Community Care Supplies & Service.Adult.Domiciliary Care
08/07/2015,FINANCE,Corona Energy,GAS,"1,914.64",Utilities.Gas.NA
08/07/2015,FINANCE,Corona Energy,GAS,"1,911.13",Utilities.Gas.NA
08/07/2015,CAPITAL CC,Watts Group PLC,SURVEYS,"1,902.29","Works - Construction, Repair & Maint.Buildings.Surveys"
08/07/2015,FINANCE,Corona Energy,GAS,"1,894.34",Utilities.Gas.NA
08/07/2015,ADULT SOCIAL CARE,Oasis Care & Training Agency,DOMICILIARY CARE - THIRD PARTY,"1,890.22",Social Community Care Supplies & Service.Adult.Domiciliary Care
08/07/2015,ADULT SOCIAL CARE,Oasis Care & Training Agency,DOMICILIARY CARE - THIRD PARTY,"1,890.22",Social Community Care Supplies & Service.Adult.Domiciliary Care
08/07/2015,ADULT SOCIAL CARE,Oasis Care & Training Agency,DOMICILIARY CARE - THIRD PARTY,"1,890.22",Social Community Care Supplies & Service.Adult.Domiciliary Care
08/07/2015,ADULT SOCIAL CARE,Oasis Care & Training Agency,DOMICILIARY CARE - THIRD PARTY,"1,890.22",Social Community Care Supplies & Service.Adult.Domiciliary Care
08/07/2015,ADULT SOCIAL CARE,Oasis Care & Training Agency,DOMICILIARY CARE - THIRD PARTY,"1,890.22",Social Community Care Supplies & Service.Adult.Domiciliary Care
08/07/2015,FINANCE,Corona Energy,GAS,"1,888.55",Utilities.Gas.NA
08/07/2015,ADULT SOCIAL CARE,Oasis Care & Training Agency,DOMICILIARY CARE - THIRD PARTY,"1,882.76",Social Community Care Supplies & Service.Adult.Domiciliary Care
08/07/2015,FINANCE,Corona Energy,GAS,"1,875.25",Utilities.Gas.NA
08/07/2015,FINANCE,Corona Energy,GAS,"1,872.10",Utilities.Gas.NA
08/07/2015,ADULT SOCIAL CARE,Oasis Care & Training Agency,DOMICILIARY CARE - THIRD PARTY,"1,864.64",Social Community Care Supplies & Service.Adult.Domiciliary Care
08/07/2015,"REGENERATION, PLANNING & NEIGHBOURHOODS",BlueAV,SPECIALIST EQUIPMENT FOR SERVICE PROVISION,"1,851.22",Social Community Care Supplies & Service.Supplies.Equipment
08/07/2015,ADULT SOCIAL CARE,Capital Homecare (UK) Ltd,DOMICILIARY CARE - THIRD PARTY,"1,832.80",Social Community Care Supplies & Service.Adult.Domiciliary Care
08/07/2015,ADULT SOCIAL CARE,Capital Homecare (UK) Ltd,DOMICILIARY CARE - THIRD PARTY,"1,832.80",Social Community Care Supplies & Service.Adult.Domiciliary Care
08/07/2015,CHILDREN'S SERVICES,Alpha UK Properties Ltd,RENTS PAYABLE,"1,800.00",Social Community Care Supplies & Service.Adult.Sheltered Accommodation
08/07/2015,FINANCE,Corona Energy,GAS,"1,793.09",Utilities.Gas.NA
08/07/2015,FINANCE,Corona Energy,GAS,"1,743.72",Utilities.Gas.NA
08/07/2015,ADULT SOCIAL CARE,Capital Homecare (UK) Ltd,DOMICILIARY CARE - THIRD PARTY,"1,738.96",Social Community Care Supplies & Service.Adult.Domiciliary Care
08/07/2015,HOUSING MANAGEMENT SERVICES,Sutcliffe Play Ltd,OPEN SPACES WORKS,"1,714.29","Works - Construction, Repair & Maint.Open Spaces.Construction"
08/07/2015,FINANCE,Corona Energy,GAS,"1,707.93",Utilities.Gas.NA
08/07/2015,FINANCE,Corona Energy,GAS,"1,697.37",Utilities.Gas.NA
08/07/2015,FINANCE,Corona Energy,GAS,"1,662.92",Utilities.Gas.NA
08/07/2015,FINANCE,Corona Energy,GAS,"1,655.63",Utilities.Gas.NA
08/07/2015,FINANCE,Corona Energy,GAS,"1,538.37",Utilities.Gas.NA
08/07/2015,FINANCE,Corona Energy,GAS,"1,516.54",Utilities.Gas.NA
08/07/2015,FINANCE,Corona Energy,GAS,"1,507.61",Utilities.Gas.NA
08/07/2015,ADULT SOCIAL CARE,Oasis Care & Training Agency,DOMICILIARY CARE - THIRD PARTY,"1,497.36",Social Community Care Supplies & Service.Adult.Domiciliary Care
08/07/2015,FINANCE,Corona Energy,GAS,"1,492.92",Utilities.Gas.NA
08/07/2015,ADULT SOCIAL CARE,Oasis Care & Training Agency,DOMICILIARY CARE - THIRD PARTY,"1,490.62",Social Community Care Supplies & Service.Adult.Domiciliary Care
08/07/2015,FINANCE,Corona Energy,GAS,"1,489.30",Utilities.Gas.NA
08/07/2015,FINANCE,Corona Energy,GAS,"1,487.62",Utilities.Gas.NA
08/07/2015,FINANCE,Corona Energy,GAS,"1,484.96",Utilities.Gas.NA
08/07/2015,FINANCE,Corona Energy,GAS,"1,467.71",Utilities.Gas.NA
08/07/2015,ADULT SOCIAL CARE,Oasis Care & Training Agency,DOMICILIARY CARE - THIRD PARTY,"1,455.60",Social Community Care Supplies & Service.Adult.Domiciliary Care
08/07/2015,ADULT SOCIAL CARE,Oasis Care & Training Agency,DOMICILIARY CARE - THIRD PARTY,"1,452.90",Social Community Care Supplies & Service.Adult.Domiciliary Care
08/07/2015,FINANCE,Corona Energy,GAS,"1,437.28",Utilities.Gas.NA
08/07/2015,FINANCE,Corona Energy,GAS,"1,412.70",Utilities.Gas.NA
08/07/2015,FINANCE,Corona Energy,GAS,"1,395.79",Utilities.Gas.NA
08/07/2015,CHILDREN'S SERVICES,Shashees Investments Ltd,BED & BREAKFAST - PRIVATE CONTRACTORS PAYMENT,"1,386.00","Social Community Care Supplies & Service.Adult.Temporary Accommodation, Long Stay"
08/07/2015,FINANCE,Corona Energy,GAS,"1,382.32",Utilities.Gas.NA
08/07/2015,CAPITAL CC,Albion Windows and Conservatories Ltd,BUILDING ALTERATIONS AND MATERIALS,"1,300.00",Consultancy.Business.NA
08/07/2015,FINANCE,Corona Energy,GAS,"1,299.71",Utilities.Gas.NA
08/07/2015,FINANCE,Corona Energy,GAS,"1,281.96",Utilities.Gas.NA
08/07/2015,FINANCE,Corona Energy,GAS,"1,279.80",Utilities.Gas.NA
08/07/2015,FINANCE,Corona Energy,GAS,"1,265.74",Utilities.Gas.NA
08/07/2015,FINANCE,Corona Energy,GAS,"1,263.24",Utilities.Gas.NA
08/07/2015,ADULT SOCIAL CARE,Solace Community Care Ltd,DOMICILIARY CARE - THIRD PARTY,"1,261.22",Social Community Care Supplies & Service.Adult.Domiciliary Care
08/07/2015,ADULT SOCIAL CARE,Solace Community Care Ltd,DOMICILIARY CARE - THIRD PARTY,"1,261.06",Social Community Care Supplies & Service.Adult.Domiciliary Care
08/07/2015,ADULT SOCIAL CARE,Solace Community Care Ltd,DOMICILIARY CARE - THIRD PARTY,"1,261.06",Social Community Care Supplies & Service.Adult.Domiciliary Care
08/07/2015,ADULT SOCIAL CARE,Solace Community Care Ltd,DOMICILIARY CARE - THIRD PARTY,"1,261.06",Social Community Care Supplies & Service.Adult.Domiciliary Care
08/07/2015,FINANCE,Corona Energy,GAS,"1,256.65",Utilities.Gas.NA
08/07/2015,ADULT SOCIAL CARE,Oasis Care & Training Agency,DOMICILIARY CARE - THIRD PARTY,"1,253.50",Social Community Care Supplies & Service.Adult.Domiciliary Care
08/07/2015,FINANCE,Corona Energy,GAS,"1,216.79",Utilities.Gas.NA
08/07/2015,ADULT SOCIAL CARE,Solace Community Care Ltd,DOMICILIARY CARE - THIRD PARTY,"1,215.68",Social Community Care Supplies & Service.Adult.Domiciliary Care
08/07/2015,FINANCE,Corona Energy,GAS,"1,209.89",Utilities.Gas.NA
08/07/2015,CHILDREN'S SERVICES,Be In Life,SECTION 17 - PRIVATE CONTRACTORS PAYMENT,"1,200.00",Social Community Care Supplies & Service.Children.NA
08/07/2015,ADULT SOCIAL CARE,Solace Community Care Ltd,DOMICILIARY CARE - THIRD PARTY,"1,199.28",Social Community Care Supplies & Service.Adult.Domiciliary Care
08/07/2015,ADULT SOCIAL CARE,Solace Community Care Ltd,DOMICILIARY CARE - THIRD PARTY,"1,192.19",Social Community Care Supplies & Service.Adult.Domiciliary Care
08/07/2015,FINANCE,Corona Energy,GAS,"1,189.90",Utilities.Gas.NA
08/07/2015,NO RECOURSE TO PUBLIC FUNDS,R@W Logistics Ltd,RENTS PAYABLE,"1,181.69","Social Community Care Supplies & Service.Adult.Temporary Accommodation, Short Stay"
08/07/2015,FINANCE,Corona Energy,GAS,"1,176.99",Utilities.Gas.NA
08/07/2015,ADULT SOCIAL CARE,L K Homecare Provider Ltd,DOMICILIARY CARE - THIRD PARTY,"1,174.07",Social Community Care Supplies & Service.Adult.Residential Care
08/07/2015,FINANCE,Corona Energy,GAS,"1,164.89",Utilities.Gas.NA
08/07/2015,FINANCE,Corona Energy,GAS,"1,156.06",Utilities.Gas.NA
08/07/2015,ADULT SOCIAL CARE,Oasis Care & Training Agency,DOMICILIARY CARE - THIRD PARTY,"1,129.91",Social Community Care Supplies & Service.Adult.Domiciliary Care
08/07/2015,FINANCE,Corona Energy,GAS,"1,123.21",Utilities.Gas.NA
08/07/2015,NO RECOURSE TO PUBLIC FUNDS,R@W Logistics Ltd,RENTS PAYABLE,"1,117.81","Social Community Care Supplies & Service.Adult.Temporary Accommodation, Short Stay"
08/07/2015,FINANCE,Corona Energy,GAS,"1,114.24",Utilities.Gas.NA
08/07/2015,FINANCE,Corona Energy,GAS,"1,113.93",Utilities.Gas.NA
08/07/2015,FINANCE,Corona Energy,GAS,"1,099.29",Utilities.Gas.NA
08/07/2015,FINANCE,Corona Energy,GAS,"1,091.92",Utilities.Gas.NA
08/07/2015,FINANCE,Corona Energy,GAS,"1,088.52",Utilities.Gas.NA
08/07/2015,HOUSING MANAGEMENT SERVICES,Sir Frederick Snow & Partners Ltd,"MAINTENANCE - EQUIPMENT, FURNITURE AND MATERIALS","1,060.00","Works - Construction, Repair & Maint.Engineering.NA"
08/07/2015,HOUSING MANAGEMENT SERVICES,Sir Frederick Snow & Partners Ltd,"MAINTENANCE - EQUIPMENT, FURNITURE AND MATERIALS","1,060.00","Works - Construction, Repair & Maint.Engineering.NA"
08/07/2015,HOUSING MANAGEMENT SERVICES,Sir Frederick Snow & Partners Ltd,"MAINTENANCE - EQUIPMENT, FURNITURE AND MATERIALS","1,060.00","Works - Construction, Repair & Maint.Engineering.NA"
08/07/2015,FINANCE,Corona Energy,GAS,"1,055.81",Utilities.Gas.NA
08/07/2015,CHILDREN'S SERVICES,Norbury Property Services (London) Ltd,BED & BREAKFAST - PRIVATE CONTRACTORS PAYMENT,"1,054.00","Social Community Care Supplies & Service.Adult.Temporary Accommodation, Short Stay"
08/07/2015,FINANCE,Corona Energy,GAS,"1,052.69",Utilities.Gas.NA
08/07/2015,ADULT SOCIAL CARE,Oasis Care & Training Agency,DOMICILIARY CARE - THIRD PARTY,"1,050.17",Social Community Care Supplies & Service.Adult.Domiciliary Care
08/07/2015,FINANCE,Corona Energy,GAS,"1,043.99",Utilities.Gas.NA
08/07/2015,ADULT SOCIAL CARE,Solace Community Care Ltd,DOMICILIARY CARE - THIRD PARTY,"1,027.88",Social Community Care Supplies & Service.Adult.Domiciliary Care
08/07/2015,ADULT SOCIAL CARE,Oasis Care & Training Agency,DOMICILIARY CARE - THIRD PARTY,"1,024.31",Social Community Care Supplies & Service.Adult.Domiciliary Care
08/07/2015,ADULT SOCIAL CARE,Carewatch (Lambeth),DOMICILIARY CARE - THIRD PARTY,"1,019.96",Social Community Care Supplies & Service.Adult.Domiciliary Care
08/07/2015,FINANCE,Corona Energy,GAS,"1,002.31",Utilities.Gas.NA
08/07/2015,CHILDREN'S SERVICES,R@W Logistics Ltd,RENTS PAYABLE,"1,000.00","Social Community Care Supplies & Service.Adult.Temporary Accommodation, Short Stay"
08/07/2015,CHILDREN'S SERVICES,R@W Logistics Ltd,RENTS PAYABLE,"1,000.00","Social Community Care Supplies & Service.Adult.Temporary Accommodation, Short Stay"
08/07/2015,ADULT SOCIAL CARE,Oasis Care & Training Agency,DOMICILIARY CARE - THIRD PARTY,997.48,Social Community Care Supplies & Service.Adult.Domiciliary Care
08/07/2015,NO RECOURSE TO PUBLIC FUNDS,R@W Logistics Ltd,RENTS PAYABLE,980.55,"Social Community Care Supplies & Service.Adult.Temporary Accommodation, Short Stay"
08/07/2015,ADULT SOCIAL CARE,Oasis Care & Training Agency,DOMICILIARY CARE - THIRD PARTY,977.70,Social Community Care Supplies & Service.Adult.Domiciliary Care
08/07/2015,ADULT SOCIAL CARE,Oasis Care & Training Agency,DOMICILIARY CARE - THIRD PARTY,972.03,Social Community Care Supplies & Service.Adult.Domiciliary Care
08/07/2015,ADULT SOCIAL CARE,Oasis Care & Training Agency,DOMICILIARY CARE - THIRD PARTY,967.32,Social Community Care Supplies & Service.Adult.Domiciliary Care
08/07/2015,CHILDREN'S SERVICES,Oasis Care & Training Agency,DOMICILIARY CARE - THIRD PARTY,950.38,Social Community Care Supplies & Service.Adult.Domiciliary Care
08/07/2015,NO RECOURSE TO PUBLIC FUNDS,R@W Logistics Ltd,RENTS PAYABLE,950.00,"Social Community Care Supplies & Service.Adult.Temporary Accommodation, Short Stay"
08/07/2015,FINANCE,Corona Energy,GAS,941.24,Utilities.Gas.NA
08/07/2015,FINANCE,Corona Energy,GAS,935.53,Utilities.Gas.NA
08/07/2015,ADULT SOCIAL CARE,Oasis Care & Training Agency,DOMICILIARY CARE - THIRD PARTY,927.44,Social Community Care Supplies & Service.Adult.Domiciliary Care
08/07/2015,FINANCE,Corona Energy,GAS,906.94,Utilities.Gas.NA
08/07/2015,ADULT SOCIAL CARE,Solace Community Care Ltd,DOMICILIARY CARE - THIRD PARTY,903.00,Social Community Care Supplies & Service.Adult.Domiciliary Care
08/07/2015,FINANCE,Corona Energy,GAS,887.98,Utilities.Gas.NA
08/07/2015,ADULT SOCIAL CARE,L K Homecare Provider Ltd,DOMICILIARY CARE - THIRD PARTY,884.39,Social Community Care Supplies & Service.Adult.Residential Care
08/07/2015,FINANCE,Corona Energy,GAS,879.44,Utilities.Gas.NA
08/07/2015,ADULT SOCIAL CARE,Oasis Care & Training Agency,DOMICILIARY CARE - THIRD PARTY,876.29,Social Community Care Supplies & Service.Adult.Domiciliary Care
08/07/2015,ADULT SOCIAL CARE,Capital Homecare (UK) Ltd,DOMICILIARY CARE - THIRD PARTY,869.48,Social Community Care Supplies & Service.Adult.Domiciliary Care
08/07/2015,FINANCE,Corona Energy,GAS,862.41,Utilities.Gas.NA
08/07/2015,ADULT SOCIAL CARE,Unique Personnel (Uk) Ltd,DOMICILIARY CARE - THIRD PARTY,861.00,Social Community Care Supplies & Service.Disabled Children.NA
08/07/2015,FINANCE,Corona Energy,GAS,859.52,Utilities.Gas.NA
08/07/2015,ADULT SOCIAL CARE,Solace Community Care Ltd,DOMICILIARY CARE - THIRD PARTY,858.88,Social Community Care Supplies & Service.Adult.Domiciliary Care
08/07/2015,FINANCE,Corona Energy,GAS,854.35,Utilities.Gas.NA
08/07/2015,FINANCE,Corona Energy,GAS,853.44,Utilities.Gas.NA
08/07/2015,FINANCE,Corona Energy,GAS,852.72,Utilities.Gas.NA
08/07/2015,HOUSING MANAGEMENT SERVICES,Sir Frederick Snow & Partners Ltd,"MAINTENANCE - EQUIPMENT, FURNITURE AND MATERIALS",845.00,"Works - Construction, Repair & Maint.Engineering.NA"
08/07/2015,HOUSING MANAGEMENT SERVICES,Sir Frederick Snow & Partners Ltd,"MAINTENANCE - EQUIPMENT, FURNITURE AND MATERIALS",845.00,"Works - Construction, Repair & Maint.Engineering.NA"
08/07/2015,ADULT SOCIAL CARE,Oasis Care & Training Agency,DOMICILIARY CARE - THIRD PARTY,837.41,Social Community Care Supplies & Service.Adult.Domiciliary Care
08/07/2015,FINANCE,Corona Energy,GAS,835.91,Utilities.Gas.NA
08/07/2015,FINANCE,Corona Energy,GAS,830.61,Utilities.Gas.NA
08/07/2015,ADULT SOCIAL CARE,Oasis Care & Training Agency,DOMICILIARY CARE - THIRD PARTY,823.76,Social Community Care Supplies & Service.Adult.Domiciliary Care
08/07/2015,FINANCE,Corona Energy,GAS,823.61,Utilities.Gas.NA
08/07/2015,FINANCE,Corona Energy,GAS,818.93,Utilities.Gas.NA
08/07/2015,ADULT SOCIAL CARE,L K Homecare Provider Ltd,DOMICILIARY CARE - THIRD PARTY,818.60,Social Community Care Supplies & Service.Adult.Residential Care
08/07/2015,ADULT SOCIAL CARE,Solace Community Care Ltd,DOMICILIARY CARE - THIRD PARTY,815.94,Social Community Care Supplies & Service.Adult.Domiciliary Care
08/07/2015,FINANCE,Corona Energy,GAS,813.20,Utilities.Gas.NA
08/07/2015,ADULT SOCIAL CARE,Oasis Care & Training Agency,DOMICILIARY CARE - THIRD PARTY,801.96,Social Community Care Supplies & Service.Adult.Domiciliary Care
08/07/2015,FINANCE,Corona Energy,GAS,799.45,Utilities.Gas.NA
08/07/2015,ADULT SOCIAL CARE,Solace Community Care Ltd,DOMICILIARY CARE - THIRD PARTY,783.62,Social Community Care Supplies & Service.Adult.Domiciliary Care
08/07/2015,ADULT SOCIAL CARE,Oasis Care & Training Agency,DOMICILIARY CARE - THIRD PARTY,766.33,Social Community Care Supplies & Service.Adult.Domiciliary Care
08/07/2015,ADULT SOCIAL CARE,Oasis Care & Training Agency,DOMICILIARY CARE - THIRD PARTY,759.21,Social Community Care Supplies & Service.Adult.Domiciliary Care
08/07/2015,"REGENERATION, PLANNING & NEIGHBOURHOODS",Mr Giles Atkinson,LEGAL FEES,750.00,Legal Services.General Support.NA
08/07/2015,NO RECOURSE TO PUBLIC FUNDS,R@W Logistics Ltd,RENTS PAYABLE,750.00,"Social Community Care Supplies & Service.Adult.Temporary Accommodation, Short Stay"
08/07/2015,ADULT SOCIAL CARE,Oasis Care & Training Agency,DOMICILIARY CARE - THIRD PARTY,749.84,Social Community Care Supplies & Service.Adult.Domiciliary Care
08/07/2015,ADULT SOCIAL CARE,Oasis Care & Training Agency,DOMICILIARY CARE - THIRD PARTY,748.48,Social Community Care Supplies & Service.Adult.Domiciliary Care
08/07/2015,ADULT SOCIAL CARE,Oasis Care & Training Agency,DOMICILIARY CARE - THIRD PARTY,747.33,Social Community Care Supplies & Service.Adult.Domiciliary Care
08/07/2015,FINANCE,Corona Energy,GAS,745.05,Utilities.Gas.NA
08/07/2015,ADULT SOCIAL CARE,Oasis Care & Training Agency,DOMICILIARY CARE - THIRD PARTY,726.45,Social Community Care Supplies & Service.Adult.Domiciliary Care
08/07/2015,ADULT SOCIAL CARE,Oasis Care & Training Agency,DOMICILIARY CARE - THIRD PARTY,726.45,Social Community Care Supplies & Service.Adult.Domiciliary Care
08/07/2015,ADULT SOCIAL CARE,Oasis Care & Training Agency,DOMICILIARY CARE - THIRD PARTY,726.45,Social Community Care Supplies & Service.Adult.Domiciliary Care
08/07/2015,ADULT SOCIAL CARE,L K Homecare Provider Ltd,DOMICILIARY CARE - THIRD PARTY,723.89,Social Community Care Supplies & Service.Adult.Residential Care
08/07/2015,FINANCE,Corona Energy,GAS,718.41,Utilities.Gas.NA
08/07/2015,ADULT SOCIAL CARE,L K Homecare Provider Ltd,DOMICILIARY CARE - THIRD PARTY,703.52,Social Community Care Supplies & Service.Adult.Residential Care
08/07/2015,ADULT SOCIAL CARE,L K Homecare Provider Ltd,DOMICILIARY CARE - THIRD PARTY,702.57,Social Community Care Supplies & Service.Adult.Residential Care
08/07/2015,FINANCE,Corona Energy,GAS,701.56,Utilities.Gas.NA
08/07/2015,ADULT SOCIAL CARE,Snowball Care,DOMICILIARY CARE - THIRD PARTY,696.00,Social Community Care Supplies & Service.Adult.Domiciliary Care
08/07/2015,FINANCE,Corona Energy,GAS,683.97,Utilities.Gas.NA
08/07/2015,ADULT SOCIAL CARE,Oasis Care & Training Agency,DOMICILIARY CARE - THIRD PARTY,678.57,Social Community Care Supplies & Service.Adult.Domiciliary Care
08/07/2015,ADULT SOCIAL CARE,Unique Personnel (Uk) Ltd,DOMICILIARY CARE - THIRD PARTY,658.50,Social Community Care Supplies & Service.Disabled Children.NA
08/07/2015,ADULT SOCIAL CARE,Oasis Care & Training Agency,DOMICILIARY CARE - THIRD PARTY,657.46,Social Community Care Supplies & Service.Adult.Domiciliary Care
08/07/2015,FINANCE,Corona Energy,GAS,656.84,Utilities.Gas.NA
08/07/2015,ADULT SOCIAL CARE,Oasis Care & Training Agency,DOMICILIARY CARE - THIRD PARTY,655.98,Social Community Care Supplies & Service.Adult.Domiciliary Care
08/07/2015,ADULT SOCIAL CARE,Oasis Care & Training Agency,DOMICILIARY CARE - THIRD PARTY,655.98,Social Community Care Supplies & Service.Adult.Domiciliary Care
08/07/2015,FINANCE,Corona Energy,GAS,654.40,Utilities.Gas.NA
08/07/2015,FINANCE,Corona Energy,GAS,650.27,Utilities.Gas.NA
08/07/2015,ADULT SOCIAL CARE,Oasis Care & Training Agency,DOMICILIARY CARE - THIRD PARTY,639.79,Social Community Care Supplies & Service.Adult.Domiciliary Care
08/07/2015,FINANCE,Corona Energy,GAS,639.02,Utilities.Gas.NA
08/07/2015,FINANCE,Corona Energy,GAS,638.03,Utilities.Gas.NA
08/07/2015,ADULT SOCIAL CARE,L K Homecare Provider Ltd,DOMICILIARY CARE - THIRD PARTY,634.36,Social Community Care Supplies & Service.Adult.Residential Care
08/07/2015,CHILDREN'S SERVICES,Oasis Care & Training Agency,DOMICILIARY CARE - THIRD PARTY,628.30,Social Community Care Supplies & Service.Adult.Domiciliary Care
08/07/2015,FINANCE,Corona Energy,GAS,628.21,Utilities.Gas.NA
08/07/2015,ADULT SOCIAL CARE,Malone & Co,CATERING SERVICES,612.00,Catering.Banquet & Catering.NA
08/07/2015,ADULT SOCIAL CARE,Oasis Care & Training Agency,DOMICILIARY CARE - THIRD PARTY,610.74,Social Community Care Supplies & Service.Adult.Domiciliary Care
08/07/2015,FINANCE,Corona Energy,GAS,609.61,Utilities.Gas.NA
08/07/2015,FINANCE,Corona Energy,GAS,602.52,Utilities.Gas.NA
08/07/2015,ADULT SOCIAL CARE,Oasis Care & Training Agency,DOMICILIARY CARE - THIRD PARTY,600.47,Social Community Care Supplies & Service.Adult.Domiciliary Care
08/07/2015,ADULT SOCIAL CARE,Oasis Care & Training Agency,DOMICILIARY CARE - THIRD PARTY,598.81,Social Community Care Supplies & Service.Adult.Domiciliary Care
08/07/2015,ADULT SOCIAL CARE,Oasis Care & Training Agency,DOMICILIARY CARE - THIRD PARTY,593.23,Social Community Care Supplies & Service.Adult.Domiciliary Care
08/07/2015,FINANCE,Corona Energy,GAS,586.88,Utilities.Gas.NA
08/07/2015,FINANCE,Corona Energy,GAS,586.72,Utilities.Gas.NA
08/07/2015,FINANCE,Corona Energy,GAS,581.87,Utilities.Gas.NA
08/07/2015,ADULT SOCIAL CARE,Oasis Care & Training Agency,DOMICILIARY CARE - THIRD PARTY,547.67,Social Community Care Supplies & Service.Adult.Domiciliary Care
08/07/2015,ADULT SOCIAL CARE,Plan Personnel Ltd,DOMICILIARY CARE - THIRD PARTY,546.35,Social Community Care Supplies & Service.Adult.Domiciliary Care
08/07/2015,FINANCE,Corona Energy,GAS,545.07,Utilities.Gas.NA
08/07/2015,ADULT SOCIAL CARE,Solace Community Care Ltd,DOMICILIARY CARE - THIRD PARTY,543.96,Social Community Care Supplies & Service.Adult.Domiciliary Care
08/07/2015,ADULT SOCIAL CARE,Solace Community Care Ltd,DOMICILIARY CARE - THIRD PARTY,542.37,Social Community Care Supplies & Service.Adult.Domiciliary Care
08/07/2015,ADULT SOCIAL CARE,Unique Personnel (Uk) Ltd,DOMICILIARY CARE - THIRD PARTY,533.25,Social Community Care Supplies & Service.Disabled Children.NA
08/07/2015,FINANCE,Corona Energy,GAS,530.30,Utilities.Gas.NA
08/07/2015,ADULT SOCIAL CARE,A* Transport Ltd,CLIENT TRANSPORT,528.00,Public Transport.Taxi Services.NA
08/07/2015,ADULT SOCIAL CARE,A* Transport Ltd,CLIENT TRANSPORT,528.00,Public Transport.Taxi Services.NA
08/07/2015,FINANCE,Corona Energy,GAS,527.76,Utilities.Gas.NA
08/07/2015,ADULT SOCIAL CARE,A* Transport Ltd,CLIENT TRANSPORT,520.00,Public Transport.Taxi Services.NA
08/07/2015,ADULT SOCIAL CARE,Oasis Care & Training Agency,DOMICILIARY CARE - THIRD PARTY,510.22,Social Community Care Supplies & Service.Adult.Domiciliary Care
08/07/2015,ADULT SOCIAL CARE,Oasis Care & Training Agency,DOMICILIARY CARE - THIRD PARTY,507.79,Social Community Care Supplies & Service.Adult.Domiciliary Care
08/07/2015,ADULT SOCIAL CARE,Oasis Care & Training Agency,DOMICILIARY CARE - THIRD PARTY,507.79,Social Community Care Supplies & Service.Adult.Domiciliary Care
08/07/2015,ADULT SOCIAL CARE,Oasis Care & Training Agency,DOMICILIARY CARE - THIRD PARTY,507.79,Social Community Care Supplies & Service.Adult.Domiciliary Care
08/07/2015,ADULT SOCIAL CARE,Oasis Care & Training Agency,DOMICILIARY CARE - THIRD PARTY,507.79,Social Community Care Supplies & Service.Adult.Domiciliary Care
08/07/2015,FINANCE,Corona Energy,GAS,(505.64),Utilities.Gas.NA
08/07/2015,FINANCE,Corona Energy,GAS,(507.19),Utilities.Gas.NA
08/07/2015,FINANCE,Corona Energy,GAS,(508.64),Utilities.Gas.NA
08/07/2015,FINANCE,Corona Energy,GAS,(510.18),Utilities.Gas.NA
08/07/2015,FINANCE,Corona Energy,GAS,(518.81),Utilities.Gas.NA
08/07/2015,FINANCE,Corona Energy,GAS,(521.84),Utilities.Gas.NA
08/07/2015,FINANCE,Corona Energy,GAS,(522.79),Utilities.Gas.NA
08/07/2015,FINANCE,Corona Energy,GAS,(524.76),Utilities.Gas.NA
08/07/2015,FINANCE,Corona Energy,GAS,(526.45),Utilities.Gas.NA
08/07/2015,FINANCE,Corona Energy,GAS,(534.94),Utilities.Gas.NA
08/07/2015,FINANCE,Corona Energy,GAS,(538.29),Utilities.Gas.NA
08/07/2015,FINANCE,Corona Energy,GAS,(539.47),Utilities.Gas.NA
08/07/2015,FINANCE,Corona Energy,GAS,(542.85),Utilities.Gas.NA
08/07/2015,FINANCE,Corona Energy,GAS,(551.71),Utilities.Gas.NA
08/07/2015,FINANCE,Corona Energy,GAS,(565.25),Utilities.Gas.NA
08/07/2015,FINANCE,Corona Energy,GAS,(569.24),Utilities.Gas.NA
08/07/2015,FINANCE,Corona Energy,GAS,(572.64),Utilities.Gas.NA
08/07/2015,FINANCE,Corona Energy,GAS,(584.71),Utilities.Gas.NA
08/07/2015,FINANCE,Corona Energy,GAS,(596.56),Utilities.Gas.NA
08/07/2015,FINANCE,Corona Energy,GAS,(597.91),Utilities.Gas.NA
08/07/2015,FINANCE,Corona Energy,GAS,(603.04),Utilities.Gas.NA
08/07/2015,FINANCE,Corona Energy,GAS,(616.98),Utilities.Gas.NA
08/07/2015,FINANCE,Corona Energy,GAS,(640.67),Utilities.Gas.NA
08/07/2015,FINANCE,Corona Energy,GAS,(642.27),Utilities.Gas.NA
08/07/2015,FINANCE,Corona Energy,GAS,(647.18),Utilities.Gas.NA
08/07/2015,FINANCE,Corona Energy,GAS,(662.24),Utilities.Gas.NA
08/07/2015,FINANCE,Corona Energy,GAS,(663.13),Utilities.Gas.NA
08/07/2015,FINANCE,Corona Energy,GAS,(671.84),Utilities.Gas.NA
08/07/2015,FINANCE,Corona Energy,GAS,(695.96),Utilities.Gas.NA
08/07/2015,FINANCE,Corona Energy,GAS,(699.61),Utilities.Gas.NA
08/07/2015,FINANCE,Corona Energy,GAS,(701.55),Utilities.Gas.NA
08/07/2015,FINANCE,Corona Energy,GAS,(718.12),Utilities.Gas.NA
08/07/2015,FINANCE,Corona Energy,GAS,(760.60),Utilities.Gas.NA
08/07/2015,FINANCE,Corona Energy,GAS,(873.12),Utilities.Gas.NA
08/07/2015,FINANCE,Corona Energy,GAS,(885.45),Utilities.Gas.NA
08/07/2015,FINANCE,Corona Energy,GAS,(908.90),Utilities.Gas.NA
08/07/2015,FINANCE,Corona Energy,GAS,(913.19),Utilities.Gas.NA
08/07/2015,FINANCE,Corona Energy,GAS,(926.05),Utilities.Gas.NA
08/07/2015,FINANCE,Corona Energy,GAS,(929.32),Utilities.Gas.NA
08/07/2015,FINANCE,Corona Energy,GAS,(934.46),Utilities.Gas.NA
08/07/2015,ADULT SOCIAL CARE,Capital Homecare (UK) Ltd,DOMICILIARY CARE - THIRD PARTY,(965.08),Social Community Care Supplies & Service.Adult.Domiciliary Care
08/07/2015,FINANCE,Corona Energy,GAS,(987.25),Utilities.Gas.NA
08/07/2015,FINANCE,Corona Energy,GAS,"(1,028.80)",Utilities.Gas.NA
08/07/2015,FINANCE,Corona Energy,GAS,"(1,048.60)",Utilities.Gas.NA
08/07/2015,FINANCE,Corona Energy,GAS,"(1,086.27)",Utilities.Gas.NA
08/07/2015,FINANCE,Corona Energy,GAS,"(1,123.46)",Utilities.Gas.NA
08/07/2015,FINANCE,Corona Energy,GAS,"(1,165.02)",Utilities.Gas.NA
08/07/2015,FINANCE,Corona Energy,GAS,"(1,210.73)",Utilities.Gas.NA
08/07/2015,FINANCE,Corona Energy,GAS,"(1,220.38)",Utilities.Gas.NA
08/07/2015,FINANCE,Corona Energy,GAS,"(1,492.86)",Utilities.Gas.NA
08/07/2015,FINANCE,Corona Energy,GAS,"(1,841.98)",Utilities.Gas.NA
08/07/2015,FINANCE,Corona Energy,GAS,"(2,077.44)",Utilities.Gas.NA
08/07/2015,CHILDREN'S SERVICES,R@W Logistics Ltd,RENTS PAYABLE,"(4,102.27)","Social Community Care Supplies & Service.Adult.Temporary Accommodation, Short Stay"
08/07/2015,FINANCE,Corona Energy,GAS,"(4,213.50)",Utilities.Gas.NA
09/07/2015,BUSINESS TRANSFORMATION,Virgin Media Business,LAND LINE TELEPHONE COSTS,"99,653.90",Information Communication Technology.Telecommunications.NA
09/07/2015,BUSINESS TRANSFORMATION,Virgin Media Business,LAND LINE TELEPHONE COSTS,"80,713.02",Information Communication Technology.Telecommunications.NA
09/07/2015,BUSINESS TRANSFORMATION,Specialist Computer Centers Plc,ICT HARDWARE,"72,029.31",Information Communication Technology.Hardware.NA
09/07/2015,CAPITAL CC,Property Renovators Ltd,FACILITIES MANAGEMENT,"39,662.50","Works - Construction, Repair & Maint.Buildings.Repair & Maintenance"
09/07/2015,POLICY & COMMUNICATIONS,Event Wizards Ltd,EVENTS,"23,218.00",Arts & Leisure Services.Events.NA
09/07/2015,HOUSING MANAGEMENT SERVICES,Apex Lift & Escalator Engineers Ltd_d,RESPONSIVE REPAIRS - MECHANICAL AND ELECTRICAL,"23,018.17",Facilities & Management Services.Lifts.NA
09/07/2015,HOUSING MANAGEMENT SERVICES,Apex Lift & Escalator Engineers Ltd_d,RESPONSIVE REPAIRS - MECHANICAL AND ELECTRICAL,"22,647.23",Facilities & Management Services.Lifts.NA
09/07/2015,"STRATEGY & COMMISSIONING - CHILDREN, DISABILITIES & PUBLIC HEALTH",St Martin of Tours Housing Association,PRIVATE CONTRACTORS PAYMENT - OTHER,"12,237.08",Social Community Care Supplies & Service.Adult.Homeless Support
09/07/2015,STRATEGY & COMMISSIONING - HOUSING & COMMUNITIES (HRA),Cowley RMO Ltd,INTERNAL RECHARGES,"8,745.00",Housing Management.Arms Length Management Organisations.NA
09/07/2015,POLICY & COMMUNICATIONS,Event Wizards Ltd,EVENTS,"6,221.00",Arts & Leisure Services.Events.NA
09/07/2015,CAPITAL CC,Laser Surveys Ltd,CONSULTANCY FEES,"5,469.50",Consultancy.Technical & Feasibility.NA
09/07/2015,"REGENERATION, PLANNING & NEIGHBOURHOODS",Simon Gooden,DESIGN AND PHOTOGRAPHIC COSTS,"4,895.00",Facilities & Management Services.Design & Photography.NA
09/07/2015,CORPORATE AFFAIRS,IDOX Software Ltd,ICT SOFTWARE,"3,950.00",Information Communication Technology.Software.Customised & Bespoke
09/07/2015,ADULT SOCIAL CARE,Penna Plc,"ADVERTISING, PUBLICITY AND MARKETING","3,806.83",Facilities & Management Services.Advertising.Promotional & Recruitment
09/07/2015,CHILDREN'S SERVICES,Notting Hill Housing Trust,RENTS PAYABLE,"3,076.69",Social Community Care Supplies & Service.Children.NA
09/07/2015,"STRATEGY & COMMISSIONING - CHILDREN, DISABILITIES & PUBLIC HEALTH",Keyring Living Support Network,FLOATING SUPPORT SERVICES - PRIVATE CONTRACTORS PAYMENT,"3,061.04",Social Community Care Supplies & Service.Adult.Domiciliary Care
09/07/2015,"STRATEGY & COMMISSIONING - CHILDREN, DISABILITIES & PUBLIC HEALTH",Keyring Living Support Network,FLOATING SUPPORT SERVICES - PRIVATE CONTRACTORS PAYMENT,"2,779.12",Social Community Care Supplies & Service.Adult.Domiciliary Care
09/07/2015,"STRATEGY & COMMISSIONING - CHILDREN, DISABILITIES & PUBLIC HEALTH",Keyring Living Support Network,FLOATING SUPPORT SERVICES - PRIVATE CONTRACTORS PAYMENT,"2,779.12",Social Community Care Supplies & Service.Adult.Domiciliary Care
09/07/2015,BUSINESS TRANSFORMATION,Landesk UK Ltd,CONSULTANCY FEES,"2,307.70",Consultancy.Business.NA
09/07/2015,ADULT SOCIAL CARE,L K Homecare Provider Ltd,DOMICILIARY CARE - THIRD PARTY,"2,109.88",Social Community Care Supplies & Service.Adult.Residential Care
09/07/2015,ADULT SOCIAL CARE,Carewatch (Lambeth),DOMICILIARY CARE - THIRD PARTY,"2,028.50",Social Community Care Supplies & Service.Adult.Domiciliary Care
09/07/2015,CHILDREN'S SERVICES,Race Equality Foundation,PRIVATE CONTRACTORS PAYMENT - OTHER,"2,000.00",Social Community Care Supplies & Service.Adult.Advice & Counselling Services
09/07/2015,"STRATEGY & COMMISSIONING - CHILDREN, DISABILITIES & PUBLIC HEALTH",Keyring Living Support Network,FLOATING SUPPORT SERVICES - PRIVATE CONTRACTORS PAYMENT,"1,852.44",Social Community Care Supplies & Service.Adult.Domiciliary Care
09/07/2015,ADULT SOCIAL CARE,L K Homecare Provider Ltd,DOMICILIARY CARE - THIRD PARTY,"1,763.10",Social Community Care Supplies & Service.Adult.Residential Care
09/07/2015,"REGENERATION, PLANNING & NEIGHBOURHOODS",Brockwell Park Community Greenhouses,RESPONSIVE REPAIRS - BUILDING,"1,750.00",Human Resources.Training & Conferences.Training
09/07/2015,HOUSING MANAGEMENT SERVICES,Apex Lift & Escalator Engineers Ltd_d,RESPONSIVE REPAIRS - MECHANICAL AND ELECTRICAL,"1,690.17",Facilities & Management Services.Lifts.NA
09/07/2015,"REGENERATION, PLANNING & NEIGHBOURHOODS",Lambeth Food Partnerships Ltd,CATERING AND VENDING SUPPLIES,"1,666.00",Catering.Food & Beverages.NA
09/07/2015,ADULT SOCIAL CARE,L K Homecare Provider Ltd,DOMICILIARY CARE - THIRD PARTY,"1,616.43",Social Community Care Supplies & Service.Adult.Residential Care
09/07/2015,ADULT SOCIAL CARE,L K Homecare Provider Ltd,DOMICILIARY CARE - THIRD PARTY,"1,516.88",Social Community Care Supplies & Service.Adult.Residential Care
09/07/2015,CORPORATE AFFAIRS,S A Associates Management Training Ltd,HEALTH AND SAFETY WORKS,"1,485.00",Health & Safety.Products.NA
09/07/2015,ADULT SOCIAL CARE,L K Homecare Provider Ltd,DOMICILIARY CARE - THIRD PARTY,"1,464.20",Social Community Care Supplies & Service.Adult.Residential Care
09/07/2015,"REGENERATION, PLANNING & NEIGHBOURHOODS",Joseph Rochford Gardens Ltd,GROUNDS MAINTENANCE,"1,439.95",Horticultural.Seeds & Plants.NA
09/07/2015,ADULT SOCIAL CARE,Emerald Care Services (UK) Ltd,DOMICILIARY CARE - THIRD PARTY,"1,368.60",Social Community Care Supplies & Service.Adult.Residential Care
09/07/2015,ADULT SOCIAL CARE,Emerald Care Services (UK) Ltd,DOMICILIARY CARE - THIRD PARTY,"1,368.60",Social Community Care Supplies & Service.Adult.Residential Care
09/07/2015,ADULT SOCIAL CARE,Capital Homecare (UK) Ltd,DOMICILIARY CARE - THIRD PARTY,"1,346.80",Social Community Care Supplies & Service.Adult.Domiciliary Care
09/07/2015,ADULT SOCIAL CARE,L K Homecare Provider Ltd,DOMICILIARY CARE - THIRD PARTY,"1,268.60",Social Community Care Supplies & Service.Adult.Residential Care
09/07/2015,HOUSING MANAGEMENT SERVICES,Apex Lift & Escalator Engineers Ltd_d,RESPONSIVE REPAIRS - MECHANICAL AND ELECTRICAL,"1,174.25",Facilities & Management Services.Lifts.NA
09/07/2015,HOUSING MANAGEMENT SERVICES,Apex Lift & Escalator Engineers Ltd_d,RESPONSIVE REPAIRS - MECHANICAL AND ELECTRICAL,"1,120.28",Facilities & Management Services.Lifts.NA
09/07/2015,HOUSING MANAGEMENT SERVICES,Apex Lift & Escalator Engineers Ltd_d,RESPONSIVE REPAIRS - MECHANICAL AND ELECTRICAL,"1,120.28",Facilities & Management Services.Lifts.NA
09/07/2015,HOUSING MANAGEMENT SERVICES,Apex Lift & Escalator Engineers Ltd_d,RESPONSIVE REPAIRS - MECHANICAL AND ELECTRICAL,"1,120.28",Facilities & Management Services.Lifts.NA
09/07/2015,HOUSING MANAGEMENT SERVICES,Apex Lift & Escalator Engineers Ltd_d,RESPONSIVE REPAIRS - MECHANICAL AND ELECTRICAL,"1,120.28",Facilities & Management Services.Lifts.NA
09/07/2015,HOUSING MANAGEMENT SERVICES,Apex Lift & Escalator Engineers Ltd_d,RESPONSIVE REPAIRS - MECHANICAL AND ELECTRICAL,"1,120.28",Facilities & Management Services.Lifts.NA
09/07/2015,HOUSING MANAGEMENT SERVICES,Apex Lift & Escalator Engineers Ltd_d,RESPONSIVE REPAIRS - MECHANICAL AND ELECTRICAL,"1,120.28",Facilities & Management Services.Lifts.NA
09/07/2015,HOUSING MANAGEMENT SERVICES,Apex Lift & Escalator Engineers Ltd_d,RESPONSIVE REPAIRS - MECHANICAL AND ELECTRICAL,"1,120.28",Facilities & Management Services.Lifts.NA
09/07/2015,HOUSING MANAGEMENT SERVICES,Apex Lift & Escalator Engineers Ltd_d,RESPONSIVE REPAIRS - MECHANICAL AND ELECTRICAL,"1,120.28",Facilities & Management Services.Lifts.NA
09/07/2015,HOUSING MANAGEMENT SERVICES,Apex Lift & Escalator Engineers Ltd_d,RESPONSIVE REPAIRS - MECHANICAL AND ELECTRICAL,"1,118.18",Facilities & Management Services.Lifts.NA
09/07/2015,HOUSING MANAGEMENT SERVICES,Apex Lift & Escalator Engineers Ltd_d,RESPONSIVE REPAIRS - MECHANICAL AND ELECTRICAL,"1,103.17",Facilities & Management Services.Lifts.NA
09/07/2015,HOUSING MANAGEMENT SERVICES,Apex Lift & Escalator Engineers Ltd_d,RESPONSIVE REPAIRS - MECHANICAL AND ELECTRICAL,"1,103.17",Facilities & Management Services.Lifts.NA
09/07/2015,HOUSING MANAGEMENT SERVICES,Apex Lift & Escalator Engineers Ltd_d,RESPONSIVE REPAIRS - MECHANICAL AND ELECTRICAL,"1,103.17",Facilities & Management Services.Lifts.NA
09/07/2015,ADULT SOCIAL CARE,L K Homecare Provider Ltd,DOMICILIARY CARE - THIRD PARTY,"1,064.99",Social Community Care Supplies & Service.Adult.Residential Care
09/07/2015,POLICY & COMMUNICATIONS,San Marinotrading Ltd,CATERING AND VENDING SUPPLIES,"1,042.00",Catering.Food & Beverages.NA
09/07/2015,HOUSING MANAGEMENT SERVICES,Apex Lift & Escalator Engineers Ltd_d,RESPONSIVE REPAIRS - MECHANICAL AND ELECTRICAL,"1,001.00",Facilities & Management Services.Lifts.NA
09/07/2015,HOUSING MANAGEMENT SERVICES,Apex Lift & Escalator Engineers Ltd_d,RESPONSIVE REPAIRS - MECHANICAL AND ELECTRICAL,"1,001.00",Facilities & Management Services.Lifts.NA
09/07/2015,HOUSING MANAGEMENT SERVICES,Apex Lift & Escalator Engineers Ltd_d,RESPONSIVE REPAIRS - MECHANICAL AND ELECTRICAL,"1,001.00",Facilities & Management Services.Lifts.NA
09/07/2015,ADULT SOCIAL CARE,Capital Homecare (UK) Ltd,DOMICILIARY CARE - THIRD PARTY,965.08,Social Community Care Supplies & Service.Adult.Domiciliary Care
09/07/2015,HUMAN RESOURCES AND ORGANISATIONAL DEVELOPMENT,The Elmgreen School,PROFESSIONAL SERVICES - GENERAL,859.21,Education.School Services.NA
09/07/2015,EDUCATION & LEARNING,Intellident Ltd,PROFESSIONAL SERVICES - GENERAL,830.00,Education.Library Services.NA
09/07/2015,HOUSING MANAGEMENT SERVICES,Cherwell District Council,PAYMENT TO PRIVATE SECTOR LANDLORDS (PSL),821.37,Housing Management.Letting Agents.NA
09/07/2015,ADULT SOCIAL CARE,Capital Homecare (UK) Ltd,DOMICILIARY CARE - THIRD PARTY,810.19,Social Community Care Supplies & Service.Adult.Domiciliary Care
09/07/2015,ADULT SOCIAL CARE,Enterprise Care Support Ltd,DOMICILIARY CARE - THIRD PARTY,764.88,Social Community Care Supplies & Service.Adult.Residential Care
09/07/2015,HOUSING MANAGEMENT SERVICES,Apex Lift & Escalator Engineers Ltd_d,RESPONSIVE REPAIRS - MECHANICAL AND ELECTRICAL,726.03,Facilities & Management Services.Lifts.NA
09/07/2015,HOUSING MANAGEMENT SERVICES,Apex Lift & Escalator Engineers Ltd_d,RESPONSIVE REPAIRS - MECHANICAL AND ELECTRICAL,726.03,Facilities & Management Services.Lifts.NA
09/07/2015,HOUSING MANAGEMENT SERVICES,Apex Lift & Escalator Engineers Ltd_d,RESPONSIVE REPAIRS - MECHANICAL AND ELECTRICAL,726.03,Facilities & Management Services.Lifts.NA
09/07/2015,HOUSING MANAGEMENT SERVICES,Apex Lift & Escalator Engineers Ltd_d,RESPONSIVE REPAIRS - MECHANICAL AND ELECTRICAL,726.03,Facilities & Management Services.Lifts.NA
09/07/2015,HOUSING MANAGEMENT SERVICES,Apex Lift & Escalator Engineers Ltd_d,RESPONSIVE REPAIRS - MECHANICAL AND ELECTRICAL,726.03,Facilities & Management Services.Lifts.NA
09/07/2015,HOUSING MANAGEMENT SERVICES,Apex Lift & Escalator Engineers Ltd_d,RESPONSIVE REPAIRS - MECHANICAL AND ELECTRICAL,726.03,Facilities & Management Services.Lifts.NA
09/07/2015,HOUSING MANAGEMENT SERVICES,Apex Lift & Escalator Engineers Ltd_d,RESPONSIVE REPAIRS - MECHANICAL AND ELECTRICAL,726.03,Facilities & Management Services.Lifts.NA
09/07/2015,HOUSING MANAGEMENT SERVICES,Apex Lift & Escalator Engineers Ltd_d,RESPONSIVE REPAIRS - MECHANICAL AND ELECTRICAL,726.03,Facilities & Management Services.Lifts.NA
09/07/2015,ADULT SOCIAL CARE,Emerald Care Services (UK) Ltd,DOMICILIARY CARE - THIRD PARTY,711.00,Social Community Care Supplies & Service.Adult.Residential Care
09/07/2015,FINANCE,BPP Professional Education Ltd,STAFF DEVELOPMENT AND TRAINING,700.01,Human Resources.Training & Conferences.Training
09/07/2015,ADULT SOCIAL CARE,L K Homecare Provider Ltd,DOMICILIARY CARE - THIRD PARTY,676.32,Social Community Care Supplies & Service.Adult.Residential Care
09/07/2015,HOUSING MANAGEMENT SERVICES,Apex Lift & Escalator Engineers Ltd_d,RESPONSIVE REPAIRS - MECHANICAL AND ELECTRICAL,619.57,Facilities & Management Services.Lifts.NA
09/07/2015,ADULT SOCIAL CARE,Unique Personnel (Uk) Ltd,DOMICILIARY CARE - THIRD PARTY,601.50,Social Community Care Supplies & Service.Disabled Children.NA
09/07/2015,BUSINESS TRANSFORMATION,Specialist Computer Centers Plc,ICT HARDWARE,540.00,Information Communication Technology.Hardware.NA
09/07/2015,ADULT SOCIAL CARE,Emerald Care Services (UK) Ltd,DOMICILIARY CARE - THIRD PARTY,501.60,Social Community Care Supplies & Service.Adult.Residential Care
09/07/2015,ADULT SOCIAL CARE,Emerald Care Services (UK) Ltd,DOMICILIARY CARE - THIRD PARTY,501.50,Social Community Care Supplies & Service.Adult.Residential Care
09/07/2015,BUSINESS TRANSFORMATION,Specialist Computer Centers Plc,CONSULTANCY FEES,(840.00),Information Communication Technology.Services.Consultancy
09/07/2015,POLICY & COMMUNICATIONS,Event Wizards Ltd,EVENTS,"(3,110.50)",Arts & Leisure Services.Events.NA
09/07/2015,POLICY & COMMUNICATIONS,Event Wizards Ltd,EVENTS,"(11,609.00)",Arts & Leisure Services.Events.NA
10/07/2015,ADULT SOCIAL CARE,Medequip Assistive Technology Ltd,SPECIALIST EQUIPMENT FOR SERVICE PROVISION,"151,170.93",Social Community Care Supplies & Service.Supplies.Equipment
10/07/2015,ADULT SOCIAL CARE,Medequip Assistive Technology Ltd,SPECIALIST EQUIPMENT FOR SERVICE PROVISION,"139,293.68",Social Community Care Supplies & Service.Supplies.Equipment
10/07/2015,CAPITAL CC,Mears Ltd,BUILDING ALTERATIONS AND MATERIALS,"109,942.63","Works - Construction, Repair & Maint.Buildings.Repair & Maintenance"
10/07/2015,CORPORATE ITEMS,London Councils,CONSULTANCY FEES,"83,991.00",Consultancy.Strategic Planning.NA
10/07/2015,"STRATEGY & COMMISSIONING - CHILDREN, DISABILITIES & PUBLIC HEALTH",Triangle Adventure Playground Association,"MAINTENANCE - EQUIPMENT, FURNITURE AND MATERIALS","35,640.00",Sports & Playground Equipment & Maint.Playground Equipment.NA
10/07/2015,CAPITAL CC,Axis12 Ltd,INTERNET COSTS,"31,410.00",Information Communication Technology.Services.Online Services
10/07/2015,"REGENERATION, PLANNING & NEIGHBOURHOODS",Liberty Printers Ltd,PRINTING,"29,424.13",Facilities & Management Services.Printing.NA
10/07/2015,FINANCE,Energy Auditing Agency Ltd,CONSULTANCY FEES,"29,403.00",Consultancy.Business.NA
10/07/2015,CAPITAL CC,Bolt & Heeks Ltd,GRANTS AND CONTRIBUTIONS,"21,194.13",Financial Services.Grants.NA
10/07/2015,BUSINESS & CUSTOMER SERVICES,Waterloo Quarter Business Alliance,GENERAL OFFICE EXPENSES,"19,631.00",Financial Services.Subscriptions.NA
10/07/2015,HUMAN RESOURCES AND ORGANISATIONAL DEVELOPMENT,The Dartington Hall Trust,PRIVATE CONTRACTORS PAYMENT - OTHER,"14,260.00",Social Community Care Supplies & Service.Adult.Advice & Counselling Services
10/07/2015,EDUCATION & LEARNING,NAS Services Ltd,PROFESSIONAL SERVICES - GENERAL,"12,844.21",Education.School Services.NA
10/07/2015,EDUCATION & LEARNING,NAS Services Ltd,PROFESSIONAL SERVICES - GENERAL,"12,844.21",Education.School Services.NA
10/07/2015,"REGENERATION, PLANNING & NEIGHBOURHOODS",Furnace Managed Services Ltd,BEREAVEMENT SERVICES EQUIPMENT,"12,093.00",Cemetery & Crematorium.Equipment.NA
10/07/2015,"REGENERATION, PLANNING & NEIGHBOURHOODS",Furnace Managed Services Ltd,BEREAVEMENT SERVICES EQUIPMENT,"12,093.00",Cemetery & Crematorium.Equipment.NA
10/07/2015,"REGENERATION, PLANNING & NEIGHBOURHOODS",Furnace Managed Services Ltd,BEREAVEMENT SERVICES EQUIPMENT,"12,093.00",Cemetery & Crematorium.Equipment.NA
10/07/2015,"REGENERATION, PLANNING & NEIGHBOURHOODS",Furnace Managed Services Ltd,BEREAVEMENT SERVICES EQUIPMENT,"12,093.00",Cemetery & Crematorium.Equipment.NA
10/07/2015,POLICY & COMMUNICATIONS,Axis12 Ltd,INTERNET COSTS,"8,405.00",Information Communication Technology.Services.Online Services
10/07/2015,CHILDREN'S SERVICES,Netpex Ltd_d,IN HOUSE FOSTER CARE PLACEMENTS - PRIVATE CONTRACTORS PAYMENT,"7,426.05",Social Community Care Supplies & Service.Children.Fostering
10/07/2015,POLICY & COMMUNICATIONS,Axis12 Ltd,INTERNET COSTS,"6,455.00",Information Communication Technology.Services.Online Services
10/07/2015,EDUCATION & LEARNING,School Business Services,CONSULTANCY FEES,"5,050.00",Consultancy.Business.NA
10/07/2015,EDUCATION & LEARNING,School Business Services,CONSULTANCY FEES,"5,050.00",Consultancy.Business.NA
10/07/2015,"REGENERATION, PLANNING & NEIGHBOURHOODS",Francis Taylor Building,LEGAL FEES,"5,000.00",Legal Services.General Support.NA
10/07/2015,"REGENERATION, PLANNING & NEIGHBOURHOODS",Southwark Newspaper Ltd,"ADVERTISING, PUBLICITY AND MARKETING","4,640.00",Facilities & Management Services.Advertising.Statutory
10/07/2015,"STRATEGY & COMMISSIONING - CHILDREN, DISABILITIES & PUBLIC HEALTH",Deejay Chemist,HIRE OF ROOMS AND HALLS INCOME - NON VATABLE,"4,445.63",Facilities & Management Services.Room Hire.NA
10/07/2015,EDUCATION & LEARNING,Unsted Park Priory,PROFESSIONAL SERVICES - GENERAL,"4,166.67",Education.School Services.NA
10/07/2015,NO RECOURSE TO PUBLIC FUNDS,R@W Logistics Ltd,RENTS PAYABLE,"4,080.00","Social Community Care Supplies & Service.Adult.Temporary Accommodation, Short Stay"
10/07/2015,CAPITAL CC,Tree Heritage,GROUNDS MAINTENANCE,"3,900.00",Horticultural.Trees & Shrubs.NA
10/07/2015,"STRATEGY & COMMISSIONING - CHILDREN, DISABILITIES & PUBLIC HEALTH",University Hospitals Birmingham NHS Foundation Trust,PAYMENT TO HEALTH AUTHORITIES,"3,715.50",Healthcare.Public Health.NA
10/07/2015,HOUSING MANAGEMENT SERVICES,J S Estates Ltd,RENTS PAYABLE,"3,451.50",Financial Services.Rents.NA
10/07/2015,"REGENERATION, PLANNING & NEIGHBOURHOODS",Furnace Managed Services Ltd,BEREAVEMENT SERVICES EQUIPMENT,"3,332.64",Cemetery & Crematorium.Equipment.NA
10/07/2015,"REGENERATION, PLANNING & NEIGHBOURHOODS",Furnace Managed Services Ltd,BEREAVEMENT SERVICES EQUIPMENT,"2,221.76",Cemetery & Crematorium.Equipment.NA
10/07/2015,CAPITAL CC,K & C Windows t/a Sash Windows London,BUILDING ALTERATIONS AND MATERIALS,"2,199.17",Consultancy.Business.NA
